{"text_format":"3","workbook":"xlsx","n_sheets":4,"sheets":["7-8","9","10","11"],"not_rendered":{"defined_names":4},"read":"whole","date_system":"1900"}

{"sheet":"7-8","index":0,"n_rows":232,"n_cols":16,"rows_kept":232,"merged":[[0,1,0,14]]}
[null,"Итоговый протокол по итогам муниципального этапа ВсОШ/РОШ  по предмету ИНФОРМАТИКА  в 2018-2019 учебном году"]
["№ п/п","Муниципалитет","Полное наименование образовательного учреждения (по уставу)","Фамилия","Имя","Отчество","Класс","Дата рождения","Пол","Балл","Апеляционный балл","Итоговый балл","Максимальный балл","Статус","Фамилия педагога, подготовившего участника олимпиады","Полное наименование образовательного учреждения (по уставу)"]
[1,"Вахитовский","Общеобразовательная школа-интернат «Лицей имени Н. И. Лобачевского» К(П)ФУ","Саитов","Дамир","Рустемович",7,"2005-11-08","M",370,null,370,400,"победитель","Михайлин Сергей Иванович","Общеобразовательная школа-интернат «Лицей имени Н. И. Лобачевского» К(П)ФУ "]
[2,"Верхнеуслонский","Государственное автономное общеобразовательное учреждение \"Лицей Иннополис\"","Кузьмин","Даниил","Александрович",8,"2004-03-09","м",360,null,360,400,"победитель","Беляева Ольга Семёновна","Государственное автономное общеобразовательное учреждение \"Лицей Иннополис\""]
[3,"Нижнекамский","МБОУ \"Лицей-интернат № 24\"","Шакиров","Владислав","Фидаилевич",8,"2003-12-10","муж",330,null,330,400,"Победитель","Зиганшин Рустем Мударисович","МБОУ \"Лицей-интернат № 24\""]
[4,"Московский","МАОУ «Лицей-интернат №2» Московского района","Авхадиев","Арсен","Тимурович",8,"2004-10-01","M",300,null,300,400,"призер","Сафиулин Ильшат Ирикович","     МАОУ Лицей-интернат №2"]
[5,"Приволжский","Лицей-интернат «IТ-лицей К(П)ФУ»","Галиев","Ирек","Ильдарович",8,"2004-08-15","M",300,null,300,400,"призер","Митясова Елена Анатольевна","Лицей-интернат «IТ-лицей К(П)ФУ» "]
[6,"Нижнекамский","МБОУ \"Лицей-интернат № 24\"","Валиахметов","Ислам","Асхатович",8,"2004-06-15","муж",300,null,300,400,"Призер","Зиганшин Рустем Мударисович","МБОУ \"Лицей-интернат № 24\""]
[7,"Московский","МАОУ «Лицей-интернат №2» Московского района","Асадуллин","Айдар","Ильдарович",8,"2004-09-06","M",270,null,270,400,"призер","Сафиулин Ильшат Ирикович","  МАОУ Лицей-интернат №2"]
[8,"Вахитовский","МАОУ «Лицей №131»","Булкина","Алина","Анатольевна",8,"2004-08-24","Ж",270,null,270,400,"призер","Султанов Азат Фаритович","АНО ВО Университет Иннополис"]
[9,"Приволжский","Лицей-интернат «IТ-лицей К(П)ФУ»","Латыпов","Булат","Рустемович",8,"2004-08-03","M",260,null,260,400,"призер","Митясова Елена Анатольевна","Лицей-интернат «IТ-лицей К(П)ФУ» "]
[10,"Вахитовский","Общеобразовательная школа-интернат «Лицей имени Н. И. Лобачевского» К(П)ФУ","Вильданов","Руслан","Юрьевич",7,"2005-06-09","M",240,null,240,400,"призер","Михайлин Сергей Иванович","Общеобразовательная школа-интернат «Лицей имени Н. И. Лобачевского» К(П)ФУ "]
[11,"Вахитовский","Общеобразовательная школа-интернат «Лицей имени Н. И. Лобачевского» К(П)ФУ","Пакканен","Мария","Александровна",7,null,"Ж",230,null,230,400,"призер","Михайлин Сергей Иванович","Общеобразовательная школа-интернат «Лицей имени Н. И. Лобачевского» К(П)ФУ "]
[12,"Московский","МАОУ «Лицей-интернат №2» Московского района","Салахов","Данияр","Ленарович",8,"2004-11-23","M",230,null,230,400,"призер","Сафиулин Ильшат Ирикович","   МАОУ Лицей-интернат №2"]
[13,"Верхнеуслонский","Государственное автономное общеобразовательное учреждение \"Лицей Иннополис\"","Зимин","Даниил","Александрович",8,"2004-03-04","м",230,null,230,400,"призер","Беляева Ольга Семёновна","Государственное автономное общеобразовательное учреждение \"Лицей Иннополис\""]
[14,"Приволжский","Лицей-интернат «IТ-лицей К(П)ФУ»","Курин","Виталий","Арсеньевич",8,"2004-01-30","M",220,null,220,400,"призер","Митясова Елена Анатольевна","Лицей-интернат «IТ-лицей К(П)ФУ» "]
[15,"Ново-Савиновский","МАОУ «Лицей-интернат №7»","Абдулхаков","Артур","Айратович",8,"2004-07-17","M",200,null,200,400,"призер","Азимуратов Шухрат Батырович","  МАОУ «Лицей-интернат №7» "]
[16,"Вахитовский","Общеобразовательная школа-интернат «Лицей имени Н. И. Лобачевского» К(П)ФУ","Билалов","Эльдар","Фанилевич",8,"2005-02-20","M",200,null,200,400,"призер","Михайлин Сергей Иванович","Общеобразовательная школа-интернат «Лицей имени Н. И. Лобачевского» К(П)ФУ "]
[17,"Московский","МБОУ «Гимназия №122 имени Ж.А Зайцевой»","Зверев ","Демьян ","Евгеньевич",8,"2005-03-16","M",200,null,200,400,"призер","Миннигулова Раиса Мухаметовна","МБОУ «Гимназия №122 имени Ж.А Зайцевой» "]
[18,"Приволжский","Лицей-интернат «IТ-лицей К(П)ФУ»","Камалов","Артур","Айдарович",8,"2004-07-06","M",200,null,200,400,"призер","Аншукова Венера Маратовна","Лицей-интернат «IТ-лицей К(П)ФУ» "]
[19,"Вахитовский","Общеобразовательная школа-интернат «Лицей имени Н. И. Лобачевского» К(П)ФУ","Каримов","Ренат","Айратович",7,"2006-06-18","M",200,null,200,400,"призер","Михайлин Сергей Иванович","Общеобразовательная школа-интернат «Лицей имени Н. И. Лобачевского» К(П)ФУ "]
[20,"Ново-Савиновский","МАОУ «Лицей-интернат №7»","Каримов","Минтимер","Ростямович",8,"2004-01-09","M",200,null,200,400,"призер","Азимуратов Шухрат Батырович","   МАОУ «Лицей-интернат №7» "]
[21,"Московский","МАОУ «Лицей-интернат №2» Московского района","Миннибаев","Карим","Ильсурович",8,"2004-06-09","M",200,null,200,400,"призер","Сафиулин Ильшат Ирикович","  МАОУ Лицей-интернат №2"]
[22,"Ново-Савиновский","Инженерный лицей КНИТУ-КАИ","Насыбуллин","Тимур","Альбертович",8,"2004-04-15","M",200,null,200,400,"призер","Исмаилова Наталья Владимировна","  Инженерный лицей КНИТУ-КАИ "]
[23,"Приволжский","Лицей-интернат «IТ-лицей К(П)ФУ»","Сираев","Роберт","Рустемович",7,"2005-03-14","M",200,null,200,400,"призер","Хасанов Марат Гумярович","Лицей-интернат «IТ-лицей К(П)ФУ» "]
[24,"Приволжский","МАОУ «Гимназия №19»","Уваров","Тимур","Рустемович",8,"2005-03-26","M",200,null,200,400,"призер","Багаутдинов Зуфар Фаритович"," МАОУ «Гимназия №19» "]
[25,"Приволжский","Лицей-интернат «IТ-лицей К(П)ФУ»","Хасанов","Камиль","Альбертович",8,"2004-08-20","M",200,null,200,400,"призер","Хасанов Марат Гумярович","Лицей-интернат «IТ-лицей К(П)ФУ» "]
[26,"Московский","МАОУ «Лицей-интернат №2» Московского района","Шакирзянов","Юсуф","Ринатович",8,"2004-05-29","M",200,null,200,400,"призер","Сафиулин Ильшат Ирикович","  МАОУ Лицей-интернат №2"]
[27,"Московский","МАОУ «Лицей-интернат №2» Московского района","Шарыпов","Юсуф","Закирович",8,"2005-01-08","M",200,null,200,400,"призер","Сафиулин Ильшат Ирикович","  МАОУ «Лицей-интернат №2» Московского района "]
[28,"Буинский","Муниципальное бюджетное общеобразовательное учреждение \"Гимназия № 5 г. Буинска РТ\"","Журавлев","Владимир","Вячеславович",8,"2005-05-12","муж",200,null,200,500,"победитель","Каюиова Аида Раисовна","Муниципальное бюджетное общеобразовательное учреждение \"Гимназия № 5 г. Буинска РТ\""]
[29,"Верхнеуслонский","Государственное автономное общеобразовательное учреждение \"Лицей Иннополис\"","Гарипов","Фаргат","Ильшатович",8,"2004-04-03","м",200,null,200,400,"призер","Беляева Ольга Семёновна","Государственное автономное общеобразовательное учреждение \"Лицей Иннополис\""]
[30,"Верхнеуслонский","Государственное автономное общеобразовательное учреждение \"Лицей Иннополис\"","Загиров","Рузиль","Равилевич",8,"2004-04-20","м",200,null,200,400,"призер","Беляева Ольга Семёновна","Государственное автономное общеобразовательное учреждение \"Лицей Иннополис\""]
[31,"Верхнеуслонский","Государственное автономное общеобразовательное учреждение \"Лицей Иннополис\"","Магизов","Ильназ","Рафисович",8,"2004-10-15","м",200,null,200,400,"призер","Беляева Ольга Семёновна","Государственное автономное общеобразовательное учреждение \"Лицей Иннополис\""]
[32,"Лениногорский","МБОУ \"СОШ №7 г.Лениногорска\" МО \"Лениногорский муниципальный район\" РТ (школа-центр компетенции в электронном образовании)","Никитин","Богдан","Петрович",8,"2003-11-26","м",200,0,200,400,"призер","Ахметшина Альбина Хамитовна","МБОУ \"СОШ №7 г.Лениногорска\" МО \"Лениногорский муниципальный район\" РТ (школа-центр компетенции в электронном образовании)"]
[33,"Московский","МБОУ «Гимназия №94»","Хамитова","Ильмира","Равильевна",8,"2004-04-11","Ж",190,null,190,400,null,"Зиннатова    Ильмира    Рифовна    "," МБОУ «Гимназия №94» "]
[34,"Приволжский","Лицей-интернат «IТ-лицей К(П)ФУ»","Ефремов","Александр","Дмитриевич",8,"2004-03-27","M",170,null,170,400,null,"Хасанов Марат Гумярович","Лицей-интернат «IТ-лицей К(П)ФУ» "]
[35,"Вахитовский","МАОУ «Лицей №131»","Ибрагимов","Артем","Ринатович",7,"2005-01-08","M",170,null,170,400,null,"Султанов Азат Фаритович","АНО ВО Университет Иннополис"]
[36,"Вахитовский","МАОУ «Лицей №131»","Исхаков","Булат","Раисович",7,"2005-06-09","M",170,null,170,400,null,"Абиров Ансат Нурланович"," АНО ВО Университет Иннополис"]
[37,"Вахитовский","Общеобразовательная школа-интернат «Лицей имени Н. И. Лобачевского» К(П)ФУ","Поливин","Никита","Евгеньевич",7,"2005-10-18","M",170,null,170,400,null,"Михайлин Сергей Иванович","Общеобразовательная школа-интернат «Лицей имени Н. И. Лобачевского» К(П)ФУ "]
[38,"Ново-Савиновский","МБОУ «Гимназия №7» Ново-Савиновского района г.Казани. Школа-центр компетенции в электронном образовании","Сафин","Булат","Рамилевич",7,"2005-12-20","M",170,null,170,400,null,"Шабаев Марат Хиалиевич","       МБОУ «Гимназия №7» Ново-Савиновского района г.Казани. Школа-центр компетенции в электронном образовании "]
[39,"Московский","МАОУ «Лицей-интернат №2» Московского района","Чекардов","Михаил","Романович",7,"2005-08-11","M",170,null,170,400,null,"Сафиулин Ильшат Ирикович","     МАОУ Лицей-интернат №2"]
[40,"Альметьевский","МАОУ \"Лицей-интернат №1\" г.Альметьевска Республики Татарстан","Аглиев","Камиль","Марселевич",8,"2004-10-08","м",170,0,{"$f":"J42","v":170},400,"Призер","Нафиков Данил Рашидович","МАОУ \"Лицей-интернат №1\" г.Альметьевска Республики Татарстан"]
[41,"Альметьевский","МАОУ \"Лицей-интернат №1\" г.Альметьевска Республики Татарстан","Искаков","Исмагил","Маратович",8,"2004-12-08","м",170,0,{"$f":"J43","v":170},400,"Призер","Нафиков Данил Рашидович","МАОУ \"Лицей-интернат №1\" г.Альметьевска Республики Татарстан"]
[42,"Бугульминский","Муниципальное бюджетное общеобразовательное учреждение лицей-интернат имени Мустафы Онджеля Бугульминского муниципального района Республики Татарстан","Мусин","Камиль","Артурович",8,"2004-07-08","муж",170,0,170,400,"участник","Чиглаков Ильдар Андреевич","МБОУ лицей-интернат имени Мустафы Онджеля"]
[43,"Верхнеуслонский","Государственное автономное общеобразовательное учреждение \"Лицей Иннополис\"","Горбатюк","Олег","Дмитриевич",8,"2004-06-20","м",170,null,170,400,"участник","Беляева Ольга Семёновна","Государственное автономное общеобразовательное учреждение \"Лицей Иннополис\""]
[44,"Набрежные Челны","МБОУ \"Гимназия №26\"","Данилов","Тимофей","Николаевич",8,"2004-01-05","муж",170,null,170,400,"участник","Волошина Гульшат Мунировна","МБОУ \"Гимназия №26\""]
[45,"Московский","МАОУ «Лицей-интернат №2» Московского района","Григорьянц","Даниль","Денисович",7,"2006-01-11","M",140,null,140,400,null,"Сафиулин Ильшат Ирикович","   МАОУ Лицей-интернат №2"]
[46,"Ново-Савиновский","МАОУ «Лицей-интернат №7»","Ижецкий ","Виталий","Андреевич",8,"2004-12-08","M",140,null,140,400,null,"Азимуратов Шухрат Батырович","   МАОУ «Лицей-интернат №7» "]
[47,"Вахитовский","МАОУ «Лицей №131»","Королев","Иван","Андреевич",8,"2004-03-07","M",140,null,140,400,null,"Султанов Азат Фаритович","АНО ВО Университет Иннополис"]
[48,"Ново-Савиновский","МАОУ «Лицей-интернат №7»","Низамов","Айнур","Мулланурович",8,"2003-10-15","M",140,null,140,400,null,"Азимуратов Шухрат Батырович","   МАОУ «Лицей-интернат №7» "]
[49,"Вахитовский","Общеобразовательная школа-интернат «Лицей имени Н. И. Лобачевского» К(П)ФУ","Павлов","Илья","Дмитриевич",8,null,"M",140,null,140,400,null,"Михайлин Сергей Иванович","Общеобразовательная школа-интернат «Лицей имени Н. И. Лобачевского» К(П)ФУ "]
[50,"Приволжский","Лицей-интернат «IТ-лицей К(П)ФУ»","Сабирьянова","Регина","Руслановна",7,"2005-01-09","Ж",140,null,140,400,null,"Хасанов Марат Гумярович"," Лицей-интернат «IТ-лицей К(П)ФУ» "]
[51,"Рыбно-Слободский","Муниципальное бюджетное общеобразовательное учреждение \"Рыбно-Слободская СОШ№2\" Рыбно-Слободского муниципального района Республики Татарстан","Кузнецов","Павел","Андреевич",8,"2004-03-09","муж",140,null,140,400,"победитель","Кашапов Юнус Абдулхамитович","Муниципальное бюджетное общеобразовательное учреждение \"Рыбно-Слободская СОШ№2\" Рыбно-Слободского муниципального района Республики Татарстан"]
[52,"Рыбно-Слободский","Муниципальное бюджетное общеобразовательное учреждение \"Рыбно-Слободская СОШ№2\" Рыбно-Слободского муниципального района Республики Татарстан","Мокроусов","Иван","Сергеевич",8,"2004-04-27","муж",140,null,140,400,"призер","Кашапов Юнус Абдулхамитович","Муниципальное бюджетное общеобразовательное учреждение \"Рыбно-Слободская СОШ№2\" Рыбно-Слободского муниципального района Республики Татарстан"]
[53,"Приволжский","МАОУ «Гимназия №19»","Абдуллин","Адель","Айратович",8,"2004-07-15","M",120,null,120,400,null,"Багаутдинов Зуфар Фаритович","МАОУ «Гимназия №19» "]
[54,"Вахитовский","Общеобразовательная школа-интернат «Лицей имени Н. И. Лобачевского» К(П)ФУ","Родионов ","Валерий",null,7,null,"М",120,null,120,400,null,"Михайлин Сергей Иванович","Общеобразовательная школа-интернат «Лицей имени Н. И. Лобачевского» К(П)ФУ"]
[55,"Бугульминский","Муниципальное бюджетное общеобразовательное учреждение средняя общеобразовательная школа №6 с углубленным изучением отдельных предметов Бугульминского муниципального района РТ","Усманов","Тимур","Ринатович",7,"20.03.2005","муж",120,0,120,400,"участник","Фархутдинова Резеда Загитовна","МБОУ СОШ №6"]
[56,"Рыбно-Слободский","Муниципальное бюджетное общеобразовательное учреждение \"Рыбно-Слободская СОШ№2\" Рыбно-Слободского муниципального района Республики Татарстан","Гилазов","Данис","Маратович",8,"12.19.2004","муж",120,null,120,400,null,"Кашапов Юнус Абдулхамитович","Муниципальное бюджетное общеобразовательное учреждение \"Рыбно-Слободская СОШ№2\" Рыбно-Слободского муниципального района Республики Татарстан"]
[57,"Рыбно-Слободский","Муниципальное бюджетное общеобразовательное учреждение \"Рыбно-Слободская СОШ№2\" Рыбно-Слободского муниципального района Республики Татарстан","Клюев","Максим","Сергеевич",8,"10.26.2004","муж",120,null,120,400,null,"Кашапов Юнус Абдулхамитович","Муниципальное бюджетное общеобразовательное учреждение \"Рыбно-Слободская СОШ№2\" Рыбно-Слободского муниципального района Республики Татарстан"]
[58,"Рыбно-Слободский","Муниципальное бюджетное общеобразовательное учреждение \"Рыбно-Слободская СОШ№2\" Рыбно-Слободского муниципального района Республики Татарстан","Борисов","Артур","Валерьевич",8,"2004-01-05","муж",120,null,120,400,null,"Кашапов Юнус Абдулхамитович","Муниципальное бюджетное общеобразовательное учреждение \"Рыбно-Слободская СОШ№2\" Рыбно-Слободского муниципального района Республики Татарстан"]
[59,"Ново-Савиновский","МАОУ «Лицей-интернат №7»","Мистюрин","Илья ","Ильич",8,"2004-04-26","M",100,null,100,400,null,"Азимуратов Шухрат Батырович","    МАОУ «Лицей-интернат №7» "]
[60,"Приволжский","Лицей-интернат «IТ-лицей К(П)ФУ»","Нигматуллин","Руслан","Рамильевич",8,"2004-05-28","M",100,null,100,400,null,"Хасанов Марат Гумярович","Лицей-интернат «IТ-лицей К(П)ФУ» "]
[61,"Вахитовский","МАОУ «Лицей №131»","Трапезников","Роман","Дмитриевич",7,"2005-05-19","M",100,null,100,400,null,"Шалбаева Лилия Владимировна","МАОУ «Лицей №131» "]
[62,"Нижнекамский","МБОУ \"Лицей-интернат № 24\"","Калошин","Георгий","Вадимович",8,"2004-11-25","муж",100,null,100,400,"Участник","Зиганшин Рустем Мударисович","МБОУ \"Лицей-интернат № 24\""]
[63,"Набрежные Челны","МАОУ \"Гимназия №77\" г.Набережные Челны","Ахметова","Тансылу","Радиковна",8,"2004-03-09","жен",100,null,100,400,"участник","Цибякова Марина Михайловна","МАОУ \"Гимназия №77\" г.Набережные Челны"]
[64,"Приволжский","Лицей-интернат «IТ-лицей К(П)ФУ»","Насыбуллин","Карим","Айратович",8,"2004-09-20","M",85,null,85,400,null,"Хасанов Марат Гумярович","Лицей-интернат «IТ-лицей К(П)ФУ» "]
[65,"Вахитовский","МАОУ «Лицей №131»","Антоненко","Андрей","Александрович",8,"2004-08-09","M",70,null,70,400,null,"Аитов Руслан Рашидович","МАОУ «Лицей №131» "]
[66,"Набрежные Челны","МБОУ \"Гимназия №26\"","Авзалов","Артур","Марсович",7,"2005-03-11","муж",65,null,65,400,"участник","Волошина Гульшат Мунировна","МБОУ \"Гимназия №26\""]
[67,"Ново-Савиновский","МАОУ «Лицей-интернат №7»","Бикмухаметов","Ильяс","Наилевич",8,"2004-07-09","M",50,null,50,400,null,"Азимуратов Шухрат Батырович","    МАОУ «Лицей-интернат №7» "]
[68,"Приволжский","Лицей-интернат «IТ-лицей К(П)ФУ»","Газизов","Данияр","Дамирович",7,"2006-06-15","M",50,null,50,400,null,"Хасанов Марат Гумярович","Лицей-интернат «IТ-лицей К(П)ФУ» "]
[69,"Приволжский","МБОУ «Гимназия №6»","Зайнутдинов","Артемий","Денисович",7,"2005-03-08","M",50,null,50,400,null,"Смирнова Адела Викторовна","МБОУ «Гимназия №6» "]
[70,"Вахитовский","Общеобразовательная школа-интернат «Лицей имени Н. И. Лобачевского» К(П)ФУ","Козуб","Сергей","Александрович",8,null,"M",50,null,50,400,null,"Михайлин Сергей Иванович","Общеобразовательная школа-интернат «Лицей имени Н. И. Лобачевского» К(П)ФУ "]
[71,"Советский","МБОУ «Гимназия №8»","Тимуршин","Булат","Рамилевич",8,"2004-08-29","M",50,null,50,400,null,"Наумов Максим Владимирович","   МБОУ «Гимназия №8» "]
[72,"Приволжский","Лицей-интернат «IТ-лицей К(П)ФУ»","Хамзин","Рамиль","Денисович",7,"2005-08-01","M",50,null,50,400,null,"Хасанов Марат Гумярович","Лицей-интернат «IТ-лицей К(П)ФУ» "]
[73,"Бугульминский","Муниципальное бюджетное общеобразовательное учреждение лицей-интернат имени Мустафы Онджеля Бугульминского муниципального района Республики Татарстан","Ахметов","Айдар","Илькамович",8,"2004-11-08","муж",50,0,50,400,"участник","Чиглаков Ильдар Андреевич","МБОУ лицей-интернат имени Мустафы Онджеля"]
[74,"Елабужский","МБОУ \"Средняя общеобразовательная школа № 9  с углубленным изучением отдельных предметов\"Елабужского муниципального района Республики Татарстан","Мирзаев","Марс","Баходирович",8,"2004-02-23","муж",50,null,50,400,null,"Тамакова Татьяна Федоровна","МБОУ \"Средняя общеобразовательная школа № 9  с углубленным изучением отдельных предметов\"Елабужского муниципального района Республики Татарстан"]
[75,"Нурлатский","Муниципальное автономное общеобразовательное учреждение \"Нурлатская гимназия имени Героя Советского Союза  Михаила Егоровича Сергеева\" г.Нурлат","Иванов","Максим","Алексеевич",8,"2004-07-24","муж",50,null,50,400,null,"Фадькин Алексей Владимирович","Муниципальное автономное общеобразовательное учреждение \"Нурлатская гимназия имени Героя Советского Союза  Михаила Егоровича Сергеева\" г.Нурлат"]
[76,"Пестречинский","МБОУ «Пестречинская средняя общеобразовательная школа №2 »","Харитонов","Денис","Сергеевич",8,null,"муж",50,0,50,400,null,"Валеева Гульчечек Фанисовна","МБОУ «Пестречинская средняя общеобразовательная школа №2 »"]
[77,"Сабинский","Муниципальное бюджетное общеобразовательное учреждение \"Средняя общеобразовательная школа-интернат с углубленным изучением отдельных предметов для одаренных детей\" Сабинского муниципального района Республики Татарстан ","Зиннуров","Фанис","Рамилевич",8,"2004-02-27","муж. ",50,0,50,400,"Участник","Гаптерахимов Расим Таснимович","Муниципальное бюджетное общеобразовательное учреждение \"Средняя общеобразовательная школа-интернат с углубленным изучением отдельных предметов для одаренных детей\" Сабинского муниципального района Республики Татарстан "]
[78,"Набрежные Челны","муниципальное бюджетное общеобразовательное учреждение «Средняя общеобразовательная школа №60»","Санников","Никита","Васильевич",8,"2004-05-10","муж",50,null,50,400,"участник","Грязнова Анна Валентиновна","муниципальное бюджетное общеобразовательное учреждение «Средняя общеобразовательная школа №60»"]
[79,"Набрежные Челны","МАОУ \"Гимназия №61\" г.Набережные Челны","Сидоров","Денис","Сергеевич",8,"2004-05-15","муж",50,null,50,400,"участник","Альмухаметов Мансур Ибрагимович","МАОУ \"Гимназия №61\" г.Набережные Челны"]
[80,"Приволжский","Лицей-интернат «IТ-лицей К(П)ФУ»","Бламыков","Тимур","Марселевич",7,"2006-02-04","M",30,null,30,400,null,"Хасанов Марат Гумярович","Лицей-интернат «IТ-лицей К(П)ФУ» "]
[81,"Московский","МБОУ «Гимназия №122 имени Ж.А Зайцевой»","Ершов  ","Станислав ","Сергеевич",7,"2005-02-22","M",30,null,30,400,null,"Миннигулова Раиса Мухаметовна"," МБОУ «Гимназия №122 имени Ж.А Зайцевой» "]
[82,"Приволжский","Лицей-интернат «IТ-лицей К(П)ФУ»","Кашапов","Амир","Айратович",7,"2005-04-29","M",30,null,30,400,null,"Хасанов Марат Гумярович","Лицей-интернат «IТ-лицей К(П)ФУ» "]
[83,"Приволжский","Лицей-интернат «IТ-лицей К(П)ФУ»","Хасанов","Даниил","Ильшатович",7,"2006-12-12","M",30,null,30,400,null,"Хасанов Марат Гумярович","Лицей-интернат «IТ-лицей К(П)ФУ» "]
[84,"Тюлячинский","Муниципальное бюджетное общеобразовательное учреждение - Тюлячинская средняя общеобразовательная школа Тюлячинского муниципального района Республики Татарстан","Котдусов ","Булат ","Хайдарович",8,"2004-03-29","муж",30,0,30,400,"участник","Гаптрахманов Фанис Фанилевич","Муниципальное бюджетное общеобразовательное учреждение - Тюлячинская средняя общеобразовательная школа Тюлячинского муниципального района Республики Татарстан"]
[85,"Набрежные Челны","МБОУ \"Гимназия № 54\" г.Набережные Челны","Бикмухаметов","Радмир","Радикович",8,"2004-08-28","муж",30,null,30,400,"участник","Саетгараева Венера Раисовна","МБОУ \"Гимназия № 54\" г.Набережные Челны"]
[86,"Бугульминский","Муниципальное бюджетное общеобразовательное учреждение лицей №2 Бугульминского муниципального района РТ, \"Школа - центр компетенции в электронном образовании\"","Кучинский","Егор","Станиславович",8,"18.04.2004","муж",20,0,20,400,"участник","Потеряхин Антон Андреевич","МБОУ лицей №2"]
[87,"Мамадышский ","МБОУ \"СОШ№1 г. Мамадыш\"","Щербенев","Николай","Андреевич",8,"2004-03-12","муж",20,0,20,400,"участник","Самойлов Искандер ","МБОУ \"СОШ№1 г. Мамадыш\""]
[88,"Елабужский","МБОУ \"Основная школа №11\" Елабужского муниципального района Республики Татарстан","Хлевных","Владислав","Андреевич",8,"2004-05-12","муж",0,null,0,400,null,"Романов Семён Васильевич","МБОУ \"Основная школа № 11\" Елабужского муниципального района Республики Татарстан"]
[89,"Елабужский","МБОУ \"Основная школа № 11\" Елабужского муниципального района Республики Татарстан","Рукавишникова","Елизавета","Олеговна",7,"2005-11-03","жен",0,null,0,400,null,"Романов Семён Васильевич","МБОУ \"Основная школа № 11\" Елабужского муниципального района Республики Татарстан"]
[90,"Приволжский","Лицей-интернат «IТ-лицей К(П)ФУ»","Алиуллов","Булат","Алмазович",7,"2006-08-01","M",0,null,0,400,null,"Хасанов Марат Гумярович","Лицей-интернат «IТ-лицей К(П)ФУ» "]
[91,"Московский","МАОУ «Лицей-интернат №2» Московского района","Волков","Артем","Данилович",7,"2005-05-18","M",0,null,0,400,null,"Сафиулин Ильшат Ирикович","     МАОУ Лицей-интернат №2"]
[92,"Приволжский","Лицей-интернат «IТ-лицей К(П)ФУ»","Гатауллин","Ранэль","Эдуардович",7,"2005-02-16","M",0,null,0,400,null,"Хасанов Марат Гумярович","Лицей-интернат «IТ-лицей К(П)ФУ» "]
[93,"Советский","МБОУ «Средняя общеобразовательная школа №175»","Гафаров"," Руслан ","Сарварович",8,"2004-10-26","M",0,null,0,400,null,"Фазулзянова Лейсан Хамитовна","   МБОУ «Средняя общеобразовательная школа №175» "]
[94,"Приволжский","Лицей-интернат «IТ-лицей К(П)ФУ»","Закиров","Данил","Ренатович",7,"2006-01-10","M",0,null,0,400,null,"Хасанов Марат Гумярович","Лицей-интернат «IТ-лицей К(П)ФУ» "]
[95,"Приволжский","МАОУ «Гимназия №19»","Захаров","Данил","Геннадьевич",7,"2005-05-30","M",0,null,0,400,null,"Багаутдинов Зуфар Фаритович","  МАОУ «Гимназия №19» "]
[96,"Ново-Савиновский","МБОУ «Средняя общеобразовательная татарско-русская школа №23 с углубленным изучением отдельных предметов»","Лузин ","Андрей","Алексеевич",8,"2004-03-22","M",0,null,0,400,null,"Салихова Лилия Завдятовна"," МБОУ «Средняя общеобразовательная татарско-русская школа №23 с углубленным изучением отдельных предметов» "]
[97,"Приволжский","Лицей-интернат «IТ-лицей К(П)ФУ»","Муртазин","Айрат","Арманович",7,"2005-10-11","M",0,null,0,400,null,"Хасанов Марат Гумярович","Лицей-интернат «IТ-лицей К(П)ФУ» "]
[98,"Советский","Муниципальное бюджетное общеобразовательное учреждение «Средняя общеобразовательная школа № 169»","Неклюдов","Игорь","Дмитриевич",7,"2005-07-06","M",0,null,0,400,null,"Михайлов Валентин Васильевич","Муниципальное бюджетное общеобразовательное учреждение «Средняя общеобразовательная школа № 169» "]
[99,"Ново-Савиновский","МАОУ «Лицей-интернат №7»","Нигматуллин","Амир","Рамисович",8,"2003-11-28","M",0,null,0,400,null,"Азимуратов Шухрат Батырович","    МАОУ «Лицей-интернат №7» "]
[100,"Московский","МБОУ «Татарская гимназия №17 имени Г.Ибрагимова»","Раптов","Артемий","Игоревич",7,"2005-12-23","M",0,null,0,400,null,"Гайфуллин Ильнар Латыйпович","МБОУ «Татарская гимназия №17 имени Г.Ибрагимова» "]
[101,"Приволжский","МАОУ «Гимназия №19»","Салихов","Амир","Рамилевич",7,"2005-03-28","M",0,null,0,400,null,"Багаутдинов Зуфар Фаритович","  МАОУ «Гимназия №19» "]
[102,"Агрызский","Муниципальное бюджетное общеобразовательное учреждение \"Средняя общеобразовательная школа №2 города Агрыз Республики Татарстан\"","Шестаков","Тимур","Алексеевич",8,"2005-02-03","M",0,0,0,400,"участник","Пажбеков Радик Витальевич","Муниципальное бюджетное общеобразовательное учреждение \"Средняя общеобразовательная школа №2 города Агрыз Республики Татарстан\""]
[103,"Азнакаевский","Муниципальное бюджетное общеобразовательное учреждение «Средняя общеобразовательная школа села Какре-Елга» Азнакаевского муниципального района Республики Татарстан","Касимова ","Азалия ","Рамилевна",8,"2004-05-27","жен",0,null,0,400,"участник","Даминова Лилия Флусовна","Муниципальное бюджетное общеобразовательное учреждение «Средняя общеобразовательная школа села Какре-Елга» Азнакаевского муниципального района Республики Татарстан"]
[104,"Аксубаевский","МБОУ \"Старотимошкинская СОШ\"","Ястребов ","Дмитрий","Юрьевич",8,"2003-12-24","муж.",0,null,0,400,"участник","Мелентьева Светлана Сергеевна","МБОУ \"Старотимошкинская СОШ\""]
[105,"Актанышский","ГАОУ \"Гуманитарная гимназия-интернат для одаренных детей\"","Шакирзянов","Тимур","Ильсурович",7,null,"м",0,null,0,400,null,"Шамсетдинов Р.М.","ГАОУ \"Гуманитарная гимназия-интернат для одаренных детей\""]
[106,"Актанышский","МБОУ \"Татарско-Суксинская средняя общеобразовательная школа\"","Газетдинов","Айназ","Алгизович",7,null,"м",0,null,0,400,null,"Газизов Ф.Ф.","МБОУ \"Татарско-Суксинская средняя общеобразовательная школа\""]
[107,"Актанышский","МБОУ «Актанышская средняя общеобразовательная школа №2 с углубленным изучением отдельных предметов» ","Хамидуллин","Ильмаз","Алмазович",8,null,"м",0,null,0,400,null,"Гимазова Г.М.","МБОУ «Актанышская средняя общеобразовательная школа №2 с углубленным изучением отдельных предметов» "]
[108,"Актанышский","ГАОУ \"Гуманитарная гимназия-интернат для одаренных детей\"","Газетдинов","Айгиз","Илгизович",8,null,"м",0,null,0,400,null,"Шамсетдинов Р.М.","ГАОУ \"Гуманитарная гимназия-интернат для одаренных детей\""]
[109,"Актанышский","МБОУ \"Мари-Суксинская общая образовательная школа\"","Надриева","Яна","Марселевна",8,null,"ж",0,null,0,400,null,"Галиев Э.А.","МБОУ \"Мари-Суксинская общая образовательная школа\""]
[110,"Актанышский","МБОУ \"Бугадинская общая образовательная школа\"","Ахмадуллин","Рафаэль","Алмазович",8,null,"м",0,null,0,400,null,"Ахметдинова Г.Р.","МБОУ \"Бугадинская общая образовательная школа\""]
[111,"Актанышский","МБОУ \"Такталачукская общая образовательная школа\"","Бахтиев","Айдар","Рузилович",8,null,"м",0,null,0,400,null,"Гайсин Р.Р.","МБОУ \"Такталачукская общая образовательная школа\""]
[112,"Актанышский","МБОУ \"Уразаевская общая образовательная школа\"","Шарипова","Ляйля","Дилусовна",8,null,"ж",0,null,0,400,null,"Басырова Р.","МБОУ \"Уразаевская общая образовательная школа\""]
[113,"Алькеевский","МАОУ \"Базарно-Матакская средняя общеобразовательная школа\"","Гамбаров","Марсэль","Мехтиханович",8,"2004-09-22","м",0,null,0,400,null,"Зайнуллина Эльвира Замировна","МАОУ \"Базарно-Матакская средняя общеобразовательная школа\""]
[114,"Алькеевский","МБОУ \"Базарно-Матакская средняя общеобразовательная школа\"","Гнеденков","Александр","Константинович",8,"2004-01-26","м",0,null,0,400,null,"Зайнуллина Эльвира Замировна","МБОУ \"Базарно-Матакская средняя общеобразовательная школа\""]
[115,"Альметьевский","МАОУ \"Лицей №2\" г. Альметьевска Республики Татарстан","Галиев","Карим","Рафаэлович",7,"2005-02-08","м",0,0,{"$f":"J117","v":0},400,null,"Свиридченко Светлана Викторовна","МАОУ \"Лицей №2\" г. Альметьевска Республики Татарстан"]
[116,"Альметьевский","МАОУ \"Средняя общеобразовательная школа №16\" г. Альметьевска Республики Татарстан","Абзалов","Булат ","Вилнурович",8,"2004-10-06","м",0,0,{"$f":"J118","v":0},400,null,"Шарипзянов Дамир Илгизарович","МАОУ \"Средняя общеобразовательная школа №16\" г. Альметьевска Республики Татарстан"]
[117," Арский","МБОУ \"НовокырлайскаяМБОУ «Ново-Кырлайская СОШ имени Г.Тукая» \"","Закиров","Риназ","Рамилевич",8,"2005-02-07","м",0,0,0,400,"участник","Ганеев Ильнар Тауерисович","МБОУ \"НовокырлайскаяМБОУ «Ново-Кырлайская СОШ имени Г.Тукая» \""]
[118," Арский","МБОУ \"Арская средняя общеобразовательная школа №6\"","Фасахиев","Булат","Радикович",8,"2004-01-16","м",0,0,0,400,"участник","Файзуллин Ильшат Зиннурович","МБОУ \"Арская средняя общеобразовательная школа №6\""]
[119,"Атнинский","Муниципальное бюджетное общеобразовательное учреждение \"Кунгерская средняя общеобразовательная школа\" Атнинского муниципального района Республики Татарстан","Ахметзянов","Ильяс","Фирдавесович",8,"2004-01-27","муж",0,null,0,400,null,"Хакимзянова Алсу Мубаракзяновна","Муниципальное бюджетное общеобразовательное учреждение \"Кунгерская средняя общеобразовательная школа\" Атнинского муниципального района Республики Татарстан"]
[120,"Бавлинский","МБОУ \"Средняя общеобразовательная школа №1\" Бавлинского муниципального района Республики Татарстан","Исмаилов","Рахман","Рафикович",7,"20.08.2005г.","муж.",0,null,0,400,null,"Шайхутдинова Ильмира Чулпановна","МБОУ \"Средняя общеобразовательная школа №1\" Бавлинского муниципального района Республики Татарстан"]
[121,"Бавлинский","МБОУ \"Средняя общеобразовательная школа №1\" Бавлинского муниципального района Республики Татарстан","Шафигуллин","Артур","Рамисович",8,"10.04.2004г.","муж.",0,null,0,400,null,"Шайхутдинова Ильмира Чулпановна","МБОУ \"Средняя общеобразовательная школа №1\" Бавлинского муниципального района Республики Татарстан"]
[122,"Бавлинский","МБОУ \"Средняя общеобразовательная школа № 7\" Бавлинского муниципального района Республики Татарстан","Хузякаев","Вадим ","Равилевич",8,"30.05.2005г.","муж.",0,null,0,400,null,"Матянина Ольа Михайловна","МБОУ \"Средняя общеобразовательная школа № 7\" Бавлинского муниципального района Республики Татарстан"]
[123,"Высокогорский","МБОУ \"Высокогорская средняя общеобразовательная школа №3 Высокогорского муниципального района РТ\"","Рязанова ","Рузана ","Сергеевна",7,"2005-04-24","жен",0,null,0,400,null,"Шутраева Татьяна Николаевна","МБОУ \"Высокогорская средняя общеобразовательная школа №3 Высокогорского муниципального района РТ\""]
[124,"Высокогорский","МБОУ \"Усадская средняя общеобразовательная школа Высогорскогорского муниципального района РТ\"","Камашев","Лев","Алексеевич",7,"2005-10-24","муж",0,null,0,400,null,"Фатхутдинова Эндже Рафисовна","МБОУ \"Усадская средняя общеобразовательная школа Высогорскогорского муниципального района РТ\""]
[125,"Высокогорский","МБОУ \"Усадская средняя общеобразовательная школа Высогорскогорского муниципального района РТ\"","Ханов","Амир","Рамилович",7,"2005-01-28","муж",0,null,0,400,null,"Фатхутдинова Эндже Рафисовна","МБОУ \"Усадская средняя общеобразовательная школа Высогорскогорского муниципального района РТ\""]
[126,"Высокогорский","МБОУ \"Высокогорская средняя общеобразовательная школа №3 Высокогорского муниципального района РТ\"","Фатыхов","Камиль","Радикович",8,"2004-05-07","муж",0,null,0,400,null,"Шутраева Татьяна Николаевна","МБОУ \"Высокогорская средняя общеобразовательная школа №3 Высокогорского муниципального района РТ\""]
[127,"Высокогорский","МБОУ \"Высокогорская средняя общеобразовательная школа №1 Высокогорского муниципального района РТ\"","Цымбалюк","Владислав","Владимирович",8,"2004-03-11","муж",0,null,0,400,null,"Фомина Татьяна Николаевна","МБОУ \"Высокогорская средняя общеобразовательная школа №1 Высокогорского муниципального района РТ\""]
[128,"Елабужский","МБОУ \"Средняя общеобразовательная школа №10\" Елабужского муниципального района Республики Татарстан","Кучеров ","Илья","Алексеевич",8,"2004-07-24","муж",0,null,0,400,null,"Попырина Елена Павловна","МБОУ \"Средняя общеобразовательная школа №10\" Елабужского муниципального района Республики Татарстан"]
[129,"Заинский","МБОУ \"ЗСОШ № 2 \""," Замарацких"," Илья",null,8,null," м",0,null,0,400,"участник","Александрова Наталия Николаевна","МБОУ \"ЗСОШ № 2\""]
[130,"Заинский","МБОУ ЗСОШ №4","Цветков","Александр",null,8,null,"ж",0,null,0,400,"участник","Игошина Марина Николаевна","МБОУ ЗСОШ №4"]
[131,"Зеленодольский","МБОУ «Лицей им. В.В.Карпова с. Осиново» ЗМР РТ","Галиаскаров","Артем","Альбертович",8,"2004-08-07","муж",0,0,0,400,null,"Леонтьева Ирина Николаевна","МБОУ «Лицей им. В.В.Карпова с. Осиново» ЗМР РТ"]
[132,"Камско-Устьинский","МБОУ «Сюкеевская средняя общеобразовательная школа\" Камско-Устьинского муниципального района Республики Татарстан","Карасёв","Дмитрий","Александрович",8,"2004-08-25","муж",0,0,0,400,"участник","Песков Аркадий Геннадьевич","МБОУ «Сюкеевская средняя общеобразовательная школа\" Камско-Устьинского муниципального района Республики Татарстан"]
[133,"Камско-Устьинский","МБОУ «Сюкеевская средняя общеобразовательная школа\" Камско-Устьинского муниципального района Республики Татарстан","Никонов","Данила","Сергеевич",8,"2004-12-01","муж",140,140,0,400,"участник","Песков Аркадий Геннадьевич","МБОУ «Сюкеевская средняя общеобразовательная школа\" Камско-Устьинского муниципального района Республики Татарстан"]
[134,"Лениногорский","МБОУ \"СОШ №2 г.Лениногорска\" МО \"Лениногорский муниципальный район\" РТ","Вафин  ","Артур","Ленарович",7,"2005-08-27","м",0,0,0,400,"участник","Санатуллина Голнур Ильясовна","МБОУ \"СОШ №2 г.Лениногорска\" МО \"Лениногорский муниципальный район\" РТ"]
[135,"Лениногорский","МБОУ \"СОШ №5 г.Лениногорска\" МО \"Лениногорский муниципальный район\" РТ","Мухутдинов ","Камиль ","Ильдарович",7,"2005-07-07","м",0,0,0,400,"участник","Камалова Нафиса Ахатовна","МБОУ \"СОШ №5 г.Лениногорска\" МО \"Лениногорский муниципальный район\" РТ"]
[136,"Лениногорский","МБОУ \"СОШ №5 г.Лениногорска\" МО \"Лениногорский муниципальный район\" РТ","Сабитов  ","Данис","Ленарович",7,"2005-08-10","м",0,0,0,400,"участник","Камалова Нафиса Ахатовна","МБОУ \"СОШ №5 г.Лениногорска\" МО \"Лениногорский муниципальный район\" РТ"]
[137,"Лениногорский","МБОУ \"СОШ №5 г.Лениногорска\" МО \"Лениногорский муниципальный район\" РТ","Лысов  ","Богдан","Александрович",7,"2005-04-11","м",0,0,0,400,"участник","Камалова Нафиса Ахатовна","МБОУ \"СОШ №5 г.Лениногорска\" МО \"Лениногорский муниципальный район\" РТ"]
[138,"Лениногорский","МБОУ \"СОШ №5 г.Лениногорска\" МО \"Лениногорский муниципальный район\" РТ","Калинин ","Павел"," Андреевич",7,"2005-12-20","м",0,0,0,400,"участник","Камалова Нафиса Ахатовна","МБОУ \"СОШ №5 г.Лениногорска\" МО \"Лениногорский муниципальный район\" РТ"]
[139,"Лениногорский","МБОУ \"СОШ №2 г.Лениногорска\" МО \"Лениногорский муниципальный район\" РТ","Жакова ","Аделина ","Викторовна",8,"2004-08-12","ж",0,0,0,400,"участник","Санатуллина Голнур Ильясовна","МБОУ \"СОШ №2 г.Лениногорска\" МО \"Лениногорский муниципальный район\" РТ"]
[140,"Лениногорский","МБОУ \"СОШ №5 г.Лениногорска\" МО \"Лениногорский муниципальный район\" РТ","Ибрагимов ","Айдар ","Ильдарович",8,"2004-01-16","м",0,0,0,400,"участник","Камалова Нафиса Ахатовна","МБОУ \"СОШ №5 г.Лениногорска\" МО \"Лениногорский муниципальный район\" РТ"]
[141,"Лениногорский","МБОУ \"СОШ №7 г.Лениногорска\" МО \"Лениногорский муниципальный район\" РТ (школа-центр компетенции в электронном образовании)","Валидова","Наиза","Алмазовна",8,"2004-05-26","ж",0,0,0,400,"участник","Осипова Ольга Владимировна","МБОУ \"СОШ №7 г.Лениногорска\" МО \"Лениногорский муниципальный район\" РТ (школа-центр компетенции в электронном образовании)"]
[142,"Лениногорский","МБОУ \"Шугуровская СОШ имени В.П.Чкалова\" МО \"Лениногорский муниципальный район\" РТ","Хасанов","Алан","Русланович",8,"2005-03-06","м",0,0,0,400,"участник","Ханиева Алина Раифовна","МБОУ \"Шугуровская СОШ имени В.П.Чкалова\" МО \"Лениногорский муниципальный район\" РТ"]
[143,"Мензелинский","МБОУ «Средняя общеобразовательная школа №1\" города Мензелинска Республики Татарстан","Исламов","Давид ","Русланович",7,"2005-02-21","муж",0,0,0,400,null,"Салимова Гульфия Максутовна","МБОУ «Средняя общеобразовательная школа №1\" города Мензелинска Республики Татарстан"]
[144,"Мензелинский","МБОУ «Средняя общеобразовательная школа №1\" города Мензелинска Республики Татарстан","Набиева","Милена","Радиковна",7,"2005-03-01","жен",0,0,0,400,null,"Салимова Гульфия Максутовна","МБОУ «Средняя общеобразовательная школа №1\" города Мензелинска Республики Татарстан"]
[145,"Мензелинский","МБОУ «Средняя общеобразовательная школа №1\" города Мензелинска Республики Татарстан","Рубцов ","Владислав ","Витальевич",7,"2005-05-17","муж",0,0,0,400,null,"Салимова Гульфия Максутовна","МБОУ «Средняя общеобразовательная школа №1\" города Мензелинска Республики Татарстан"]
[146,"Муслюмовский","МБОУ \"Амикеевская основная общеобразовательная школа\"  Муслюмовского муниципального района Республики Татарстан","Шакирянов","Рузаль","Райханович",8,"2004-09-23","М",0,0,0,400,null,"Суфиахметов Илдар Василович","МБОУ \"Амикеевская основная общеобразовательная школа\"  Муслюмовского муниципального района Республики Татарстан"]
[147,"Муслюмовский","МБОУ \"Муслюмовский лицей\" Муслюмовского муниципального района Республики Татарстан","Парфенов","Данил","Олегович",8,"2004-06-11","М",0,0,0,400,null,"Мирасов Ильгам Халилевич","МБОУ \"Муслюмовский лицей\" Муслюмовского муниципального района Республики Татарстан"]
[148,"Нижнекамский","МБОУ \"Лицей-интернат № 24\"","Шарыгин","Никита","Андреевич",7,"2005-02-19","муж",0,null,0,400,"Участник","Зиганшин Рустем Мударисович","МБОУ \"Лицей-интернат № 24\""]
[149,"Нижнекамский","МБОУ \"Лицей-интернат № 24\"","Макаршин","Тимофей","Алексеевич",7,"2005-01-31","муж",0,null,0,400,"Участник","Зиганшин Рустем Мударисович","МБОУ \"Лицей-интернат № 24\""]
[150,"Нижнекамский","МБОУ \"Лицей-интернат № 24\"","Абдуллин","Данияр","Зуфарович",7,"2005-01-04","муж",0,null,0,400,"Участник","Зиганшин Рустем Мударисович","МБОУ \"Лицей-интернат № 24\""]
[151,"Нижнекамский","МБОУ \"Лицей-интернат № 24\"","Сапаров ","Артем ","Александрович",8,"2004-05-08","муж",0,null,0,400,"Участник","Зиганшин Рустем Мударисович","МБОУ \"Лицей-интернат № 24\""]
[152,"Нижнекамский","МБОУ \"Лицей-интернат № 24\"","Гареев","Карим","Тагирович",8,"2004-06-22","муж",0,null,0,400,"Участник","Зиганшин Рустем Мударисович","МБОУ \"Лицей-интернат № 24\""]
[153,"Нижнекамский","МБОУ \"Лицей № 35\"","Мылтыкбаев","Арур","Алмазович",8,"2003-11-11","муж",0,null,0,400,"Участник","Яхина Алсу Фазыловна","МБОУ \"Лицей № 35\""]
[154,"Нижнекамский","МБОУ \"Гимназия № 2 имени Баки Урманче\"","Гирфанов","Нияз","Рустемович",8,"2004-02-27","муж",0,null,0,400,"Участник","Исламова Илиза Халафовна","МБОУ \"Гимназия № 2 имени Баки Урманче\""]
[155,"Нижнекамский","МБОУ \"Гимназия № 2 имени Баки Урманче\"","Рахимов Азат"," Азат","Дамирович",8,"2004-03-31","муж",0,null,0,400,"Участник","Федулаева Гульназ Расимовна","МБОУ \"Гимназия № 2 имени Баки Урманче\""]
[156,"Рыбно-Слободский","Муниципальное бюджетное общеобразовательное учреждение \"Кутлу-Букашская средняя общеобразовательная школа\" Рыбно-Слободского муниципального района Республики Татарстан","Закиров","Инсаф","Ильфатович",8,"9.6.2004","муж",0,null,0,400,null,"Гилазиев Рамиль Шамилевич","Муниципальное бюджетное общеобразовательное учреждение \"Кутлу-Букашская средняя общеобразовательная школа\" Рыбно-Слободского муниципального района Республики Татарстан"]
[157,"Рыбно-Слободский","Муниципальное бюджетное общеобразовательное учреждение \"Кутлу-Букашская средняя общеобразовательная школа\" Рыбно-Слободского муниципального района Республики Татарстан","Юнусова","Алсу","Фанисовна",8,"12.29.2003","жен",0,null,0,400,null,"Гилазиев Рамиль Шамилевич","Муниципальное бюджетное общеобразовательное учреждение \"Кутлу-Букашская средняя общеобразовательная школа\" Рыбно-Слободского муниципального района Республики Татарстан"]
[158,"Сабинский","Муниципальное бюджетное общеобразовательное учреждение  \"Завод-Ныртинская  средняя общеобразовательная школа имени И.С.Башкирова Сабинского муниципального района Республики Татарстан\"","Газизулин","Радик","Рамзилович",7,"2005-01-11","муж. ",0,0,0,400,"Участник","Исмагилов Айдар Айратович","Муниципальное бюджетное общеобразовательное учреждение  \"Завод-Ныртинская  средняя общеобразовательная школа имени И.С.Башкирова Сабинского муниципального района Республики Татарстан\""]
[159,"Сабинский","Муниципальное бюджетное общеобразовательное учреждение  \"Юлбатская основная общеобразовательная школа Сабинского муниципального района Республики Татарстан\"","Валиев","Ильгизар","Ильназович",8,"2003-12-17","муж. ",0,0,0,400,"Участник","Хасанова Миляуша Мулламухаметовна","Муниципальное бюджетное общеобразовательное учреждение  \"Юлбатская основная общеобразовательная школа Сабинского муниципального района Республики Татарстан\""]
[160,"Сабинский","Муниципальное бюджетное общеобразовательное учреждение \"Средняя общеобразовательная школа-интернат с углубленным изучением отдельных предметов для одаренных детей\" Сабинского муниципального района Республики Татарстан ","Мавлетов","Саид","Рустамович","7(6)","2006-01-27","муж. ",0,0,0,400,"Участник","Гаптерахимов Расим Таснимович","Муниципальное бюджетное общеобразовательное учреждение \"Средняя общеобразовательная школа-интернат с углубленным изучением отдельных предметов для одаренных детей\" Сабинского муниципального района Республики Татарстан "]
[161,"Сармановский"," \"Старокаширская средняя общеобразовательная школа\" ","Миннегулов","Данил","Нафисович",8,"2004-11-06","муж",0,null,0,400,null,"Ахметшин Альберт Флерович"," \"Старокаширская средняя общеобразовательная школа\" "]
[162,"Тюлячинский","Муниципальное бюджетное общеобразовательное учреждение - Тюлячинская средняя общеобразовательная школа Тюлячинского муниципального района Республики Татарстан","Сабирзянов","Инсаф","Нуримханович",8,"2004-09-07","муж",0,0,0,400,"участник","Гаптрахманов Фанис Фанилевич","Муниципальное бюджетное общеобразовательное учреждение - Тюлячинская средняя общеобразовательная школа Тюлячинского муниципального района Республики Татарстан"]
[163,"Тюлячинский","Муниципальное бюджетное общеобразовательное учреждение - Тюлячинская средняя общеобразовательная школа Тюлячинского муниципального района Республики Татарстан","Гарипов","Руслан","Айратович",8,"2003-11-25","муж",0,0,0,400,"участник","Гаптрахманов Фанис Фанилевич","Муниципальное бюджетное общеобразовательное учреждение - Тюлячинская средняя общеобразовательная школа Тюлячинского муниципального района Республики Татарстан"]
[164,"Тюлячинский","Муниципальное бюджетное общеобразовательное учреждение - Шадкинская средняя общеобразовательная школа Тюлячинского муниципального района Республики Татарстан","Якупова","Алина","Азатовна",8,"2003-09-20","жен",0,0,0,400,"участник","Музафаров Ильнар Гилфанович","Муниципальное бюджетное общеобразовательное учреждение - Шадкинская  средняя общеобразовательная школа Тюлячинского муниципального района Республики Татарстан"]
[165,"Чистопольский","Муниципальное бюджетное общеобразовательное учреждение \"Средняя общеобразовательная школа №1\" Чистопольского муниципального района Республики Татарстан","Публиков","Ярослав","Юрьевич",7,"2005-06-11","м",0,0,0,400,null,"Казакова Светлана Харисовна","Муниципальное бюджетное общеобразовательное учреждение \"Средняя общеобразовательная школа №1\" Чистопольского муниципального района Республики Татарстан"]
[166,"Набрежные Челны","МБОУ \"Средняя общеобразовательная школа №43 углублённым изучением отдельных предметов\" г.Набережные Челны","Агафонов ","Данил ","Константинович",7,"2005-08-26","муж",0,null,0,400,"участник","Абдуллина Галия Оспановна","МБОУ \"Средняя общеобразовательная школа №43 углублённым изучением отдельных предметов\" г.Набережные Челны"]
[167,"Набрежные Челны","МАОУ  \"Кадетская школа №49\"","Актаев ","Вадим","Алексеевич",7,"2005-04-27","муж",0,null,0,400,"участник","Фаязова Гульчачак Зуфаковна ","МАОУ  \"Кадетская школа №49\""]
[168,"Набрежные Челны","Муниципальное бюджетное общеобразовательное учреждение \"Лицей-интернат №79\"","Баязитов","Амир","Ильшатович",7,"2004-12-13","муж",0,null,0,400,"участник","Галлямов Динар Мунавирович","Муниципальное бюджетное общеобразовательное учреждение \"Лицей-интернат №79\""]
[169,"Набрежные Челны","ГБОУ \"Кадетская школа полиции \"Калкан\", г.Набережные Челны","Герасина ","Екатерина","Владимировна",7,"2005-06-25","жен",0,null,0,400,"участник","Юсупова Лейла Фирдаусоввна","ГБОУ \"Кадетская школа полиции \"Калкан\", г.Набережные Челны"]
[170,"Набрежные Челны","МБОУ \"Средняя общеобразовательная школа №41\" г.Набережные Челны","Захарова","Анастасия ","Валерьевна",7,"2005-08-31","жен",0,null,0,400,"участник","Ермакова Марина Валентиновна","МБОУ \"Средняя общеобразовательная школа №41\" г.Набережные Челны"]
[171,"Набрежные Челны","МБОУ \"Средняя общеобразовательная школа №50 с углублённым изучением отдельных предметов\" г.Набережные Челны","Меджитов","Иван","Сергеевич",7,"2005-01-06","муж",0,null,0,400,"участник","Хиневич Чулпан Ягфаровна","МБОУ \"Средняя общеобразовательная школа №50 с углублённым изучением отдельных предметов\" г.Набережные Челны"]
[172,"Набрежные Челны","МБОУ \"Средняя общеобразовательная школа №58\" г.Набережные Челны","Мингалев","Даниил ","Дмитриевич",7,"2005-07-10","муж",0,null,0,400,"участник","Насырова Эльза Виталиевна","МБОУ \"Средняя общеобразовательная школа №58\" г.Набережные Челны"]
[173,"Набрежные Челны","МБОУ \"Средняя общеобразовательная школа №30\" г.Набережные Челны","Пахомов","Никита","Сергеевич",7,"2005-03-20","муж",0,null,0,400,"участник","Кабирова Людмила Ивановна","МБОУ \"Средняя общеобразовательная школа №30\" г.Набережные Челны"]
[174,"Набрежные Челны","МБОУ \"Средняя общеобразовательная школа №19 с углублённым изучением отдельных предметов\" г.Набережные Челны","Абдуллин ","Тимур"," Айратович",8,"2004-07-26","муж",0,null,0,400,"участник","Мифтахова Гульнар Жаксылыковна","МБОУ \"Средняя общеобразовательная школа №19 с углублённым изучением отдельных предметов\" г.Набережные Челны"]
[175,"Набрежные Челны","МБОУ \"Средняя общеобразовательная школа №22\" г.Набережные Челны","Агеев","Иван","Дмитриевич",8,"2004-03-02","муж",0,null,0,400,"участник","Муллагалиева Лейсан Шаукатовна","МБОУ \"Средняя общеобразовательная школа №22\" г.Набережные Челны"]
[176,"Набрежные Челны","МБОУ \"Средняя общеобразовательная школа №44 с углублённым изучением отдельных предметов\" г.Набережные Челны","Акбашев","Алмаз ","Фанурович",8,"2004-10-20","муж",0,null,0,400,"участник","Абдульминов Радис Раилович","МБОУ \"Средняя общеобразовательная школа №44 с углублённым изучением отдельных предметов\" г.Набережные Челны"]
[177,"Набрежные Челны","МБОУ \"Средняя общеобразовательная школа №23\" г.Набережные Челны","Алдошин","Леонид",null,8,"2004-08-04","муж",0,null,0,400,"участник","Кузнецова Ольга Александровна","МБОУ \"Средняя общеобразовательная школа №23\" г.Набережные Челны"]
[178,"Набрежные Челны","МАОУ \"Средняя общеобразовательная школа №1\" г.Набережные Челны","Алексеев","Родион","Радионович",8,"2004-05-08","муж",0,null,0,400,"участник","Гиматдинова Ольга Викторовна","МАОУ \"Средняя общеобразовательная школа №1\" г.Набережные Челны"]
[179,"Набрежные Челны","МАОУ \"Средняя общеобразовательная школа №35 с углубленным изучением отдельных предметов\" г. Набережные Челны","Ахсанов","Айнур","Ильгамович",8,"2004-02-12","муж",0,null,0,400,"участник","Журавлева Елена Викторовна","МАОУ \"Средняя общеобразовательная школа №35 с углубленным изучением отдельных предметов\" г. Набережные Челны"]
[180,"Набрежные Челны","МАОУ \"Средняя общеобразовательная школа №51\" г.Набережные Челны","Бабаев","Марсель","Низамиевич",8,"2003-11-10","муж",0,null,0,400,"участник","Аввакумова Ольга Николаевна","МАОУ \"Средняя общеобразовательная школа №51\" г.Набережные Челны"]
[181,"Набрежные Челны","МБОУ \"Средняя общеобразовательная школа № 7\" г.Набережные Челны","Валеева","Наиля","Айратовна",8,"2003-12-20","жен",0,null,0,400,"участник","Давлетшина Татьяна Геннадьевна","МБОУ \"Средняя общеобразовательная школа № 7\" г.Набережные Челны"]
[182,"Набрежные Челны","МАОУ \"Лицей № 78 им. А.С.Пушкина\" г.Набережные Челны","Валетдинов ","Артур ","Радикович",8,"2004-02-01","муж",0,null,0,400,"участник","Ханнанова Сакина Талхиевна","МАОУ \"Лицей № 78 им. А.С.Пушкина\" г.Набережные Челны"]
[183,"Набрежные Челны","МБОУ \"Средняя  школа №33\" г.Набережные Челны","Вафина","Эльвира","Валентиновна",8,"2004-02-01","жен",0,null,0,400,"участник","Кадыров Шамиль Мударисович","МБОУ \"Средняя  школа №33\" г.Набережные Челны"]
[184,"Набрежные Челны","ЧОУ \"Средняя общеобразовательная школа \"Веста\" г.Набережные Челны","Власов","Максим","Сергеевич",8,"2003-02-08","муж",0,null,0,400,"участник","Камаева Резеда Назметдиновна","ЧОУ \"Средняя общеобразовательная школа \"Веста\" г.Набережные Челны"]
[185,"Набрежные Челны","МБОУ \"Гимназия № 29\"","Галамов ","Айназ","Ильназович",8,"2004-05-20","муж",0,null,0,400,"участник","Шакирова Лилия Дамировна","МБОУ \"Гимназия № 29\""]
[186,"Набрежные Челны","МБОУ \"Гимназия № 2 имени Мулланура Вахитова\" г.Набережные Челны","Галимзянов  ","Рафаэль","Ирекович",8,"2004-10-30","муж",0,null,0,400,"участник","Хазиева Альбина Мударисовна","МБОУ \"Гимназия № 2 имени Мулланура Вахитова\" г.Набережные Челны"]
[187,"Набрежные Челны","МАОУ \"Средняя общеобразовательная школа №21 \" г.Набережные Челны","Гатавлин ","Эмиль","Газинурович",8,"2003-12-06","муж",0,null,0,400,"участник","Фазлинуров Эльдар Айратович","МАОУ \"Средняя общеобразовательная школа №21 \" г.Набережные Челны"]
[188,"Набрежные Челны","МБОУ \"Средняя общеобразовательная школа №9\" г.Набережные Челны","Гилазетдинов        ","Артур","Ильгизарович",8,"2004-12-10","муж",0,null,0,400,"участник","Хуснутдинов Марат Ахатович","МБОУ \"Средняя общеобразовательная школа №9\" г.Набережные Челны"]
[189,"Набрежные Челны","МБОУ \"Средняя общеобразовательная школа №46\" г.Набережные Челны","Гилязиева","Лилия"," Шамилевна",8,"2004-08-16","жен",0,null,0,400,"участник","Костенко Вадим Алексеевич","МБОУ \"Средняя общеобразовательная школа №46\" г.Набережные Челны"]
[190,"Набрежные Челны","МАОУ \"Средняя общеобразовательная школа №4\" г.Набережные Челны","Губайдуллин","Линар","Ильнурович",8,"2004-02-29","муж",0,null,0,400,"участник","Киямов Слават Анасович","МАОУ \"Средняя общеобразовательная школа №4\" г.Набережные Челны"]
[191,"Набрежные Челны","МБОУ \"Средняя общеобразовательная школа №53\" г.Набережные Челны","Гурьянова","Елизавета","Александровна",8,"2004-07-07","жен",0,null,0,400,"участник","Ермакова Марина Валентиновна","МБОУ \"Средняя общеобразовательная школа №53\" г.Набережные Челны"]
[192,"Набрежные Челны","МБОУ \"Средняя общеобразовательная школа №11\" г. Набережные Челны","Евгеньева","Наталья","Вадимовна",8,"2004-04-07","жен",0,null,0,400,"участник","Иванова Татьяна Николаевна","МБОУ \"Средняя общеобразовательная школа №11\" г. Набережные Челны"]
[193,"Набрежные Челны","МАОУ \"Средняя общеобразовательная школа №15\" г.Набережные Челны","Еремин","Данил","Сергеевич",8,"2003-12-04","муж",0,null,0,400,"участник","Плохова Инна Николаевна","МАОУ \"Средняя общеобразовательная школа №15\" г.Набережные Челны"]
[194,"Набрежные Челны","МБОУ \"Средняя общеобразовательная школа №8 \" г.Набережные Челны","Жолобайло","Елизавета","Юрьевна",8,"2003-05-20","жен",0,null,0,400,"участник","Файзулина Адель Рамилевна","МБОУ \"Средняя общеобразовательная школа №8 \" г.Набережные Челны"]
[195,"Набрежные Челны","МБОУ \"Средняя общеобразовательная школа №31 с углублённым изучением отдельных предметов\" г.Набережные Челны","Заляев","Радмир","Рамилевич",8,"2001-05-06","муж",0,null,0,400,"участник","Журавлева Наталья Александровна","МБОУ \"Средняя общеобразовательная школа №31 с углублённым изучением отдельных предметов\" г.Набережные Челны"]
[196,"Набрежные Челны","ГБОУ \"Кадетская школа им. Н.Кайманова\" г.Набережные Челны","Измайлов","Реналь","Рафисович",8,"2004-10-19","муж",0,null,0,400,"участник","Осипов Михаил Игоревич","ГБОУ \"Кадетская школа им. Н.Кайманова\" г.Набережные Челны"]
[197,"Набрежные Челны","МБОУ \"Средняя общеобразовательная школа №12\"предметов\" г.Набережные Челны","Исмагилов","Никита","Денисович",8,"2004-05-29","муж",0,null,0,400,"участник","Гиззатуллина Лейсан Дамировна","МБОУ \"Средняя общеобразовательная школа №12\"предметов\" г.Набережные Челны"]
[198,"Набрежные Челны","МБОУ \"Средняя общеобразовательная школа №28\" г. Набережные Челны","Касимова ","Галина","Сергеевна",8,"2004-01-27","жен",0,null,0,400,"участник","Муслахова Ильсеяр Флусовна","МБОУ \"Средняя общеобразовательная школа №28\" г. Набережные Челны"]
[199,"Набрежные Челны","МАОУ \"Средняя общеобразовательная школа №55\" г.Набережные Челны","Ключников","Семен","Борисович",8,"2004-03-11","муж",0,null,0,400,"участник","Казакова Елена Александровна","МАОУ \"Средняя общеобразовательная школа №55\" г.Набережные Челны"]
[200,"Набрежные Челны","ГБОУ \"Кадетскя школа № 82 имени Героя Советского Союза Ильдара Маннанова\"","Левандовский","Никита","Артёмович",8,"2004-11-30","муж",0,null,0,400,"участник","Галиаскарова Альфинур Махмутовна","ГБОУ \"Кадетскя школа № 82 имени Героя Советского Союза Ильдара Маннанова\""]
[201,"Набрежные Челны","МБОУ \"Средняя общеобразовательная школа №24 с углублённым изучением отдельных предметов\" г.Набережные Челны","Мазитов","Вильдан","Русланович",8,"2003-11-13","муж",0,null,0,400,"участник","Александрова Юлия Ивановна","МБОУ \"Средняя общеобразовательная школа №24 с углублённым изучением отдельных предметов\" г.Набережные Челны"]
[202,"Набрежные Челны","МБОУ \"Средняя общеобразовательная школа №27\" г.Набережные Челны","Мариненко  ","Артем","Ринатович",8,null,"муж",0,null,0,400,"участник","Филатова Зульфия Мирсайжановна","МБОУ \"Средняя общеобразовательная школа №27\" г.Набережные Челны"]
[203,"Набрежные Челны","МАОУ \"Средняя общеобразовательная школа №34 с углублённым изучением отдельных предметов\" г.Набережные Челны","Масалимов"," Дамир"," Ленарович",8,"2004-12-25","муж",0,null,0,400,"участник","Панюшкина Светлана Валентиновна","МАОУ \"Средняя общеобразовательная школа №34 с углублённым изучением отдельных предметов\" г.Набережные Челны"]
[204,"Набрежные Челны","МБОУ \"Средняя общеобразовательная школа №37 с углублённым изучением отдельных предметов\" г.Набережные Челны","Мацкевич","Владислав","Викторович",8,"2003-11-15","муж",0,null,0,400,"участник","Хабибуллина Гульсира Русстамовна","МБОУ \"Средняя общеобразовательная школа №37 с углублённым изучением отдельных предметов\" г.Набережные Челны"]
[205,"Набрежные Челны","МАОУ \"СОШ №48\"\n г. Набережные Челны","Медников","Никита","Витальевич",8,"2004-05-02","муж",0,null,0,400,"участник","Мингазова Рузиля Накиповна","МАОУ \"СОШ №48\"\n г. Набережные Челны"]
[206,"Набрежные Челны","МАОУ \"Средняя общеобразовательная школа №38\"","Мишустина","Ангелина","Алексеевна",8,"2004-04-27","жен",0,null,0,400,"участник","Циденкова Екатерина Михайловна","МАОУ \"Средняя общеобразовательная школа №38\""]
[207,"Набрежные Челны","МАОУ \"Лицей № 78 им. А.С.Пушкина\" г.Набережные Челны","Москалев ","Никита ","Олегович",8,"2004-08-03","муж",0,null,0,400,"участник","Ханнанова Сакина Талхиевна","МАОУ \"Лицей № 78 им. А.С.Пушкина\" г.Набережные Челны"]
[208,"Набрежные Челны","МАОУ \"Средняя общеобразовательная школа №40 с углублённым изучением отдельных предметов\" г.Набережные Челны","Мурашко","Лев","Сергеевич",8,"2004-10-16","муж",0,null,0,400,"участник","Кочетова Галина Егоровна","МАОУ \"Средняя общеобразовательная школа №40 с углублённым изучением отдельных предметов\" г.Набережные Челны"]
[209,"Набрежные Челны","МБОУ \"Средняя общеобразовательная школа №13\" г.Набережные Челны","Мусолин","Игорь","Алексеевич",8,"2004-08-06","муж",0,null,0,400,"участник","Харченко Лейли Робиновна","МБОУ \"Средняя общеобразовательная школа №10\" г.Набережные Челны"]
[210,"Набрежные Челны","МБОУ \"Средняя общеобразовательная школа №45 с углубленным изучением отдельных предметов\" г. Набережные Челны","Остонен","Юлия","Андреевна",8,"2004-02-08","жен",0,null,0,400,"участник","Бахтиярова Светлана Ахметдияровна","МБОУ \"Средняя общеобразовательная школа №45 с углубленным изучением отдельных предметов\" г. Набережные Челны"]
[211,"Набрежные Челны","МАОУ \"Средняя общеобразовательная школа №17\" г.Набережные Челны","Панфилов","Егор","Андреевич",8,"2004-11-03","муж",0,null,0,400,"участник","Скочкова Надия Рафиковна","МАОУ \"Средняя общеобразовательная школа №17\" г.Набережные Челны"]
[212,"Набрежные Челны","МАОУ \"Лицей № 78 им. А.С.Пушкина\" г.Набережные Челны","Пипкин","Андрей","Андреевич",8,"2004-07-28","муж",0,null,0,400,"участник","Ханнанова Сакина Талхиевна","МАОУ \"Лицей № 78 им. А.С.Пушкина\" г.Набережные Челны"]
[213,"Набрежные Челны","МАОУ \"Средняя общеобразовательная школа №56\" г.Набережные Челны","Пономарев","Илья ","Николаевич",8,"2004-08-26","муж",0,null,0,400,"участник","Стеганцева Резеда Рафаэлевна","МАОУ \"Средняя общеобразовательная школа №56\" г.Набережные Челны"]
[214,"Набрежные Челны","МАОУ \"Лицей № 78 им. А.С.Пушкина\" г.Набережные Челны","Раимов ","Тимур ","Айдарович",8,"2004-03-04","муж",0,null,0,400,"участник","Ханнанова Сакина Талхиевна","МАОУ \"Лицей № 78 им. А.С.Пушкина\" г.Набережные Челны"]
[215,"Набрежные Челны","МБОУ \"Средняя общеобразовательная школа № 25\" г.Набережные Челны","Рахимов","Ильдар","Расулович",8,"2004-11-18","муж",0,null,0,400,"участник","Князева Татьяна Георгиевна","МБОУ \"Средняя общеобразовательная школа № 25\" г.Набережные Челны"]
[216,"Набрежные Челны","МАОУ \"Лицей № 78 им. А.С.Пушкина\" г.Набережные Челны","Семенова  ","София  ","Владимировна",8,"2003-10-03","жен",0,null,0,400,"участник","Ханнанова Сакина Талхиевна","МАОУ \"Лицей № 78 им. А.С.Пушкина\" г.Набережные Челны"]
[217,"Набрежные Челны","МБОУ \"Средняя общеобразовательная школа №10\" г.Набережные Челны","Старцева","Екатерина","Павловна",8,"2004-05-16","жен",0,null,0,400,"участник","МБОУ \"Средняя общеобразовательная школа №10\" г.Набережные Челны","Харченко Лейли Робиновна"]
[218,"Набрежные Челны","МАОУ «Гимназия № 57» г.Набережные Челны","Титенков ","Вячеслав ","Владимирович",8,"2004-06-26","муж",0,null,0,400,"участник","Салахиева Евгения Михайловна","МАОУ «Гимназия № 57» г.Набережные Челны"]
[219,"Набрежные Челны","МАОУ \"Гимназия №76\" г.Набережные Челны","Фазлыева","Азалия","Зульфатовна",8,"2004-05-08","жен",0,null,0,400,"участник","Магдумова Венера Ниловна","МАОУ \"Гимназия №76\" г.Набережные Челны"]
[220,"Набрежные Челны","Муниципальное бюджетное образовательное учреждение\n«Средняя общеобразовательная школа № 3»\n","Фролов","Александр","Федорович",8,"2004-09-18","муж",0,null,0,400,"участник","Каримова Наиля Ахнафовна","Муниципальное бюджетное образовательное учреждение\n«Средняя общеобразовательная школа № 3»\n"]
[221,"Набрежные Челны","МАОУ \"Лицей инновационных технологий №36\" г.Набережные Челны","Хайруллин","Альберт","Русланович",8,"2004-03-03","муж",0,null,0,400,"участник","Трофимова Нина Владимировна","МАОУ \"Лицей инновационных технологий №36\" г.Набережные Челны"]
[222,"Набрежные Челны","Муниципальное бюджетное общеобразовательное учреждение «Средняя общеобразовательная школа №52» города Набережные Челны Республики Татарстан","Хасанов  ","Ильгиз","Раушанович",8,"2004-12-01","муж",0,null,0,400,"участник","Пучинина Гузель Ирековна","Муниципальное бюджетное общеобразовательное учреждение «Средняя общеобразовательная школа №52» города Набережные Челны Республики Татарстан"]
[223,"Набрежные Челны","МБОУ \"Средняя общеобразовательная школа №6\" г.Набережные Челны","Чапков","Дмитрий","Николаевич",8,"2004-09-08","муж",0,null,0,400,"участник","Шурманова Гулюза Талгатовна","МБОУ \"Средняя общеобразовательная школа №6\" г.Набережные Челны"]
[224,"Набрежные Челны","Муниципальное бюджетное образовательное учреждение\n«Средняя общеобразовательная школа № 5»\n","Шагабиев","Радик","Рамилевич",8,"2004-02-09","муж",0,null,0,400,"участник","Каримова Наиля Ахнафовна","Муниципальное бюджетное образовательное учреждение\n«Средняя общеобразовательная школа № 3»\n"]
[225,"Набрежные Челны","МАОУ \"Лицей-интернат №84 имени Гали Акыша\" города Набережные Челны","Шафигуллина","Гульнар","Алмазовна",8,"19.08.2004","жен",0,null,0,400,"участник","Бисеров Ильгизар Рустамович","МАОУ \"Лицей-интернат №84 имени Гали Акыша\" города Набережные Челны"]
[226,"Набрежные Челны","МБОУ \"Средняя общеобразовательная школа №32 с углублённым изучением отдельных предметов\" г.Набережные Челны","Шелль","Степан","Константинович",8,"2004-05-11","муж",0,null,0,400,"участник","Баринов Евгений Геннадьеыич","МБОУ \"Средняя общеобразовательная школа №32 с углублённым изучением отдельных предметов\" г.Набережные Челны"]
[227,"Набрежные Челны","МБОУ \"Средняя общеобразовательная школа №18 с углублённым изучением отдельных предметов\" г.Набережные Челны","Шигапов ","Эмиль ","Русланович",8,"29.022004","муж",0,null,0,400,"участник","Гаянова Назиля Накиповна","МБОУ \"Средняя общеобразовательная школа №18 с углублённым изучением отдельных предметов\" г.Набережные Челны"]
[228,"Набрежные Челны","ГБОУ \"Набережночелнинская школа №87 для детей с ограниченными возможностями\" г.Набережные Челны","Шайдуллин","Илфат","Илнурович",9,"2003-09-10","муж",0,null,0,400,"участник","Даулетова Ольга Федоровна","ГБОУ \"Набережночелнинская школа №87 для детей с ограниченными возможностями\" г.Набережные Челны"]
[229,"Сабинский","Муниципальное бюджетное общеобразовательное учреждение  \"Сабабашская основная общеобразовательная школа Сабинского муниципального района Республики Татарстан\"","Сабирзянов","Фанзиль","Альбертович",8,"2004-03-01","муж",0,0,null,400,"Участник","Тухфатуллина Миляуша Бикташевна","Муниципальное бюджетное общеобразовательное учреждение  \"Сабабашская основная общеобразовательная школа Сабинского муниципального района Республики Татарстан\""]
[230,"Сабинский","Муниципальное бюджетное общеобразовательное учреждение \"Средняя общеобразовательная школа-интернат с углубленным изучением отдельных предметов для одаренных детей\" Сабинского муниципального района Республики Татарстан ","Шайхутдинов","Нур","Айдарович",8,"2004-12-13","муж. ",0,0,null,400,"Участник","Гаптерахимов Расим Таснимович","Муниципальное бюджетное общеобразовательное учреждение \"Средняя общеобразовательная школа-интернат с углубленным изучением отдельных предметов для одаренных детей\" Сабинского муниципального района Республики Татарстан "]

{"sheet":"9","index":1,"n_rows":152,"n_cols":16,"rows_kept":152,"merged":[[0,1,0,14]]}
[null,"Итоговый протокол по итогам муниципального этапа ВсОШ/РОШ  по предмету ИНФОРМАТИКА  в 2018-2019 учебном году"]
["№ п/п","Муниципалитет","Полное наименование образовательного учреждения (по уставу)","Фамилия","Имя","Отчество","Класс","Дата рождения","Пол","Балл","Апеляционный балл","Итоговый балл","Максимальный балл","Статус","Фамилия педагога, подготовившего участника олимпиады","Полное наименование образовательного учреждения (по уставу)"]
[1,"Вахитовский","Общеобразовательная школа-интернат «Лицей имени Н. И. Лобачевского» К(П)ФУ","Мильграм","Сергей","Сергеевич",9,"2003-04-10","M",500,null,500,500,"победитель","Михайлин Сергей Иванович","Общеобразовательная школа-интернат «Лицей имени Н. И. Лобачевского» К(П)ФУ "]
[2,"Ново-Савиновский","МАОУ «Лицей-интернат №7»","Миннеханов","Булат","Рустемович",9,"2003-07-12","M",500,null,500,500,"победитель","Азимуратов Шухрат Батырович"," МАОУ «Лицей-интернат №7» "]
[3,"Московский","МАОУ «Лицей-интернат №2» Московского района","Миннеханов","Булат","Рафаилевич",9,"2004-06-29","M",500,null,500,500,"победитель","Сафиулин Ильшат Ирикович","  МАОУ Лицей-интернат №2"]
[4,"Вахитовский","МАОУ «Лицей №131»","Шарипов","Камиль","Ниязович",9,"2003-09-01","M",500,null,500,500,"победитель","Аитов Руслан Рашидович"," МАОУ «Лицей №131» "]
[5,"Верхнеуслонский","Государственное автономное общеобразовательное учреждение \"Лицей Иннополис\"","Хайруллин","Ренат","Габдракипович",9,"2002-11-16","м",440,null,440,500,"победитель","Беляева Ольга Семёновна","Государственное автономное общеобразовательное учреждение \"Лицей Иннополис\""]
[6,"Приволжский","Лицей-интернат «IТ-лицей К(П)ФУ»","Тамьяров","Илья","Андреевич",9,"2005-04-28","M",420,null,420,500,"призер","Митясова Елена Анатольевна","Лицей-интернат «IТ-лицей К(П)ФУ» "]
[7,"Московский","МАОУ «Лицей-интернат №2» Московского района","Шайхиев","Ислам","Ильясович",9,"2004-10-26","M",420,null,420,500,"призер","Сафиулин Ильшат Ирикович"," МАОУ Лицей-интернат №2"]
[8,"Вахитовский","Общеобразовательная школа-интернат «Лицей имени Н. И. Лобачевского» К(П)ФУ","Гиззатуллин","Амир","Марселевич",9,"2003-09-20","M",400,null,400,500,"призер","Михайлин Сергей Иванович","Общеобразовательная школа-интернат «Лицей имени Н. И. Лобачевского» К(П)ФУ "]
[9,"Приволжский","Лицей-интернат «IТ-лицей К(П)ФУ»","Лукьянов","Артур","Маратович",9,"2004-04-05","M",400,null,400,500,"призер","Хасанов Марат Гумярович","Лицей-интернат «IТ-лицей К(П)ФУ» "]
[10,"Приволжский","Лицей-интернат «IТ-лицей К(П)ФУ»","Ниневский","Николай","Николаевич",9,"2002-10-29","M",400,null,400,500,"призер","Митясова Елена Анатольевна","Лицей-интернат «IТ-лицей К(П)ФУ» "]
[11,"Московский","МАОУ «Лицей-интернат №2» Московского района","Шатохин","Антон","Андреевич",9,"2003-02-07","M",400,null,400,500,"призер","Сафиулин Ильшат Ирикович"," МАОУ Лицей-интернат №2"]
[12,"Верхнеуслонский","Государственное автономное общеобразовательное учреждение \"Лицей Иннополис\"","Дюдин","Герман","Александрович",9,"2003-09-30","м",400,null,400,500,"победитель","Беляева Ольга Семёновна","Государственное автономное общеобразовательное учреждение \"Лицей Иннополис\""]
[13,"Верхнеуслонский","Государственное автономное общеобразовательное учреждение \"Лицей Иннополис\"","Валеев","Ильнур","Маратович",9,"2003-02-01","м",400,null,400,500,"победитель","Беляева Ольга Семёновна","Государственное автономное общеобразовательное учреждение \"Лицей Иннополис\""]
[14,"Вахитовский","МАОУ «Лицей №131»","Гареев","Руслан","Олегович",9,"2003-12-16","M",370,null,370,500,"призер","Ишимбаев Айрат Наилевич","АНО ВО Университет Иннополис"]
[15,"Вахитовский","МАОУ «Лицей №131»","Миргалимова","Розалина","Зуфаровна",9,"2003-10-11","Ж",370,null,370,500,"призер","Бастракова Нина Вадимовна","     МАОУ «Лицей №131» "]
[16,"Вахитовский","Общеобразовательная школа-интернат «Лицей имени Н. И. Лобачевского» К(П)ФУ","Гаязов","Булат","Ринатович",9,"2003-04-30","M",360,null,360,500,"призер","Михайлин Сергей Иванович","Общеобразовательная школа-интернат «Лицей имени Н. И. Лобачевского» К(П)ФУ "]
[17,"Вахитовский","Общеобразовательная школа-интернат «Лицей имени Н. И. Лобачевского» К(П)ФУ","Нотфуллин","Камиль","Ильнурович",9,"2004-09-23","M",340,null,340,500,"призер","Михайлин Сергей Иванович","Общеобразовательная школа-интернат «Лицей имени Н. И. Лобачевского» К(П)ФУ "]
[18,"Вахитовский","МАОУ «Лицей №131»","Зарипов","Рамиль","Ринатович",9,"2003-11-15","M",330,null,330,500,"призер",null,"МАОУ «Лицей №131» "]
[19,"Московский","МБОУ «Гимназия №102 им. М.С.Устиновой»","Архипочкин","Александр","Станиславович",9,"2003-06-03","M",320,null,320,500,"призер","Черепанов Евгений Анатольевич"," МБОУ «Гимназия №102 им. М.С.Устиновой» "]
[20,"Приволжский","Лицей-интернат «IТ-лицей К(П)ФУ»","Салахов","Камиль","Айратович",9,"2003-08-26","M",320,null,320,500,"призер","Митясова Елена Анатольевна","Лицей-интернат «IТ-лицей К(П)ФУ» "]
[21,"Московский","МАОУ «Лицей-интернат №2» Московского района","Гимадеев","Ильдар","Айратович",9,"2003-04-05","M",300,null,300,500,"призер","Аглямзанов Рамиль Ривальдович"," МАОУ Лицей-интернат №2"]
[22,"Ново-Савиновский","Инженерный лицей КНИТУ-КАИ","Гимадиев","Рустем","Аделевич",9,"2003-06-15","M",300,null,300,500,"призер","Исмаилова Наталья Владимировна","Инженерный лицей КНИТУ-КАИ "]
[23,"Вахитовский","Муниципальное автономное общеобразовательное учреждение для детей, проявивших выдающиеся способности «Средняя общеобразовательная школа-интернат «Специализированный олимпиадно-научный центр «СОлНЦе»","Зиганшин","Джамиль","Дамирович",9,"2003-12-22","M",300,null,300,500,"призер","Матвеев Максим Сергеевич","   Муниципальное автономное общеобразовательное учреждение для детей, проявивших выдающиеся способности «Средняя общеобразовательная школа-интернат «Специализированный олимпиадно-научный центр «СОлНЦе» "]
[24,"Ново-Савиновский","Инженерный лицей КНИТУ-КАИ","Липперт","Марк","Дмитриевич",9,"2003-04-23","M",300,null,300,500,"призер","Исмаилова Наталья Владимировна","Инженерный лицей КНИТУ-КАИ "]
[25,"Приволжский","Лицей-интернат «IТ-лицей К(П)ФУ»","Назаров","Данил","Александрович",9,"2003-05-24","M",300,null,300,500,"призер","Митясова Елена Анатольевна","Лицей-интернат «IТ-лицей К(П)ФУ» "]
[26,"Приволжский","Лицей-интернат «IТ-лицей К(П)ФУ»","Янгалычев","Ярослав","Сергеевич",9,"2002-10-01","M",300,null,300,500,"призер","Митясова Елена Анатольевна","Лицей-интернат «IТ-лицей К(П)ФУ» "]
[27,"Альметьевский","МАОУ \"Лицей-интернат №1\" г.Альметьевска Республики Татарстан","Камартдинов","Ренат","Рафаэлевич",9,"2003-01-16","м",300,0,{"$f":"J29","v":300},500,"Победитель","Нафиков Данил Рашидович","МАОУ \"Лицей-интернат №1\" г.Альметьевска Республики Татарстан"]
[28,"Верхнеуслонский","Государственное автономное общеобразовательное учреждение \"Лицей Иннополис\"","Журавлева","Дарья","Алексеевна",9,"2003-04-04","ж",300,null,300,500,"призер","Беляева Ольга Семёновна","Государственное автономное общеобразовательное учреждение \"Лицей Иннополис\""]
[29,"Верхнеуслонский","Государственное автономное общеобразовательное учреждение \"Лицей Иннополис\"","Майоров","Даниил","Игоревич",9,"2003-02-25","м",300,null,300,500,"призер","Беляева Ольга Семёновна","Государственное автономное общеобразовательное учреждение \"Лицей Иннополис\""]
[30,"Верхнеуслонский","Государственное автономное общеобразовательное учреждение \"Лицей Иннополис\"","Печерский","Илья","Андреевич",9,"2003-01-03","м",300,null,300,500,"призер","Беляева Ольга Семёновна","Государственное автономное общеобразовательное учреждение \"Лицей Иннополис\""]
[31,"Верхнеуслонский","Государственное автономное общеобразовательное учреждение \"Лицей Иннополис\"","Рыболовлев","Григорий","Александрович",9,"2003-07-08","м",300,null,300,500,"призер","Беляева Ольга Семёновна","Государственное автономное общеобразовательное учреждение \"Лицей Иннополис\""]
[32,"Нижнекамский","МБОУ \"Лицей-интернат № 24\"","Романов ","Кирилл","Вадимович",9,"2003-04-29","муж",300,null,300,500,"Призер","Зиганшин Рустем Мударисович","МБОУ \"Лицей-интернат № 24\""]
[33,"Московский","МАОУ «Лицей-интернат №2» Московского района","Аглиуллин","Самат","Рустамович",9,"2003-04-23","M",270,null,270,500,"призер","Сафиулин Ильшат Ирикович","  МАОУ Лицей-интернат №2"]
[34,"Ново-Савиновский","Инженерный лицей КНИТУ-КАИ","Вахидов","Джовидон","Джамшедович",9,"2003-10-05","M",270,null,270,500,"призер","Исмаилова Наталья Владимировна","Инженерный лицей КНИТУ-КАИ "]
[35,"Вахитовский","МАОУ «Лицей №131»","Габдуллина","Алия","Маратовна",9,"2003-01-19","Ж",270,null,270,500,"призер","Аитов Руслан Рашидович","  МАОУ «Лицей №131» "]
[36,"Верхнеуслонский","Государственное автономное общеобразовательное учреждение \"Лицей Иннополис\"","Фаррахов","Габделгаффар","Илшатович",9,"2003-02-22","м",270,null,270,500,"призер","Беляева Ольга Семёновна","Государственное автономное общеобразовательное учреждение \"Лицей Иннополис\""]
[37,"Вахитовский","МАОУ «Лицей №131»","Исхаков","Камиль","Айдарович",9,"2004-02-28","M",260,null,260,500,"призер","Ишимбаев Айрат Наилевич","АНО ВО Университет Иннополис"]
[38,"Лениногорский","МБОУ \"СОШ №5 г.Лениногорска\" МО \"Лениногорский муниципальный район\" РТ","Вуколов ","Виталий"," Алексеевич",9,"2003-08-28","м",250,0,250,500,"призер","Камалова Нафиса Ахатовна","МБОУ \"СОШ №5 г.Лениногорска\" МО \"Лениногорский муниципальный район\" РТ"]
[39,"Набрежные Челны","МБОУ \"Гимназия №26\"","Метельский ","Виталий","Павлович",9,"2003-03-26","муж",220,null,220,500,"участник","Волошина Гульшат Мунировна","МБОУ \"Гимназия №26\""]
[40,"Агрызский","Муниципальное бюджетное общеобразовательное учреждение средняя общеобразовательная школа №3 имени Тази Гиззата г. Агрыз Агрызского муниципального района Республики Татарстан","Шурманов","Рашид","Рафисович",9,"2002-12-04","M",200,0,200,500,"участник","Тимербаев Ринат Зуфарович","Муниципальное бюджетное общеобразовательное учреждение средняя общеобразовательная школа №3 имени Тази Гиззата г. Агрыз Агрызского муниципального района Республики Татарстан"]
[41,"Набрежные Челны","МБОУ \"Гимназия №26\"","Гараев","Раиль","Фаннурович",9,"2003-05-31","муж",200,null,200,500,"участник","Зарипова Татьяна Николаевна","МБОУ \"Гимназия №26\""]
[42,"Набрежные Челны","МАОУ \"Лицей № 78 им. А.С.Пушкина\" г.Набережные Челны","Грунский   ","Алексей ","Анатольевич",9,"2003-04-03","муж",200,null,200,500,"участник","Чурбанова Ольга Викторовна","МАОУ \"Лицей № 78 им. А.С.Пушкина\" г.Набережные Челны"]
[43,"Набрежные Челны","Муниципальное бюджетное общеобразовательное учреждение \"Лицей-интернат №79\"","Саглам","Музаффер Эрен","Мустафович",9,"2004-06-08","муж",200,null,200,500,"участник","Галлямов Динар Мунавирович","Муниципальное бюджетное общеобразовательное учреждение \"Лицей-интернат №79\""]
[44,"Набрежные Челны","Муниципальное бюджетное общеобразовательное учреждение \"Лицей-интернат №79\"","Хадиев","Ильнур","Айратович",9,"2003-07-01","муж",200,null,200,500,"участник","Галлямов Динар Мунавирович","Муниципальное бюджетное общеобразовательное учреждение \"Лицей-интернат №79\""]
[45,"Набрежные Челны","МАОУ \"Лицей № 78 им. А.С.Пушкина\" г.Набережные Челны","Шайхутдинов  ","Рустам ","Эльвирович",9,"2003-05-15","муж",200,null,200,500,"участник","Чурбанова Ольга Викторовна","МАОУ \"Лицей № 78 им. А.С.Пушкина\" г.Набережные Челны"]
[46,"Чистопольский","Муниципальное бюджетное общеобразовательное учреждение \"Лицей №1\" Чистопольского муниципального района Республики Татарстан","Рахматуллин  ","Рамазан","Булатович","9 ","15.07.2003","м",170,null,170,500,null,"Шамилова Асия Узбековна","Муниципальное бюджетное общеобразовательное учреждение \"Лицей №1\" Чистопольского муниципального района Республики Татарстан"]
[47,"Ново-Савиновский","Инженерный лицей КНИТУ-КАИ","Мышливец","Даниил","Ильнурович",9,"2003-09-01","M",170,null,170,500,null,"Исмаилова Наталья Владимировна","Инженерный лицей КНИТУ-КАИ "]
[48,"Приволжский","МАОУ «Гимназия №19»","Осин","Андрей","Сергеевич",9,"2003-02-04","M",170,null,170,500,null,"Сафарова Эльза Вячеславовна","МАОУ «Гимназия №19» "]
[49,"Ново-Савиновский","Инженерный лицей КНИТУ-КАИ","Хисалиев","Джалил","Дильшадович",9,"2003-05-02","M",170,null,170,500,null,"Исмаилова Наталья Владимировна","Инженерный лицей КНИТУ-КАИ "]
[50,"Альметьевский","МАОУ \"Лицей-интернат №1\" г.Альметьевска Республики Татарстан","Вафин","Айнур","Нурфисович",9,"2003-01-13","м",170,0,{"$f":"J52","v":170},500,"Призер","Нафиков Данил Рашидович","МАОУ \"Лицей-интернат №1\" г.Альметьевска Республики Татарстан"]
[51,"Верхнеуслонский","Государственное автономное общеобразовательное учреждение \"Лицей Иннополис\"","Акимов","Данила","Дмитриевич",9,"2003-02-05","м",170,null,170,500,"участник","Беляева Ольга Семёновна","Государственное автономное общеобразовательное учреждение \"Лицей Иннополис\""]
[52,"Верхнеуслонский","Государственное автономное общеобразовательное учреждение \"Лицей Иннополис\"","Шалаев","Ярослав","Никитович",9,"2003-07-28","м",170,null,170,500,"участник","Беляева Ольга Семёновна","Государственное автономное общеобразовательное учреждение \"Лицей Иннополис\""]
[53,"Набрежные Челны","МАОУ \"Лицей № 78 им. А.С.Пушкина\" г.Набережные Челны","Сидоров  ","Артур ","Эдуардович",9,"2003-02-12","муж",170,null,170,500,"участник","Чурбанова Ольга Викторвна","МАОУ \"Лицей № 78 им. А.С.Пушкина\" г.Набережные Челны"]
[54,"Вахитовский","Муниципальное автономное общеобразовательное учреждение для детей, проявивших выдающиеся способности «Средняя общеобразовательная школа-интернат «Специализированный олимпиадно-научный центр «СОлНЦе»","Косач ","Иван ","Андреевич",9,"2003-03-14","M",160,null,160,500,null,"Королев Юрий Николаевич","Муниципальное автономное общеобразовательное учреждение для детей, проявивших выдающиеся способности «Средняя общеобразовательная школа-интернат «Специализированный олимпиадно-научный центр «СОлНЦе» "]
[55,"Ново-Савиновский","Инженерный лицей КНИТУ-КАИ","Долгоаршинных","Алмаз","Маратович",9,"2003-04-29","M",140,null,140,500,null,"Исмаилова Наталья Владимировна"," Инженерный лицей КНИТУ-КАИ "]
[56,"Вахитовский","Муниципальное бюджетное общеобразовательное учреждение «Гимназия №27 с татарским языком обучения»","Русских ","Руслан","Александрович",9,"2002-12-04","M",120,null,120,500,null,"Нуризянов Эльнар Тагирович","  Муниципальное бюджетное общеобразовательное учреждение «Гимназия №27 с татарским языком обучения» "]
[57,"Бугульминский","Муниципальное бюджетное общеобразовательное учреждение лицей-интернат имени Мустафы Онджеля Бугульминского муниципального района Республики Татарстан","Салахова","Аделя","Ильясовна",9,"2004-01-13","жен",100,0,100,500,"участник","Чиглаков Ильдар Андреевич","МБОУ лицей-интернат имени Мустафы Онджеля"]
[58,"Московский","ГБМБУ «КФУ каршындагы 2 нче татар гимназиясе» МБОУ «Татарская гимназия №2 при КФУ»","Бариев","Раиль","Рустемович",9,"2003-10-06","M",50,null,50,500,null,"Гилязова Эльвира Зуфаровна"," ГБМБУ «КФУ каршындагы 2 нче татар гимназиясе» МБОУ «Татарская гимназия №2 при КФУ» "]
[59,"Вахитовский","Муниципальное автономное общеобразовательное учреждение для детей, проявивших выдающиеся способности «Средняя общеобразовательная школа-интернат «Специализированный олимпиадно-научный центр «СОлНЦе»","Зинченко"," Валерия","Витальевна",9,"2003-02-17","Ж",50,null,50,500,null,"Королев Юрий Николаевич","МАОУ «Средняя общеобразовательная школа-интернат «СОлНЦе» "]
[60,"Приволжский","Лицей-интернат «IТ-лицей К(П)ФУ»","Николаева","Софья","Владиславовна",9,"2003-02-18","Ж",50,null,50,500,null,"Аншукова Венера Маратовна","Лицей-интернат «IТ-лицей К(П)ФУ» "]
[61,"Советский","МАОУ «Лицей № 121»","Урманов","Максим","Артемович",9,"2002-02-16","M",50,null,50,500,null,"Хакимова Фарида Фаридовна"," МАОУ «Лицей № 121» "]
[62,"Московский","МБОУ «Гимназия №102 им. М.С.Устиновой»","Ярцева ","Алёна","Дмитриевна",9,"2003-06-01","Ж",50,null,50,500,null,"Черепанов Евгений Анатольевич"," МБОУ «Гимназия №102 им. М.С.Устиновой» "]
[63,"Нурлатский","Муниципальное автономное общеобразовательное учреждение \"Нурлатская гимназия имени Героя Советского Союза  Михаила Егоровича Сергеева\" г.Нурлат","Гарифуллин","Рифат","Рафаэлевич",9,"2003-05-31","муж",50,null,50,500,null,"Фадькин Алексей Владимирович","Муниципальное автономное общеобразовательное учреждение \"Нурлатская гимназия имени Героя Советского Союза  Михаила Егоровича Сергеева\" г.Нурлат"]
[64,"Набрежные Челны","МАОУ \"Лицей инновационных технологий №36\" г.Набережные Челны","Гольдфайн","Андрей","Александрович",9,"2002-04-19","муж",50,null,50,500,"участник","Трофимова Нина Владимировна","МАОУ \"Лицей инновационных технологий №36\" г.Набережные Челны"]
[65,"Набрежные Челны","МАОУ \"Лицей № 78 им. А.С.Пушкина\" г.Набережные Челны","Хамзин ","Руслан","Денисович",9,"2002-12-07","муж",50,null,50,500,"участник","Чурбанова Ольга Викторовна","МАОУ \"Лицей № 78 им. А.С.Пушкина\" г.Набережные Челны"]
[66,"Приволжский","МБОУ «Средняя общеобразовательная школа №114»","Анисимов","Иван","Андреевич",9,"2003-05-06","M",30,null,30,500,null,"Каримова Айгул Комильевна","МБОУ «Средняя общеобразовательная школа №114» "]
[67,"Камско-Устьинский","МБОУ «Затонская средняя общеобразовательная школа имени В.П. Муравьёва\" Камско-Устьинского муниципального района Республики Татарстан","Оленичев","Артём","Радифович",9,"2003-02-03","муж",30,0,30,500,"участник","Гарифуллина Гульнара Зуфаровна","МБОУ «Затонская средняя общеобразовательная школа имени В.П. Муравьёва\" Камско-Устьинского муниципального района Республики Татарстан"]
[68,"Нурлатский","Муниципальное автономное общеобразовательное учреждение \"Нурлатская гимназия имени Героя Советского Союза  Михаила Егоровича Сергеева\" г.Нурлат","Мусин","Ильсаф","Халилевич",9,"2003-05-27","муж",30,null,30,500,null,"Фадькин Алексей Владимирович","Муниципальное автономное общеобразовательное учреждение \"Нурлатская гимназия имени Героя Советского Союза  Михаила Егоровича Сергеева\" г.Нурлат"]
[69,"Набрежные Челны","МАОУ \"Лицей № 78 им. А.С.Пушкина\" г.Набережные Челны","Ветров  ","Владимир ","Николаевич",9,"2003-02-05","муж",30,null,30,500,"участник","Чурбанова Ольга Викторвна","МАОУ \"Лицей № 78 им. А.С.Пушкина\" г.Набережные Челны"]
[70,"Мамадышский ","МБОУ \"Лицей №2 им. ак. К. А. Валиева г. Мамадыш\"","Хайрулли","Дамир","Анварович",9,"2003-08-28","муж",28,0,28,500,"участник","Сафин Айрат Миннегалиевич","МБОУ \"Лицей №2 им. ак. К. А. Валиева г. Мамадыш\""]
[71,"Мамадышский ","МБОУ \"СОШ№1 г. Мамадыш\"","Нургалиев","Айрат","Андреевич",9,"2003-09-26","муж",20,0,20,500,"участник","Самойлов Искандер ","МБОУ \"СОШ№1 г. Мамадыш\""]
[72,"Мамадышский ","МБОУ \"СОШ№4 г. Мамадыш\"","Муллахметов","Булат","Айратович",9,"2003-08-29","муж",13,0,13,500,"участник","Гарифуллина Эльза Эдуардовна","МБОУ \"СОШ№4 г. Мамадыш\""]
[73,"Кайбицкий","Муниципальное бюджетное общеобразовательное учреждение \"Большерусаковская средняя общеобразовательная школа Кайбицкого муниципального района Республики Татарстан\"","Зайнуллин","Ильмаз","Фанисович",9,null,"муж.",0,null,0,500,"участник","Шоркина Агния Альбияновна ","Муниципальное бюджетное общеобразовательное учреждение \"Большерусаковская средняя общеобразовательная школа Кайбицкого муниципального района Республики Татарстан\""]
[74,"Приволжский","Лицей-интернат «IТ-лицей К(П)ФУ»","Зиганшин","Эмир","Рамилевич",9,"2004-05-14","M",0,null,0,500,null,"Хасанов Марат Гумярович","Лицей-интернат «IТ-лицей К(П)ФУ» "]
[75,"Приволжский","МБОУ «Средняя общеобразовательная школа №114»","Косолапов","Данил","Викторович",9,"2003-11-18","M",0,null,0,500,null,"Каримова Айгул Комильевна","МБОУ «Средняя общеобразовательная школа №114» "]
[76,"Советский","МБОУ «Многопрофильная полилингвальная гимназия №180»","Мубараков","Камиль","Ленарович",9,"2002-12-23","M",0,null,0,500,null,"Ризванов Зимфир Зуфарович","МБОУ «Многопрофильная полилингвальная гимназия №180» "]
[77,"Московский","МБОУ «Гимназия №94»","Садыков","Анис","Айдарович",9,"2002-12-23","M",0,null,0,500,null,"Зиннатова    Ильмира    Рифовна    "," МБОУ «Гимназия №94» "]
[78,"Приволжский","МАОУ «Гимназия №19»","Севастьянов","Илья","Викторович",9,"2003-05-12","M",0,null,0,500,null,"Багаутдинов Зуфар Фаритович","МАОУ «Гимназия №19» "]
[79,"Приволжский","МАОУ «Гимназия №19»","Чеканов","Никита","Романович",9,"2003-03-15","M",0,null,0,500,null,"Сафарова Эльза Вячеславовна","МАОУ «Гимназия №19» "]
[80,"Советский","МБОУ «Многопрофильная полилингвальная гимназия №180»","Шаталов","Владислав","Дмитриевич",9,"2003-02-08","M",0,null,0,500,null,"Ризванов Зимфир Зуфарович","МБОУ «Многопрофильная полилингвальная гимназия №180» "]
[81,"Советский","МАОУ «Лицей № 121»","Ядрышников","Денис","Максимович",9,"2003-09-07","M",0,null,0,500,null,"Валиуллова Ильсия Эмировна","МАОУ «Лицей № 121» "]
[82,"Азнакаевский","Муниципальное бюджетное общеобразовательное учреждение \"Средняя общеобразоваельная школа №9 города Азнакаево\" Азнакаевского муниципального района Республики Татарстан","Калимуллин","Булат","Ильнурович",9,"2003-05-23","M",0,null,0,500,"участник","Миннегалиева Зарина Рамилевна","Муниципальное бюджетное общеобразовательное учреждение \"Средняя общеобразоваельная школа №9 города Азнакаево\" Азнакаевского муниципального района Республики Татарстан"]
[83,"Азнакаевский","Муниципальное бюджетное общеобразовательное учреждение \"Средняя общеобразовательная школа №1 поселка городского типа Актюбинский\" Азнакаевского муниципального района Республики Татарстан","Хасанов","Ильнар","Ильшатович","9","2002-12-29","M",0,null,0,500,"участник","Денисова Ирина Борисовна","Муниципальное бюджетное общеобразовательное учреждение \"Средняя общеобразовательная школа №1 поселка городского типа Актюбинский\" Азнакаевского муниципального района Республики Татарстан"]
[84,"Актанышский","МБОУ \"Татарско-Суксинская средняя общеобразовательная школа\"","Шайхайдаров","Загид","Марселович",9,null,"м",0,null,0,500,null,"Газизов Ф.Ф.","МБОУ \"Татарско-Суксинская средняя общеобразовательная школа\""]
[85,"Актанышский","МБОУ \"Бугадинская общая образовательная школа\"","Сафина","Лейсан","Ильназовна",9,null,"ж",0,null,0,500,null,"Ахметдинова Г.Р.","МБОУ \"Бугадинская общая образовательная школа\""]
[86,"Актанышский","МБОУ \"Такталачукская общая образовательная школа\"","Имамов","Риназ","Разифович",9,null,"м",0,null,0,500,null,"Гайсин Р.Р.","МБОУ \"Такталачукская общая образовательная школа\""]
[87,"Актанышский","МБОУ \"Уразаевская общая образовательная школа\"","Салахов","Данияр","Хависович",9,null,"м",0,null,0,500,null,"Басырова Р.","МБОУ \"Уразаевская общая образовательная школа\""]
[88,"Актанышский","МБОУ \"Новоалимовская основная общеобразовательная школа\" ","Авсахов","Булат","Данисович",9,null,"м",0,null,0,500,null,"Шарипов И.И.","МБОУ \"Новоалимовская основная общеобразовательная школа\" "]
[89,"Актанышский","МБОУ \"Тлякеевская общая образовательная школа\"","Саетгараев","Инсаф","Ильназович",9,null,"м",0,null,0,500,null,"Хабиров А.Г.","МБОУ \"Тлякеевская общая образовательная школа\""]
[90,"Актанышский","МБОУ \"Минняровская общая образовательная школа\"","Зарипов","Азамат","Альфирович",9,null,"м",0,null,0,500,null,"Ахметдинова Г.Р.","МБОУ \"Минняровская общая образовательная школа\""]
[91,"Алькеевский","МАОУ \"Базарно-Матакская средняя общеобразовательная школа\"","Буланкин","Вячеслав","Петрович",9,"2003-09-17","м",0,null,0,null,null,"Шайхутдинова Гульназ Ильдаровна","МАОУ \"Базарно-Матакская средняя общеобразовательная школа\""]
[92,"Альметьевский","МАОУ \"Средняя общеобразовательная школа №16\" г. Альметьевска Республики Татарстан","Валиев ","Ильдар","Анварович",9,"2003-10-08","м",0,0,{"$f":"J94","v":0},500,null,"Шарипзянов Дамир Илгизарович","МАОУ \"Средняя общеобразовательная школа №16\" г. Альметьевска Республики Татарстан"]
[93,"Арский","МБОУ \"Арская средняя общеобразовательная школа №2\"","Степанов","Данил","Вадимович",9,"2003-05-22","м",0,0,0,500,"участник","Хоженцева Светлана Фидаилевна","МБОУ \"Арская средняя общеобразовательная школа №2\""]
[94,"Арский","МБОУ \"Арская средняя общеобразовательная школа №2\"","Асадуллин","Алмаз","Илдусович",9,"2003-02-14","м",0,0,0,500,"участник","Хоженцева Светлана Фидаилевна","МБОУ \"Арская средняя общеобразовательная школа №2\""]
[95," Арский","МБОУ \"Арская средняя общеобразовательная школа №6\"","Минзянов","Расим","Радикович",9,"2004-05-06","м",0,0,0,500,"участник","Файзуллин Ильшат Зиннурович","МБОУ \"Арская средняя общеобразовательная школа №6\""]
[96,"Арский","МБОУ \"Арская средняя общеобразовательная школа №6\"","Щепкин","Данил","Максимович",9,"2003-12-26","м",0,0,0,500,"участник","Файзуллин Ильшат Зиннурович","МБОУ \"Арская средняя общеобразовательная школа №6\""]
[97,"Бавлинский","МБОУ \"Средняя общеобразовательная школа №1\" Бавлинского муниципального района Республики Татарстан","Минуллин","Эльнар","Ильмирович",9,"03.08.2003г.","муж.",0,null,0,500,null,"Шайхутдинова Ильмира Чулпановна","МБОУ \"Средняя общеобразовательная школа №1\" Бавлинского муниципального района Республики Татарстан"]
[98,"Бавлинский","МБОУ «Средняя общеобразовательная школа №3 им. Ю. А. Гагарина»\nБавлинского муниципального района Республики Татарстан","Шатанов ","Тимур","Дмитриевич",9,"02.12.2003г.","муж.",0,null,0,500,null,"Вильданова Ольга Вячеславовна","МБОУ «Средняя общеобразовательная школа №3 им. Ю. А. Гагарина»\nБавлинского муниципального района Республики Татарстан"]
[99,"Бугульминский","Муниципальное бюджетное общеобразовательное учреждение лицей-интернат имени Мустафы Онджеля Бугульминского муниципального района Республики Татарстан","Ибряев","Анвар","Ильдарович",9,"2003-04-20","муж",0,0,0,500,"участник","Чиглаков Ильдар Андреевич","МБОУ лицей-интернат имени Мустафы Онджеля"]
[100,"Бугульминский","Муниципальное бюджетное общеобразовательное учреждение средняя общеобразовательная школа №9 Бугульминского муниципального района Республики Татарстан","Салтыков","Алексей","Евгеньевич",9,"09.03.2004","муж",0,0,0,500,"участник","Маннанова Альбина Михайловна","МБОУ СОШ№9"]
[101,"Буинский","Муниципальная бюджетная общеобразовательная организация \"Лицей №2 города Буинска РТ\"","Халиков","Раян","Ренатович",9,"2003-06-10","муж",0,null,0,500,"участник","Мулеева Анастасия Юрьевна","Муниципальная бюджетная общеобразовательная организация \"Лицей №2 города Буинска РТ\""]
[102,"Буинский","Муниципальная бюджетная общеобразовательная организация \"Лицей №2 города Буинска РТ\"","Морозов","Игорь","Олегович",9,"2003-07-17","муж",0,null,0,500,"участник","Мулеева Анастасия Юрьевна","Муниципальная бюджетная общеобразовательная организация \"Лицей №2 города Буинска РТ\""]
[103,"Высокогорский","МБОУ \"Бирюлинская средняя общеобразовательная школа  Высокогорского муниципального района РТ\"","Шамсутдинов","Рафаэль","Радикович",9,"2003-06-06","муж",0,null,0,500,null,"Понебратов Владимир Михайлович","МБОУ \"Бирюлинская средняя общеобразовательная школа  Высокогорского муниципального района РТ\""]
[104,"Высокогорский","МБОУ \"Дубъязская средняя общеобразовательная школа  Высокогорского муниципального района РТ\"","Сабиров","Ансель","Эмилевич",9,"2003-08-28","муж",0,null,0,500,null,"Гатауллин Алмаз Мансурович","МБОУ \"Дубъязская средняя общеобразовательная школа  Высокогорского муниципального района РТ\""]
[105,"Елабужский","МБОУ \"Большешурнякская средняя общеобразовательная школа\" Елабужского муниципального района Республики Татарстан","Браер","Максим","Александрович",9,"2004-05-09","муж",0,0,0,500,null,"Аиров Рамиль Равильевич","МБОУ \"Большешурнякская средняя общеобразовательная школа\" Елабужского муниципального района Республики Татарстан"]
[106,"Заинский","МБОУ \"ЗСОШ № 2 \"","Ерохин","Денис",null,9,null,"муж.",0,0,0,500,"участник","Александрова Наталия Николаевна","МБОУ \"ЗСОШ № 2\""]
[107,"Лениногорский","МБОУ \"СОШ №2 г.Лениногорска\" МО \"Лениногорский муниципальный район\" РТ","Салихова "," Рената","Рустемовна",9,"2003-07-22","ж",0,0,0,500,"участник","Санатуллина Голнур Ильясовна","МБОУ \"СОШ №2 г.Лениногорска\" МО \"Лениногорский муниципальный район\" РТ"]
[108,"Лениногорский","МБОУ \"СОШ №2 г.Лениногорска\" МО \"Лениногорский муниципальный район\" РТ","Малов","Егор","Дмитриевич",9,"2003-06-02","м",0,0,0,500,"участник","Санатуллина Голнур Ильясовна","МБОУ \"СОШ №2 г.Лениногорска\" МО \"Лениногорский муниципальный район\" РТ"]
[109,"Лениногорский","МБОУ \"СОШ №5 г.Лениногорска\" МО \"Лениногорский муниципальный район\" РТ","Вуколов ","Иван ","Алексеевич",9,"28.08.2003","м",0,0,0,500,"участник","Камалова Нафиса Ахатовна","МБОУ \"СОШ №5 г.Лениногорска\" МО \"Лениногорский муниципальный район\" РТ"]
[110,"Лениногорский","МБОУ \"СОШ №5 г.Лениногорска\" МО \"Лениногорский муниципальный район\" РТ","Жирухин  ","Илья","Игоревич",9,"2002-11-17","м",0,0,0,500,"участник","Камалова Нафиса Ахатовна","МБОУ \"СОШ №5 г.Лениногорска\" МО \"Лениногорский муниципальный район\" РТ"]
[111,"Лениногорский","МБОУ \"СОШ №5 г.Лениногорска\" МО \"Лениногорский муниципальный район\" РТ","Бутянов","Артем","Леонидович",9,"2003-06-28","м",0,0,0,500,"участник","Камалова Нафиса Ахатовна","МБОУ \"СОШ №5 г.Лениногорска\" МО \"Лениногорский муниципальный район\" РТ"]
[112,"Лениногорский","МБОУ \"Шугуровская СОШ имени В.П.Чкалова\" МО \"Лениногорский муниципальный район\" РТ","Гарифуллин","Булат","Рамилевич",9,"2003-02-13","м",0,0,0,500,"участник","Фархетдинова Римма Рафаэловна","МБОУ \"Шугуровская СОШ имени В.П.Чкалова\" МО \"Лениногорский муниципальный район\" РТ"]
[113,"Менделеевский","МБОУ «Средняя общеобразовательная школа №1\" Менделеевского муниципального района Республики Татарстан","Низамутдинов","Дамир","Рависович",9,"2002-10-12","муж",0,0,0,500,"участник","Пашкова Ольга Владимировна","МБОУ «Средняя общеобразовательная школа №1\" Менделеевского муниципального района Республики Татарстан"]
[114,"Муслюмовский","МБОУ \"Большечекмакская основная общеобразовательная школа\"  Муслюмовского муниципального района Республики Татарстан","Шафигуллин","Айбулат","Васимович",9,"2004-09-07","М",0,0,0,500,null,"Нагимов Мунавир Анварович","МБОУ \"Большечекмакская основная общеобразовательная школа\"  Муслюмовского муниципального района Республики Татарстан"]
[115,"Муслюмовский","МБОУ \"Муслюмовский лицей\" Муслюмовского муниципального района Республики Татарстан","Юнусов","Вильдан","Ришатович",9,"2003-11-29","М",0,0,0,500,null,"Мирасов Ильгам Халилевич","МБОУ \"Муслюмовский лицей\" Муслюмовского муниципального района Республики Татарстан"]
[116,"Нижнекамский","МБОУ \"Средняя общеобразовательная школа № 1 с углубленным изучением отдельных предметов\"","Пушин ","Дмитрий","Игоревич",9,"2003-09-09","муж",0,null,0,500,"Участник","Коткова Ксения Александровна","МБОУ \"Средняя общеобразовательная школа № 1 с углубленным изучением отдельных предметов\""]
[117,"Нижнекамский","МБОУ \"Средняя общеобразовательная школа № 2\"","Булатов","Рашид","Ринатович",9,"2003-06-01","муж",0,null,0,500,"Участник","Валиуллина Диляра Артуровна","МБОУ \"Средняя общеобразовательная школа № 2\""]
[118,"Нижнекамский","МБОУ \"Средняя общеобразовательная школа № 2\"","Калимуллин","Булат ","Ильдарович",9,"2003-02-24","муж",0,null,0,500,"Участник","Валиуллина Диляра Артуровна","МБОУ \"Средняя общеобразовательная школа № 2\""]
[119,"Нижнекамский","МБОУ \"Средняя общеобразовательная школа № 6\"","Зиганшин ","Дмитрий","Денисович",9,"2002-10-19","муж",0,null,0,500,"Участник","Гурьянова Ольга Владимировна","МБОУ \"Средняя общеобразовательная школа № 6\""]
[120,"Нижнекамский","МБОУ \"Средняя общеобразовательная школа № 10 с углубленным изучением отдельных предметов\"","Хабибуллин","Риналь","Ринатович",9,"2003-10-29","муж",0,null,0,500,"Участник","Мельникова Светлана Владимировна","МБОУ \"Средняя общеобразовательная школа № 10 с углубленным изучением отдельных предметов\""]
[121,"Нижнекамский","МБОУ \"Средняя общеобразовательная школа № 10 с углубленным изучением отдельных предметов\"","Дютин","Тимур","Олегович",9,"2002-12-20","муж",0,null,0,500,"Участник","Мельникова Светлана Владимировна","МБОУ \"Средняя общеобразовательная школа № 10 с углубленным изучением отдельных предметов\""]
[122,"Нижнекамский","МБОУ \"Гимназия № 22\"","Гареева","Варвара","Артуровна",9,"2003-07-11","жен",0,null,0,500,"Участник","Гильмутдинова Гузель Нафисовна","МБОУ \"Гимназия № 22\""]
[123,"Нижнекамский","МБОУ \"Средняя общеобразовательная школа № 27 с углубленным изучением отдельных предметов\"","Назаренко ","Артемий","Андреевич",9,"2003-11-11","муж",0,null,0,500,"Участник","Пантелеева Ольга Анатольевна","МБОУ \"Средняя общеобразовательная школа № 27 с углубленным изучением отдельных предметов\""]
[124,"Нижнекамский","МБОУ \"Гимназия-интернат № 34\"","Малов","Сергей","Алексеевич",9,"2003-10-20","муж",0,null,0,500,"Участник","Латыпов Миляуша Саяфовна","МБОУ \"Гимназия-интернат № 34\""]
[125,"Нижнекамский","МБОУ \"Лицей № 35\"","Карпов","Вадим","Александрович",9,"2003-02-27","муж",0,null,0,500,"Участник","Бликина Татьяна Анатольевна","МБОУ \"Лицей № 35\""]
[126,"Нижнекамский","МБОУ \"Лицей № 35\"","Григорьев","Виталий","Артемович",9,"2003-08-21","муж",0,null,0,500,"Участник","Бликина Татьяна Анатольевна","МБОУ \"Лицей № 35\""]
[127,"Нурлатский","Муниципальное автономное общеобразовательное учреждение \"Нурлатская гимназия имени Героя Советского Союза  Михаила Егоровича Сергеева\" г.Нурлат","Емельянов","Михаил","Александрович",9,"2003-10-16","муж",0,null,0,500,null,"Фадькин Алексей Владимирович","Муниципальное автономное общеобразовательное учреждение \"Нурлатская гимназия имени Героя Советского Союза  Михаила Егоровича Сергеева\" г.Нурлат"]
[128,"Пестречинский","МБОУ «Пестречинская средняя общеобразовательная школа №2 »","Мифтахутдинов","Искандер","Рафаильевич",9,null,"муж",0,0,0,500,"участник","Валеева Гульчечек Фанисовна","МБОУ «Пестречинская средняя общеобразовательная школа №2 »"]
[129,"Рыбно-Слободский","Муниципальное бюджетное общеобразовательное учреждение \"Рыбно-Слободская СОШ№2\" Рыбно-Слободского муниципального района Республики Татарстан","Талалаев","Владимир","Ильич",9,"2003-05-18","муж",0,null,0,500,null,"Кашапов Юнус Абдулхамитович","Муниципальное бюджетное общеобразовательное учреждение \"Рыбно-Слободская СОШ№2\" Рыбно-Слободского муниципального района Республики Татарстан"]
[130,"Рыбно-Слободский","Муниципальное бюджетное общеобразовательное учреждение \"Шумбутская средняя общеобразовательная школа\" Рыбно-Слободского муниципального района Республики Татарстан","Салахеев","Инсаф","Ринатович",9,null,"муж",0,null,0,500,null,"Зиннатуллина Диляра габдрашитовна","Муниципальное бюджетное общеобразовательное учреждение \"Шумбутская средняя общеобразовательная школа\" Рыбно-Слободского муниципального района Республики Татарстан"]
[131,"Рыбно-Слободский","Муниципальное бюджетное общеобразовательное учреждение \"Троицко-Урайская основная общеобразовательная школа\" Рыбно-Слободского муниципального района Республики Татарстан","Пулатова","Адиля","Равилевна",9,"2003-03-31","жен",0,null,0,500,null,"Речкалова Наталья Владимировна","Муниципальное бюджетное общеобразовательное учреждение \"Троицко-Урайская основная общеобразовательная школа\" Рыбно-Слободского муниципального района Республики Татарстан"]
[132,"Сабинский","Муниципальное бюджетное общеобразовательное учреждение \"Иштуганская средняя общеобразовательная школа Сабинского муниципального района Республики Татарстан\"","Сабиров ","Айдар","Талгатович",9,"2002-12-21","муж",0,0,0,500,"Участник","Бурганов Тимур Юрьевич","Муниципальное бюджетное общеобразовательное учреждение \"Иштуганская средняя общеобразовательная школа Сабинского муниципального района Республики Татарстан\""]
[133,"Спасский","МБОУ «Болгарская средняя общеобразовательная школа №2\" Спасского муниципального района Республики Татарстан","Федоров ","Максим ","Сергеевич",9,"2003-05-07","муж",0,null,0,500,"участник","Калинкина Анна Евгеньевна","МБОУ «Болгарская средняя общеобразовательная школа №2\" Спасского муниципального района Республики Татарстан"]
[134,"Спасский","МБОУ «Болгарская средняя общеобразовательная школа №2\" Спасского муниципального района Республики Татарстан","Феоктистов","Андрей","Леонидович",10,"2002-04-15","муж",0,null,0,500,"участник","Калинкина Анна Евгеньевна","МБОУ «Болгарская средняя общеобразовательная школа №2\" Спасского муниципального района Республики Татарстан"]
[135,"Тукаевский","Муниципальное бюджетное общеобразовательное учреждение \"Семекеевская ООШ\"  ","Абзалутдинов","Динар","Василевич",9,"2004-06-28","муж",0,null,0,500,"участник","Гарифуллин Ильназ Зуфарович","Муниципальное бюджетное общеобразовательное учреждение\"Семекеевская ООШ\"  "]
[136,"Набрежные Челны","МБОУ \"Средняя общеобразовательная школа №37 с углублённым изучением отдельных предметов\" г.Набережные Челны","Авдеев","Давыд","Алексеевич",9,"2003-09-01","муж",0,null,0,500,"участник","Шамилова Ралина Рузиловна","МБОУ \"Средняя общеобразовательная школа №37 с углублённым изучением отдельных предметов\" г.Набережные Челны"]
[137,"Набрежные Челны","ЧОУ \"Средняя общеобразовательная школа \"Веста\" г.Набережные Челны","Бакунович","Роман","Максимович",9,"2003-08-21","муж",0,null,0,500,"участник","Камаева Резеда Назметдиновна","ЧОУ \"Средняя общеобразовательная школа \"Веста\" г.Набережные Челны"]
[138,"Набрежные Челны","МАОУ \"Средняя общеобразовательная школа №35 с углубленным изучением отдельных предметов\" г. Набережные Челны","Горбовский","Никита","Витальевич",9,"2003-03-16","муж",0,null,0,500,"участник","Биканова Евгения Геннадьевна","МАОУ \"Средняя общеобразовательная школа №35 с углубленным изучением отдельных предметов\" г. Набережные Челны"]
[139,"Набрежные Челны","МАОУ \"СОШ №48\"\n г. Набережные Челны","Идрисов","Данир","Рамилевич",9,"2002-12-03","муж",0,null,0,500,"участник","Мингазова Рузиля Накиповна","МАОУ \"СОШ №48\"\n г. Набережные Челны"]
[140,"Набрежные Челны","МБОУ \"Средняя общеобразовательная школа №13\" г.Набережные Челны","Колотилов","Андрей","Сергеевич",9,"2003-01-06","муж",0,null,0,500,"участник","Харченко Лейли Робиновна","МБОУ \"Средняя общеобразовательная школа №10\" г.Набережные Челны"]
[141,"Набрежные Челны","МБОУ \"Средняя общеобразовательная школа №30\" г.Набережные Челны","Краснова","Алина","Александровна",9,"2003-08-09","жен",0,null,0,500,"участник","Кабирова Людмила Ивановна","МБОУ \"Средняя общеобразовательная школа №30\" г.Набережные Челны"]
[142,"Набрежные Челны","МАОУ \"Гимназия №77\" г.Набережные Челны","Малыгин","Илья","Николаевич",9,"2003-08-06","муж",0,null,0,500,"участник","Степашкина Наталья Владимировна","МАОУ \"Гимназия №77\" г.Набережные Челны"]
[143,"Набрежные Челны","МАОУ \"Средняя общеобразовательная школа №38\"","Малютин","Виталий","Сергеевич",9,"2003-01-30","муж",0,null,0,500,"участник","Циденкова Екатерина Михайловна","МАОУ \"Средняя общеобразовательная школа №38\""]
[144,"Набрежные Челны","МБОУ \"Средняя общеобразовательная школа №19 с углублённым изучением отдельных предметов\" г.Набережные Челны","Муллахметов ","Булат ","Ильгамович",9,"2003-07-24","муж",0,null,0,500,"участник","Мифтахова Гульнар Жаксылыковна","МБОУ \"Средняя общеобразовательная школа №19 с углублённым изучением отдельных предметов\" г.Набережные Челны"]
[145,"Набрежные Челны","МБОУ \"Средняя общеобразовательная школа №32 с углублённым изучением отдельных предметов\" г.Набережные Челны","Панов","Сергей","Иванович",9,"2003-02-27","муж",0,null,0,500,"участник","Баринов Евгений Геннадьеыич","МБОУ \"Средняя общеобразовательная школа №32 с углублённым изучением отдельных предметов\" г.Набережные Челны"]
[146,"Набрежные Челны","ГБОУ \"Кадетская школа полиции \"Калкан\", г.Набережные Челны","Пименов","Данил","Валерьевич",9,"2003-04-21","муж",0,null,0,500,"участник","Юсупова Лейла Фирдаусоввна","ГБОУ \"Кадетская школа полиции \"Калкан\", г.Набережные Челны"]
[147,"Набрежные Челны","МБОУ \"Средняя общеобразовательная школа №12\"предметов\" г.Набережные Челны","Салимгареев","Эмиль","Альбертович",9,"2003-06-05","муж",0,null,0,500,"участник","Гиззатуллина Лейсан Дамировна","МБОУ \"Средняя общеобразовательная школа №12\"предметов\" г.Набережные Челны"]
[148,"Набрежные Челны","МАОУ  \"Кадетская школа №49\"","Фахрутдинов","Артур","Эдуардович",9,"2002-12-14","муж",0,null,0,500,"участник","Фаязова Гульчачак Зуфаковна ","МАОУ  \"Кадетская школа №49\""]
[149,"Набрежные Челны","МБОУ \"Средняя общеобразовательная школа №8 \" г.Набережные Челны","Чернов","Дмитрий"," Олегович",9,"2003-05-29","муж",0,null,0,500,"участник","Файзулина Адель Рамилевна","МБОУ \"Средняя общеобразовательная школа №8 \" г.Набережные Челны"]
[150,"Балтасинский","муниципальное бюджетное общеобразовательное учреждение «Нурминская\nсредняя общеобразовательная школа» Балтасинского муниципального района Республики\nТатарстан","Габнасыров","Раниль","Маратович",9,"2003-09-01","м",0,null,0,500,null,"Волков Руслан Ревалевич","муниципальное бюджетное общеобразовательное учреждение «Нурминская\nсредняя общеобразовательная школа» Балтасинского муниципального района Республики\nТатарстан"]

{"sheet":"10","index":2,"n_rows":223,"n_cols":16,"rows_kept":223,"merged":[[0,1,0,14]]}
[null,"Итоговый протокол по итогам муниципального этапа ВсОШ/РОШ  по предмету ИНФОРМАТИКА  в 2018-2019 учебном году"]
["№ п/п","Муниципалитет","Полное наименование образовательного учреждения (по уставу)","Фамилия","Имя","Отчество","Класс","Дата рождения","Пол","Балл","Апеляционный балл","Итоговый балл","Максимальный балл","Статус","Фамилия педагога, подготовившего участника олимпиады","Полное наименование образовательного учреждения (по уставу)"]
[1,"Вахитовский","Общеобразовательная школа-интернат «Лицей имени Н. И. Лобачевского» К(П)ФУ","Камалов","Амир","Рустемович",10,"2002-09-06","M",500,null,500,500,"победитель","Михайлин Сергей Иванович","Общеобразовательная школа-интернат «Лицей имени Н. И. Лобачевского» К(П)ФУ "]
[2,"Вахитовский","МАОУ «Лицей №131»","Миннахметов","Булат","Раифович",10,"2002-02-22","M",500,null,500,500,"победитель","Ефремов Руслан Сергеевич","МАОУ «Лицей №131» "]
[3,"Приволжский","Лицей-интернат «IТ-лицей К(П)ФУ»","Хамитов","Тагир","Наилевич",10,"2002-11-04","M",500,null,500,500,"победитель","Митясова Елена Анатольевна","Лицей-интернат «IТ-лицей К(П)ФУ» "]
[4,"Приволжский","Лицей-интернат «IТ-лицей К(П)ФУ»","Хасанов","Тимур","Ильшатович",10,"2002-06-07","M",500,null,500,500,"победитель","Митясова Елена Анатольевна","Лицей-интернат «IТ-лицей К(П)ФУ» "]
[5,"Набрежные Челны","МБОУ \"Гимназия №26\"","Шапрунов  ","Кирилл","Сергеевич",10,"2002-01-24","муж",500,null,500,500,"победитель","Бадагиева Елена Зайнутдиновна","МБОУ \"Гимназия №26\""]
[6,"Ново-Савиновский","МАОУ «Лицей-интернат №7»","Гараев","Тимур","Ильдарович",10,"2001-11-01","M",440,null,440,500,"призер","Азимуратов Шухрат Батырович","   МАОУ «Лицей-интернат №7» "]
[7,"Приволжский","Лицей-интернат «IТ-лицей К(П)ФУ»","Семенов","Роман","Сергеевич",10,"2002-09-06","M",440,null,440,500,"призер","Митясова Елена Анатольевна","Лицей-интернат «IТ-лицей К(П)ФУ» "]
[8,"Верхнеуслонский","Государственное автономное общеобразовательное учреждение \"Лицей Иннополис\"","Хайруллин","Инсаф","Марселевич",10,"2002-12-10","м",440,null,440,500,"победитель","Беляева Ольга Семёновна","Государственное автономное общеобразовательное учреждение \"Лицей Иннополис\""]
[9,"Вахитовский","МАОУ «Лицей №131»","Кисловский","Алексей","Дмитриевич",10,"2002-02-26","M",420,null,420,500,"призер","Шубинкин Владимир Николаевич","         МАОУ «Лицей №131» "]
[10,"Приволжский","МБОУ Лицей №78 \"Фарватер\" Приволжского района г. Казани\"","Новожилов ","Артур","Ирекович",10,"2002-08-27","M",420,null,420,500,"призер","Чернов Павел Евгеньевич","МБОУ Лицей №78 Фарватер Приволжского района г. Казани "]
[11,"Верхнеуслонский","Государственное автономное общеобразовательное учреждение \"Лицей Иннополис\"","Закиров","Далер","Тимурович",10,"2002-02-17","м",420,null,420,500,"победитель","Беляева Ольга Семёновна","Государственное автономное общеобразовательное учреждение \"Лицей Иннополис\""]
[12,"Московский","МБОУ «Гимназия №122 имени Ж.А Зайцевой»","Габдуллин ","Роберт ","Айратович",10,"2002-01-17","M",400,null,400,500,"призер","Миннигулова Раиса Мухаметовна","   МБОУ «Гимназия №122 имени Ж.А Зайцевой» "]
[13,"Ново-Савиновский","МАОУ «Лицей-интернат №7»","Галимзянов","Адель","Ильнарович",10,"2002-09-11","M",400,null,400,500,"призер","Азимуратов Шухрат Батырович"," МАОУ «Лицей-интернат №7» "]
[14,"Приволжский","Лицей-интернат «IТ-лицей К(П)ФУ»","Еров","Егор","Олегович",10,"2002-07-31","M",400,null,400,500,"призер","Митясова Елена Анатольевна","Лицей-интернат «IТ-лицей К(П)ФУ» "]
[15,"Приволжский","Лицей-интернат «IТ-лицей К(П)ФУ»","Платонов","Николай","Дмитриевич",10,"2002-02-05","M",400,null,400,500,"призер","Митясова Елена Анатольевна","Лицей-интернат «IТ-лицей К(П)ФУ» "]
[16,"Вахитовский","Общеобразовательная школа-интернат «Лицей имени Н. И. Лобачевского» К(П)ФУ","Шубников","Кирилл","Сергеевич",10,"2002-09-18","M",400,null,400,500,"призер","Михайлин Сергей Иванович","Общеобразовательная школа-интернат «Лицей имени Н. И. Лобачевского» К(П)ФУ "]
[17,"Верхнеуслонский","Государственное автономное общеобразовательное учреждение \"Лицей Иннополис\"","Камалетдинов","Айрат","Ильшатович",10,"2002-05-12","м",400,null,400,500,"победитель","Беляева Ольга Семёновна","Государственное автономное общеобразовательное учреждение \"Лицей Иннополис\""]
[18,"Набрежные Челны","МБОУ \"Гимназия №26\"","Лемешко","Андрей","Андреевич",10,"2002-03-10","муж",400,null,400,500,"призер","Бадагиева Елена Зайнутдиновна","МБОУ \"Гимназия №26\""]
[19,"Московский","МБОУ «Гимназия №122 имени Ж.А Зайцевой»","Шакирова ","Рената","Ильдаровна",10,"2001-10-11","Ж",390,null,390,500,"призер","Миннигулова Раиса Мухаметовна","МБОУ «Гимназия №122 имени Ж.А Зайцевой» "]
[20,"Вахитовский","МАОУ «Лицей №131»","Андреев ","Аркадий","Сергеевич",10,"2001-12-29","M",370,null,370,500,"призер","Корчагин Геннадий Евгеньевич","     МАОУ «Лицей №131» "]
[21,"Вахитовский","Общеобразовательная школа-интернат «Лицей имени Н. И. Лобачевского» К(П)ФУ","Воробьев","Дмитрий","Игоревич",10,"2002-09-10","M",360,null,360,500,"призер","Михайлин Сергей Иванович","Общеобразовательная школа-интернат «Лицей имени Н. И. Лобачевского» К(П)ФУ "]
[22,"Ново-Савиновский","МАОУ «Лицей-интернат №7»","Шарипов ","Оскар ","Русланович",10,"2002-10-21","M",360,null,360,500,"призер","Азимуратов Шухрат Батырович","МАОУ «Лицей-интернат №7» "]
[23,"Вахитовский","МАОУ «Лицей №131»","Файзрахманов","Адель","Ильшатович",10,"2002-03-05","M",350,null,350,500,"призер","Бамбуркина Людмила Викторовна","    МАОУ «Лицей №131» "]
[24,"Приволжский","Лицей-интернат «IТ-лицей К(П)ФУ»","Рожков","Денис","Валерьевич",10,"2002-05-16","M",330,null,330,500,"призер","Митясова Елена Анатольевна","Лицей-интернат «IТ-лицей К(П)ФУ» "]
[25,"Московский","МАОУ «Лицей-интернат №2» Московского района","Хафизов","Булат","Ленарович",10,"2002-03-31","M",330,null,330,500,"призер","Аглямзанов Рамиль Ривальдович","   МАОУ Лицей-интернат №2"]
[26,"Вахитовский","МАОУ «Лицей №131»","Морозов","Артемий","Андреевич",10,"2002-02-13","M",320,null,320,500,"призер","Ефремов Руслан Сергеевич","        МАОУ «Лицей №131» "]
[27,"Приволжский","Лицей-интернат «IТ-лицей К(П)ФУ»","Александров","Дмитрий","Александрович",10,"2002-06-15","M",300,null,300,500,"призер","Митясова Елена Анатольевна","Лицей-интернат «IТ-лицей К(П)ФУ» "]
[28,"Приволжский","Лицей-интернат «IТ-лицей К(П)ФУ»","Ахматов","Мансур","Маулитзянович",10,"2002-02-25","M",300,null,300,500,"призер","Митясова Елена Анатольевна","Лицей-интернат «IТ-лицей К(П)ФУ» "]
[29,"Приволжский","Лицей-интернат «IТ-лицей К(П)ФУ»","Борисов","Александр","Сергеевич",10,"2002-04-05","M",300,null,300,500,"призер","Митясова Елена Анатольевна","Лицей-интернат «IТ-лицей К(П)ФУ» "]
[30,"Вахитовский","МАОУ «Лицей №131»","Кандрашкин","Александр","Юрьевич",10,"2003-02-17","M",300,null,300,500,"призер","Шубинкин Владимир Николаевич","МАОУ «Лицей №131» "]
[31,"Московский","МАОУ «Лицей-интернат №2» Московского района","Латыпов","Эмиль","Гараевич",10,"2003-03-04","M",300,null,300,500,"призер","Аглямзанов Рамиль Ривальдович","   МАОУ Лицей-интернат №2"]
[32,"Приволжский","Лицей-интернат «IТ-лицей К(П)ФУ»","Мингалиев","Амир","Маратович",10,"2003-02-05","M",300,null,300,500,"призер","Митясова Елена Анатольевна","Лицей-интернат «IТ-лицей К(П)ФУ» "]
[33,"Приволжский","Лицей-интернат «IТ-лицей К(П)ФУ»","Миргаязов","Данил","Айратович",10,"2002-06-28","M",300,null,300,500,"призер","Митясова Елена Анатольевна","Лицей-интернат «IТ-лицей К(П)ФУ» "]
[34,"Приволжский","Лицей-интернат «IТ-лицей К(П)ФУ»","Митясова","Наталья","Сергеевна",10,"2003-02-13","Ж",300,null,300,500,"призер","Митясова Елена Анатольевна","Лицей-интернат «IТ-лицей К(П)ФУ» "]
[35,"Приволжский","Лицей-интернат «IТ-лицей К(П)ФУ»","Саляхов","Адель","Ренатович",10,"2002-05-10","M",300,null,300,500,"призер","Митясова Елена Анатольевна","Лицей-интернат «IТ-лицей К(П)ФУ» "]
[36,"Приволжский","Лицей-интернат «IТ-лицей К(П)ФУ»","Серазутдинов","Тимур","Дамирович",10,"2002-07-15","M",300,null,300,500,"призер","Митясова Елена Анатольевна","Лицей-интернат «IТ-лицей К(П)ФУ» "]
[37,"Приволжский","Лицей-интернат «IТ-лицей К(П)ФУ»","Сидоркин","Илья","Романович",10,"2003-05-28","M",300,null,300,500,"призер","Митясова Елена Анатольевна","Лицей-интернат «IТ-лицей К(П)ФУ» "]
[38,"Авиастроительный","МБОУ «Лицей №145»","Стрижнев","Александр","Никитич",10,"2002-08-17","M",300,null,300,500,"призер","Шкодырев Дмитрий Владимирович","МБОУ «Лицей №145» "]
[39,"Приволжский","Лицей-интернат «IТ-лицей К(П)ФУ»","Хазиев","Данис","Ильгизович",10,"2002-07-30","M",300,null,300,500,"призер","Митясова Елена Анатольевна","Лицей-интернат «IТ-лицей К(П)ФУ» "]
[40,"Приволжский","Лицей-интернат «IТ-лицей К(П)ФУ»","Хаиров","Руслан","Булатович",10,"2002-08-06","M",300,null,300,500,"призер","Митясова Елена Анатольевна","Лицей-интернат «IТ-лицей К(П)ФУ» "]
[41,"Приволжский","Лицей-интернат «IТ-лицей К(П)ФУ»","Хамитова","Айша","Рашидовна",10,"2002-11-10","Ж",300,null,300,500,"призер","Митясова Елена Анатольевна","Лицей-интернат «IТ-лицей К(П)ФУ» "]
[42,"Приволжский","Лицей-интернат «IТ-лицей К(П)ФУ»","Шайхутдинов","Амир","Алмазович",10,"2001-12-27","M",300,null,300,500,"призер","Митясова Елена Анатольевна","Лицей-интернат «IТ-лицей К(П)ФУ» "]
[43,"Московский","МАОУ «Лицей-интернат №2» Московского района","Шакиров","Азамат","Ирекович",10,"2003-03-02","M",300,null,300,500,"призер","Сафиулин Ильшат Ирикович","   МАОУ Лицей-интернат №2"]
[44,"Альметьевский","МАОУ \"Лицей-интернат №1\" г.Альметьевска Республики Татарстан","Саетгараев","Батыр","Рашидович",10,"2002-10-15","м",300,0,{"$f":"J46","v":300},500,"Победитель","Нафиков Данил Рашидович","МАОУ \"Лицей-интернат №1\" г.Альметьевска Республики Татарстан"]
[45,"Верхнеуслонский","Государственное автономное общеобразовательное учреждение \"Лицей Иннополис\"","Гибаев","Булат","Ильдусович",10,"2002-06-17","м",300,null,300,500,"призер","Беляева Ольга Семёновна","Государственное автономное общеобразовательное учреждение \"Лицей Иннополис\""]
[46,"Набрежные Челны","МБОУ \"Гимназия №26\"","Есин","Максим","Сергеевич",10,"2002-04-29","муж",300,null,300,500,"призер","Бадагиева Елена Зайнутдиновна","МБОУ \"Гимназия №26\""]
[47,"Вахитовский","МАОУ «Лицей №131»","Хайрнасов","Андрей","Константинович",10,"2001-11-24","M",230,null,230,500,null,"Аитов Руслан Рашидович","МАОУ «Лицей №131» "]
[48,"Нижнекамский","МБОУ \"Лицей-интернат № 24\"","Билалов","Салават","Рустемович",10,"2002-04-15","муж",230,null,230,500,"Участник","Гайнутдинов Радмир Рашитович","МБОУ \"Лицей-интернат № 24\""]
[49,"Приволжский","Лицей-интернат «IТ-лицей К(П)ФУ»","Кольцов","Виталий","Павлович",10,"2002-01-18","M",220,null,220,500,null,"Митясова Елена Анатольевна","Лицей-интернат «IТ-лицей К(П)ФУ» "]
[50,"Верхнеуслонский","Государственное автономное общеобразовательное учреждение \"Лицей Иннополис\"","Макаров","Вадим","Дмитриевич",10,"2002-10-04","м",220,null,220,500,"участник","Беляева Ольга Семёновна","Государственное автономное общеобразовательное учреждение \"Лицей Иннополис\""]
[51,"Менделеевский","МБОУ «Средняя общеобразовательная школа №1\" Менделеевского муниципального района Республики Татарстан","Зиннатуллин","Рамиль","Ильгизович",10,"2002-02-22","муж",220,0,220,500,"участник","Пузырев Станислав Владимирович","МБОУ «Средняя общеобразовательная школа №1\" Менделеевского муниципального района Республики Татарстан"]
[52,"Набрежные Челны","МАОУ «Гимназия № 57» г.Набережные Челны","Аглямов ","Ильнур ","Фаязович",10,"2002-09-16","муж",220,null,220,500,"участник","Салахиева Евгения Михайловна","МАОУ «Гимназия № 57» г.Набережные Челны"]
[53,"Набрежные Челны","МАОУ \"Лицей № 78 им. А.С.Пушкина\" г.Набережные Челны","Тарбеева ","Софья ","Дмитриевна",10,"2002-07-13","жен",220,null,220,500,"участник","Ханнанова Сакина Талхиевна","МАОУ \"Лицей № 78 им. А.С.Пушкина\" г.Набережные Челны"]
[54,"Приволжский","Лицей-интернат «IТ-лицей К(П)ФУ»","Гимранов","Артур","Маратович",10,"2002-03-20","M",200,null,200,500,null,"Митясова Елена Анатольевна","Лицей-интернат «IТ-лицей К(П)ФУ» "]
[55,"Приволжский","Лицей-интернат «IТ-лицей К(П)ФУ»","Евдокимов","Александр","Алексеевич",10,"2002-04-10","M",200,null,200,500,null,"Митясова Елена Анатольевна","Лицей-интернат «IТ-лицей К(П)ФУ» "]
[56,"Приволжский","Лицей-интернат «IТ-лицей К(П)ФУ»","Еремов","Артур","Алексеевич",10,"2002-07-30","M",200,null,200,500,null,"Латыпов Ильдар Ирекович","Лицей-интернат «IТ-лицей К(П)ФУ» "]
[57,"Приволжский","Лицей-интернат «IТ-лицей К(П)ФУ»","Забиров","Аяз","Айратович",10,"2001-12-10","M",200,null,200,500,null,"Митясова Елена Анатольевна","Лицей-интернат «IТ-лицей К(П)ФУ» "]
[58,"Приволжский","Лицей-интернат «IТ-лицей К(П)ФУ»","Иванов","Александр","Сергеевич",10,"2002-05-31","M",200,null,200,500,null,"Митясова Елена Анатольевна","Лицей-интернат «IТ-лицей К(П)ФУ» "]
[59,"Приволжский","Лицей-интернат «IТ-лицей К(П)ФУ»","Инсапов","Максим","Ильшатович",10,"2002-09-08","M",200,null,200,500,null,"Митясова Елена Анатольевна","Лицей-интернат «IТ-лицей К(П)ФУ» "]
[60,"Ново-Савиновский","Инженерный лицей КНИТУ-КАИ","Силуянов","Илья","Андреевич",10,"2003-01-06","M",200,null,200,500,null,"Исмаилова Наталья Владимировна","  Инженерный лицей КНИТУ-КАИ "]
[61,"Приволжский","Лицей-интернат «IТ-лицей К(П)ФУ»","Федоров","Михаил","Сергеевич",10,"2002-05-13","M",200,null,200,500,null,"Латыпов Ильдар Ирекович","Лицей-интернат «IТ-лицей К(П)ФУ» "]
[62,"Вахитовский","Муниципальное автономное общеобразовательное учреждение для детей, проявивших выдающиеся способности «Средняя общеобразовательная школа-интернат «Специализированный олимпиадно-научный центр «СОлНЦе»","Шарифуллин  ","Ильдан","Айратович",10,"2002-11-29","M",200,null,200,500,null,"Королев Юрий Николаевич","  Муниципальное автономное общеобразовательное учреждение для детей, проявивших выдающиеся способности «Средняя общеобразовательная школа-интернат «Специализированный олимпиадно-научный центр «СОлНЦе» "]
[63,"Альметьевский","МАОУ \"Лицей-интернат №1\" г.Альметьевска Республики Татарстан","Касимов","Тимур","Артурович",10,"2002-03-24","м",200,0,{"$f":"J65","v":200},500,"Призер","Нафиков Данил Рашидович","МАОУ \"Лицей-интернат №1\" г.Альметьевска Республики Татарстан"]
[64,"Альметьевский","МАОУ  \"Средняя общеобразовательная школа №10 с углубленным изучением отдельных предметов\" г.Альметьевска Республики Татарстан ","Галиев","Камиль","Радикович",10,"2002-06-02","м",200,0,{"$f":"J66","v":200},500,"Призер","Юсупова Рондия Фанисовна","МАОУ  \"Средняя общеобразовательная школа №10 с углубленным изучением отдельных предметов\" г.Альметьевска Республики Татарстан "]
[65,"Альметьевский","МАОУ  \"Средняя общеобразовательная школа №10 с углубленным изучением отдельных предметов\" г.Альметьевска Республики Татарстан ","Арсланов ","Алмаз","Радикович",10,"2002-12-01","м",200,0,{"$f":"J67","v":200},500,"Призер","Юсупова Рондия Фанисовна","МАОУ  \"Средняя общеобразовательная школа №10 с углубленным изучением отдельных предметов\" г.Альметьевска Республики Татарстан "]
[66,"Бугульминский","Муниципальное бюджетное общеобразовательное учреждение лицей-интернат имени Мустафы Онджеля Бугульминского муниципального района Республики Татарстан","Гимранов","Айюб","Ильдарович",10,"2002-04-07","муж",200,0,200,500,"участник","Чиглаков Ильдар Андреевич","МБОУ лицей-интернат имени Мустафы Онджеля"]
[67,"Верхнеуслонский","Государственное автономное общеобразовательное учреждение \"Лицей Иннополис\"","Егоров","Руслан","Олегович",10,"2002-08-09","м",200,null,200,500,"участник","Беляева Ольга Семёновна","Государственное автономное общеобразовательное учреждение \"Лицей Иннополис\""]
[68,"Верхнеуслонский","Государственное автономное общеобразовательное учреждение \"Лицей Иннополис\"","Набиуллин","Дамир","Ленарович",10,"2002-09-02","м",200,null,200,500,"участник","Беляева Ольга Семёновна","Государственное автономное общеобразовательное учреждение \"Лицей Иннополис\""]
[69,"Нижнекамский","МБОУ \"Лицей-интернат № 24\"","Марданов","Самат","Ришатович",10,"2002-04-15","муж",200,null,200,500,"Участник","Гайнутдинов Радмир Рашитович","МБОУ \"Лицей-интернат № 24\""]
[70,"Набрежные Челны","МАОУ \"Лицей-интернат №84 имени Гали Акыша\" города Набережные Челны","Киршин","Максим ","Анатольевич",10,"13.11.2001","муж",200,null,200,500,"участник","Бисеров Ильгизар Рустамович","МАОУ \"Лицей-интернат №84 имени Гали Акыша\" города Набережные Челны"]
[71,"Набрежные Челны","МАОУ \"Средняя общеобразовательная школа №34 с углублённым изучением отдельных предметов\" г.Набережные Челны","Чувашов"," Ярослав","Андреевич",10,"2002-03-17","муж",200,null,200,500,"участник","Панюшкина Светлана Валентиновна","МАОУ \"Средняя общеобразовательная школа №34 с углублённым изучением отдельных предметов\" г.Набережные Челны"]
[72,"Набрежные Челны","МБОУ \"Гимназия №26\"","Шагиев  ","Рамиль","Расулович",10,"2002-08-29","муж",200,null,200,500,"участник","Бадагиева Елена Зайнутдиновна","МБОУ \"Гимназия №26\""]
[73,"Московский","МАОУ «Лицей-интернат №2» Московского района","Гиниятов","Инсаф","Альфирович",10,"2003-05-28","M",170,null,170,500,null,"Сафиулин Ильшат Ирикович","    МАОУ Лицей-интернат №2"]
[74,"Вахитовский","МАОУ «Лицей №131»","Лодочникова","Евгения","Витальевна",10,"2002-04-04","Ж",170,null,170,500,null,"Аитов Руслан Рашидович","  МАОУ «Лицей №131» "]
[75,"Кукморский ","Муниципальное бюджетное общеобразовательное учреждение «СОШ им. Г.Г. Гарифуллина с. Ядыгерь» Кукморского муниципального района Республики Татарстан","Файхрахманов","Инсаф","Анасович",10,"2002-08-27","муж",160,null,160,500,"участник ","Нуриев Рамис Расимович","Муниципальное бюджетное общеобразовательное учреждение «СОШ им. Г.Г. Гарифуллина с. Ядыгерь» Кукморского муниципального района Республики Татарстан"]
[76,"Приволжский","Лицей-интернат «IТ-лицей К(П)ФУ»","Галимзянов","Антон","Артурович",10,"2002-11-11","M",140,null,140,500,null,"Митясова Елена Анатольевна","Лицей-интернат «IТ-лицей К(П)ФУ» "]
[77,"Вахитовский","МАОУ «Лицей №131»","Хуснутдинов","Фазиль","Ильдарович",10,"2001-12-25","M",140,null,140,500,null,"Абиров Ансат Нурланович","АНО ВО Университет Иннополис"]
[78,"Бугульминский","Муниципальное бюджетное общеобразовательное учреждение лицей-интернат имени Мустафы Онджеля Бугульминского муниципального района Республики Татарстан","Касимова","Аделия","Салаватовна",10,"2002-06-23","жен",140,0,140,500,"участник","Чиглаков Ильдар Андреевич","МБОУ лицей-интернат имени Мустафы Онджеля"]
[79,"Ново-Савиновский","МБОУ «Гимназия №7» Ново-Савиновского района г.Казани. Школа-центр компетенции в электронном образовании","Шинкарев","Игорь","Артурович",10,"2002-10-04","M",130,null,130,500,null,"Соложенцева Рамзия Салиховна","МБОУ «Гимназия №7» Ново-Савиновского района г.Казани. Школа-центр компетенции в электронном образовании "]
[80,"Московский","МБОУ «Гимназия №122 имени Ж.А Зайцевой»","Миннуллин ","Булат ","Айратович",10,"2002-04-10","M",120,null,120,500,null,"Миннигулова Раиса Мухаметовна","МБОУ «Гимназия №122 имени Ж.А Зайцевой» "]
[81,"Зеленодольский","МБОУ «Гимназия №3» ЗМР РТ","Верин","Дмитрий","Сергеевич",10,"2002-05-20","муж",120,0,120,500,"Призер","Маликов Владимир Евгеньевич","МБОУ «Гимназия №3» Зеленодольского мцниципального района Республики Татарстан\""]
[82,"Нурлатский","Муниципальное автономное общеобразовательное учреждение \" Средняя общеобразовательная школа №4\" г.Нурлат Республики Татарстан","Ибрагимов","Айдар","Маратович",10,"2002-07-30","муж",120,null,120,500,"призер","Гимадиева Алия Айратовна","Муниципальное автономное общеобразовательное учреждение \" Средняя общеобразовательная школа №4\" г.Нурлат Республики Татарстан"]
[83,"Сабинский","Муниципальное бюджетное общеобразовательное учреждение  \"Сатышевская средняя общеобразовательная школа Сабинского муниципального района Республики Татарстан им. Ш.З.Зиннурова\"","Хасанов","Ильшат","Рамилевич",10,"2002-07-24","муж.",120,null,120,500,"Призер","Рахимов Радиф Мулламухаметович","Муниципальное бюджетное общеобразовательное учреждение  \"Сатышевская средняя общеобразовательная школа Сабинского муниципального района Республики Татарстан им. Ш.З.Зиннурова\""]
[84,"Чистопольский","Муниципальное бюджетное общеобразовательное учреждение \"Лицей №1\" Чистопольского муниципального района Республики Татарстан","Потасьев","Никита","Сергеевич","10 А","5.01.2002","м",120,null,120,500,null,"Шамилова Асия Узбековна","Муниципальное бюджетное общеобразовательное учреждение \"Лицей №1\" Чистопольского муниципального района Республики Татарстан"]
[85,"Набрежные Челны","МБОУ \"Гимназия №26\"","Кульдюшева ","Лия"," Александровна",10,"2002-03-01","жен",120,null,120,500,"участник","Бадагиева Елена Зайнутдиновна","МБОУ \"Гимназия №26\""]
[86,"Ново-Савиновский","МБОУ «Гимназия №7» Ново-Савиновского района г.Казани. Школа-центр компетенции в электронном образовании","Сущенко","Данила","Евгеньевич",10,"2002-02-27","M",105,null,105,500,null,"Соложенцева Рамзия Салиховна"," МБОУ «Гимназия №7» Ново-Савиновского района г.Казани. Школа-центр компетенции в электронном образовании "]
[87,"Елабужский","МБОУ \"Средняя общеобразовательная школа №8\" Елабужского муниципального района Республики Татарстан","Низамов","Эмиль","Ильдарович",10,"2002-03-30","муж",105,null,105,500,null,"Шарафеева Ландыш Рамилевна","МБОУ \"Средняя общеобразовательная школа №8\" Елабужского муниципального района Республики Татарстан"]
[88,"Чистопольский","Муниципальное бюджетное общеобразовательное учреждение \"Лицей №1\" Чистопольского муниципального района Республики Татарстан","Каримов  ","Искандер","Ирекович","10","10.10.2002","м",100,null,100,500,null,"Шамилова Асия Узбековна","Муниципальное бюджетное общеобразовательное учреждение \"Лицей №1\" Чистопольского муниципального района Республики Татарстан"]
[89,"Бугульминский","Муниципальное бюджетное общеобразовательное учреждение лицей-интернат имени Мустафы Онджеля Бугульминского муниципального района Республики Татарстан","Коньков","Владислав","Геннадьевич",10,"2002-02-01","муж",85,0,85,500,"участник","Чиглаков Ильдар Андреевич","МБОУ лицей-интернат имени Мустафы Онджеля"]
[90,"Ново-Савиновский","Инженерный лицей КНИТУ-КАИ","Денщиков","Тимур","Радикович",10,"2001-10-03","M",70,null,70,500,null,"Исмаилова Наталья Владимировна"," Инженерный лицей КНИТУ-КАИ "]
[91,"Приволжский","Лицей-интернат «IТ-лицей К(П)ФУ»","Давлетшин","Азат","Азаматович",10,"2002-10-04","M",50,null,50,500,null,"Аншукова Венера Маратовна","Лицей-интернат «IТ-лицей К(П)ФУ» "]
[92,"Вахитовский","МАОУ «Лицей №131»","Коночкин","Дмитрий","Валерьевич",10,"2002-04-03","M",50,null,50,500,null,"Корчагин Геннадий Евгеньевич","  МАОУ «Лицей №131» "]
[93,"Ново-Савиновский","МАОУ «Средняя общеобразовательная школа №146 с углубленным изучением отдельных предметов»","Кузнецов","Олег","Олегович",10,"2001-10-10","M",50,null,50,500,null,"Биглова Ирина Ивановна","МАОУ «Средняя общеобразовательная школа №146 с углубленным изучением отдельных предметов» "]
[94,"Приволжский","Лицей-интернат «IТ-лицей К(П)ФУ»","Петров","Игнат","Александрович",10,"2002-05-11","M",50,null,50,500,null,"Аншукова Венера Маратовна","Лицей-интернат «IТ-лицей К(П)ФУ» "]
[95,"Московский","МБОУ «Гимназия №102 им. М.С.Устиновой»","Скворцов ","Григорий","Андреевич",10,"2002-05-17","M",50,null,50,500,null,"Черепанов Евгений Анатольевич","  МБОУ «Гимназия №102 им. М.С.Устиновой» "]
[96,"Вахитовский","Муниципальное автономное общеобразовательное учреждение для детей, проявивших выдающиеся способности «Средняя общеобразовательная школа-интернат «Специализированный олимпиадно-научный центр «СОлНЦе»","Фахрутдинов","Алексей","Альбертович",10,"2002-04-28","M",50,null,50,500,null,"Королев Юрий Николаевич","МАОУ «Средняя общеобразовательная школа-интернат «СОлНЦе» "]
[97,"Ново-Савиновский","МБОУ «Гимназия №155 с татарским языком обучения»","Ханипов","Булат","Анварович",10,"2002-09-23","M",50,null,50,500,null,"Ахметзянова Гулиня Фаргатовна","            МБОУ «Гимназия №155 с татарским языком обучения» "]
[98,"Приволжский","МБОУ «Гимназия №6»","Юсупов","Марсель","Ренатович",10,"2002-02-02","M",50,null,50,500,null,"Смирнова Адела Викторовна","МБОУ «Гимназия №6» "]
[99,"Азнакаевский","МБОУ «Средняя общеобразовательная школа №5 с углубленным изучением английского языка  города Азнакаево» Азнакаевского муниципального района Республики Татарстан","Хакимов","Ренат","Гимазетдинович",10,"2001-12-21","муж",50,null,50,500,"призер","Габдуллина Фарида Мирзагитовна","МБОУ «Средняя общеобразовательная школа №5 с углубленным изучением английского языка  города Азнакаево» Азнакаевского муниципального района Республики Татарстан"]
[100,"Альметьевский","МАОУ \"Лицей №2\" г. Альметьевска Республики Татарстан","Садыков","Кирилл","Радикович",10,"2002-07-13","м",50,0,{"$f":"J102","v":50},500,null,"Солдатова Светлана Егоровна","МАОУ \"Лицей №2\" г. Альметьевска Республики Татарстан"]
[101,"Альметьевский","МАОУ \"Средняя общеобразовательная школа №16\" г. Альметьевска Республики Татарстан","Федотов","Илья","Владимирович",10,"2002-01-09","м",50,0,{"$f":"J103","v":50},500,null,"Шарипзянов Дамир Илгизарович","МАОУ \"Средняя общеобразовательная школа №16\" г. Альметьевска Республики Татарстан"]
[102,"Бугульминский","Муниципальное бюджетное общеобразовательное учреждение средняя общеобразовательная школа №6 с углубленным изучением отдельных предметов Бугульминского муниципального района РТ","Маликова","Софья","Сергеевна",10,"2002-03-08","жен",50,0,50,500,"участник","Ефремова Марина Вячеславовна","МБОУ СОШ №6"]
[103,"Елабужский","МБОУ \"Гимназия №1-Центр национального образования\" Елабужского муниципального района Республики Татарстан","Асхабиев","Альмир","Альбинович",10,"04.08 2002","муж",50,null,50,500,null,"Хадиуллин Рашат Фоатович","МБОУ \"Гимназия №1-Центр национального образования\" Елабужского муниципального района Республики Татарстан"]
[104,"Зеленодольский","Муниципальное бюджетное общеобразовательное учреждение «Лицей №1 Зеленодольского муниципального района РТ»","Тарбеев","Андрей","Владимирович",10,"2002-01-23","муж",50,0,50,500,"Призер","Серякова Наталья Николаевна","Муниципальное бюджетное общеобразовательное учреждение «Лицей №1 Зеленодольского муниципального района РТ»"]
[105,"Зеленодольский","Муниципальное бюджетное общеобразовательное учреждение «Лицей №1 Зеленодольского муниципального района РТ»","Хабаров","Дмитрий","Леонидович",10,"2002-10-02","муж",50,0,50,500,"Призер","Серякова Наталья Николаевна","Муниципальное бюджетное общеобразовательное учреждение «Лицей №1 Зеленодольского муниципального района РТ»"]
[106,"Зеленодольский","МБОУ «Лицей №9 имени А. С. Пушкина ЗМР РТ»","Шунин","Данил","Алексеевич",10,"2002-07-19","муж",50,0,50,500,"Призер","Филиппов Иван Николаевич","МБОУ «Лицей №9 имени А. С. Пушкина Зеленодольского мцниципального района Республики Татарстан»"]
[107,"Кукморский ","Муниципальное бюджетное общеобразовательное учреждение «Лельвижская средняя школа» Кукморского муниципального района Республики Татарстан","Виссарионов","Владислав","Виталиевич",10,"2002-07-04","муж",50,null,50,500,"участник ","Мухин Дмитрий Сергеевич","Муниципальное бюджетное общеобразовательное учреждение «Лельвижская средняя школа» Кукморского муниципального района Республики Татарстан"]
[108,"Нижнекамский","МБОУ \"Гимназия № 22\"","Ерычев","Арсений","Вадимович",10,"2014-01-16","муж",50,null,50,500,"Участник","Токарева Надежда Сергеевна","МБОУ \"Гимназия № 22\""]
[109,"Тюлячинский","Муниципальное бюджетное общеобразовательное учреждение - Тюлячинская средняя общеобразовательная школа Тюлячинского муниципального района Республики Татарстан","Фархуллин","Булат ","Ирекович",10,"2002-09-08","муж",50,0,50,500,"участник","Гаптрахманов Фанис Фанилевич","Муниципальное бюджетное общеобразовательное учреждение - Тюлячинская средняя общеобразовательная школа Тюлячинского муниципального района Республики Татарстан"]
[110,"Черемшанский","МБОУ «Ивашкинская средняя общеобразовательная школа\" Черемшанского муниципального  района Республики Татарстан","Андреев","Петр","Федорович",10,"2003-07-16","муж",50,null,50,500,"участник","Гаврилова Антонина Николаевна ","МБОУ «Ивашкинская средняя общеобразовательная школа\" Черемшанского муниципального  района Республики Татарстан"]
[111,"Набрежные Челны","МАОУ \"Лицей № 78 им. А.С.Пушкина\" г.Набережные Челны","Ершова  ","Ирина  ","Андреевна",10,"2002-10-29","жен",50,null,50,500,"участник","Ханнанова Сакина Талхиевна","МАОУ \"Лицей № 78 им. А.С.Пушкина\" г.Набережные Челны"]
[112,"Набрежные Челны","МАОУ \"Средняя общеобразовательная школа №15\" г.Набережные Челны","Мальков","Виктор","Александрович",10,"2002-10-28","муж",50,null,50,500,"участник","Грук Вера Юрьевна","МАОУ \"Средняя общеобразовательная школа №15\" г.Набережные Челны"]
[113,"Набрежные Челны","МАОУ \"Средняя общеобразовательная школа №55\" г.Набережные Челны","Матвеев","Николай","Александрович",10,"2002-04-21","муж",50,null,50,500,"участник","Казакова Елена Александровна","МАОУ \"Средняя общеобразовательная школа №55\" г.Набережные Челны"]
[114,"Набрежные Челны","МАОУ \"Средняя общеобразовательная школа №21 \" г.Набережные Челны","Миниахметов","Марсель","Ришатович ",10,"2002-07-09","муж",50,null,50,500,"участник","Фазлинуров Эльдар Айратович","МАОУ \"Средняя общеобразовательная школа №21 \" г.Набережные Челны"]
[115,"Набрежные Челны","МАОУ \"Лицей № 78 им. А.С.Пушкина\" г.Набережные Челны","Филатова  ","Ксения  ","Александровна",10,"2002-10-25","жен",50,null,50,500,"участник","Ханнанова Сакина Талхиевна","МАОУ \"Лицей № 78 им. А.С.Пушкина\" г.Набережные Челны"]
[116,"Ново-Савиновский","МБОУ «Средняя общеобразовательная школа № 9 с углубленным изучением английского языка»","Пурвис","Александр","Родерикович",10,"2002-05-15","M",40,null,40,500,null,"Воробьева Марина Александровна","  МБОУ «Средняя общеобразовательная школа № 9 с углубленным изучением английского языка» "]
[117,"Бугульминский","МБОУ «Средняя общеобразовательная школа №5 с углубленным изучением отдельных предметов» Бугульминского муниципального района РТ","Косарев","Михаил","Евгеньевич",10,"04.02.2002","муж",30,0,30,500,"участник","Шарифуллина Айсылу Мардугалимовна","МБОУ СОШ №5"]
[118,"Елабужский","МБОУ \"Средняя общеобразовательная школа №6\" Елабужского муниципального района Республики Татарстан","Горохова","Елена",null,10,"2002-08-30","жен",30,null,30,500,null,"Сучкова Татьяна Сергеевна","МБОУ \"Средняя общеобразовательная школа №6\" Елабужского муниципального района Республики Татарстан"]
[119,"Сабинский","МБОУ \"Гимназия п.г.т. Богатые Сабы Сабинского муниципального района Республики Татарстан","Ганиев","Ильсаф","Азатович",10,"2002-08-08","муж.",30,null,30,500,"Участник","Сайфеева Ильсина Фанилевна","МБОУ \"Гимназия п.г.т. Богатые Сабы Сабинского муниципального района Республики Татарстан"]
[120,"Набрежные Челны","МАОУ \"Средняя общеобразовательная школа №4\" г.Набережные Челны","Зайнуллина ","Гузель"," Дамировна",10,"2002-04-21","жен",30,null,30,500,"участник","Киямов Слават Анасович","МАОУ \"Средняя общеобразовательная школа №4\" г.Набережные Челны"]
[121,"Ново-Савиновский","МАОУ «Лицей-интернат №7»","Баширов","Эльмар","Эльдарович",10,"2001-09-26","M",20,null,20,500,null,"Азимуратов Шухрат Батырович"," МАОУ «Лицей-интернат №7» "]
[122,"Приволжский","МБОУ «Гимназия №52»","Ибрагимов ","Эрнест","Фаридович",10,"2002-06-16","M",20,null,20,500,null,"Сырямина Ирина Вячеславовна","МБОУ «Гимназия №52» "]
[123,"Московский","МБОУ «Гимназия №102 им. М.С.Устиновой»","Мифтеев","Рамиль","Рафаэлевич",10,"2002-01-11","M",20,null,20,500,null,"Антипина Татьяна Сергеевна"," МБОУ «Гимназия №102 им. М.С.Устиновой» "]
[124,"Лениногорский","МБОУ \"СОШ №5 г.Лениногорска\" МО \"Лениногорский муниципальный район\" РТ","Нугуманов  ","Камиль","Ильдарович",10,"2002-03-03","м",20,0,20,500,"участник","Камалова Нафиса Ахатовна","МБОУ \"СОШ №5 г.Лениногорска\" МО \"Лениногорский муниципальный район\" РТ"]
[125,"Мамадышский ","МБОУ \"СОШ№1 г. Мамадыш\"","Еремеев","Тимур","Анатольевич",10,"2002-09-03","муж",20,0,20,500,"участник","Самойлов Искандер "]
[126,"Менделеевский","МБОУ «Средняя общеобразовательная школа №1\" Менделеевского муниципального района Республики Татарстан","Зиатдинов","Марсель","Петрович",10,"2002-05-27","муж",20,0,20,500,"участник","Пузырев Станислав Владимирович","МБОУ «Средняя общеобразовательная школа №1\" Менделеевского муниципального района Республики Татарстан"]
[127,"Рыбно-Слободский","Муниципальное бюджетное общеобразовательное учреждение \"Кутлу-Букашская средняя общеобразовательная школа\" Рыбно-Слободского муниципального района Республики Татарстан","Хисамиева","Эндже","Ильгизаровна",10,"10.29.2002","жен",20,null,20,500,"призер","Гилазиев Рамиль Шамилевич","Муниципальное бюджетное общеобразовательное учреждение \"Кутлу-Букашская средняя общеобразовательная школа\" Рыбно-Слободского муниципального района Республики Татарстан"]
[128,"Мамадышский ","МБОУ \"СОШ№4 г. Мамадыш\"","Валиуллин","Ильсаф","Анасович",10,"2002-01-05","муж",15,0,15,500,"участник","Гарифуллина Эльза Эдуардовна","МБОУ \"СОШ№4 г. Мамадыш\""]
[129,"Советский","МБОУ «Гимназия №8»","Гайфуллин","Марат","Рифкатович",10,"2002-08-03","M",0,null,0,500,null,"Наумов Максим Владимирович","   МБОУ «Гимназия №8» "]
[130,"Советский","МБОУ «Средняя общеобразовательная школа №171 с углубленным изучением отдельных предметов»","Галиев","Тимур","Раилевич",10,"2002-05-22","M",0,null,0,500,null,"Галимзянова Альфия Минзяновна","МБОУ «Средняя общеобразовательная школа №171 с углубленным изучением отдельных предметов» "]
[131,"Советский","МБОУ «Средняя общеобразовательная школа №171 с углубленным изучением отдельных предметов»","Галиуллина","Диляра","Дамировна",10,"2002-12-27","Ж",0,null,0,500,null,"Галимзянова Альфия Минзяновна"," МБОУ «Средняя общеобразовательная школа №171 с углубленным изучением отдельных предметов» "]
[132,"Московский","МОУ «Средняя общеобразовательная русско-татарская школа №87»","Кузьмин","Артур","Владимирович",10,"2002-05-06","M",0,null,0,500,null,"Гайнуллина Айгуль Рефкатовна","МОУ «Средняя общеобразовательная русско-татарская школа №87» "]
[133,"Советский","МБОУ «Гимназия №8»","Кукушкин","Богдан","Александрович",10,"2002-02-07","M",0,null,0,500,null,"Наумов Максим Владимирович"," МБОУ «Гимназия №8» "]
[134,"Кировский","МБОУ Политехнический лицей №182\" Кировского района г. Казани\"","Мадышев ","Алмаз ","Айратович",10,"2002-01-19","M",0,null,0,500,null,"Михайлов Михаил Леонидович"," МБОУ Политехнический лицей №182 Кировского района г. Казани "]
[135,"Вахитовский","Общеобразовательная школа-интернат «Лицей имени Н. И. Лобачевского» К(П)ФУ","Насыбуллина","Камиля","Руслановна",10,"2002-09-06","Ж",0,null,0,500,null,"Бергер Полина Григорьевна","Общеобразовательная школа-интернат «Лицей имени Н. И. Лобачевского» К(П)ФУ "]
[136,"Вахитовский","МАОУ «Лицей №131»","Нугайбиков","Эмиль","Русланович",10,"2002-12-05","M",0,null,0,500,null,"Корчагин Геннадий Евгеньевич","   МАОУ «Лицей №131» "]
[137,"Советский","МБОУ «Гимназия №8»","Суреева","Анна","Андреевна",10,"2002-11-08","Ж",0,null,0,500,null,"Наумов Максим Владимирович","  МБОУ «Гимназия №8» "]
[138,"Советский","МБОУ «Средняя общеобразовательная школа №171 с углубленным изучением отдельных предметов»","Флегонтов ","Илья","Игоревич",10,"2001-11-17","M",0,null,0,500,null,"Харисова Инга Альбертовна"," МБОУ «Средняя общеобразовательная школа №171 с углубленным изучением отдельных предметов» "]
[139,"Ново-Савиновский","МАОУ «Лицей-интернат №7»","Шатохин","Артем","Сергеевич",10,"2002-06-11","M",0,null,0,500,null,"Азимуратов Шухрат Батырович","МАОУ «Лицей-интернат №7» "]
[140,"Ново-Савиновский","МАОУ «Средняя общеобразовательная школа №146 с углубленным изучением отдельных предметов»","Шляпникова","Екатерина","Сергеевна",10,"2002-01-27","Ж",0,null,0,500,null,"Дусталева Талия Николаевна","МАОУ «Средняя общеобразовательная школа №146 с углубленным изучением отдельных предметов» "]
[141,"Вахитовский","ФГКОУ «Казанское суворовское военное училище  МО РФ»","Ядров","Артем","Леонидович",10,"2002-03-28","M",0,null,0,500,null,"Акберов Ильдар Галимзянович"," ФГКОУ «Казанское суворовское военное училище  МО РФ» "]
[142,"Азнакаевский","Муниципальное бюджетное общеобразовательное учреждение «Средняя общеобразовательная школа села Какре-Елга» Азнакаевского муниципального района Республики Татарстан","Гатин ","Данис ","Фаридович",10,"2002-08-11","муж",0,null,0,500,"участник","Даминова Лилия Флусовна","Муниципальное бюджетное общеобразовательное учреждение «Средняя общеобразовательная школа села Какре-Елга» Азнакаевского муниципального района Республики Татарстан"]
[143,"Азнакаевский","Муниципальное бюджетное общеобразовательное учреждение \"Средняя общеобразовательная школа №2 города Азнакаево\" Азнакаевского муниципального района Республики Татарстан","Гарипова","Илиза","Ильнуровна",10,"2002-10-09","жен",0,null,0,500,"участник","Ахбаров Азат Фанисович","Муниципальное бюджетное общеобразовательное учреждение \"Средняя общеобразовательная школа №2 города Азнакаево\" Азнакаевского муниципального района Республики Татарстан"]
[144,"Аксубаевский","МБОУ \"Аксубаевская СОШ №1 им В.Г.Тимирясова\"","Алексеев ","Дмитрий","Владимирович",10,"2002-05-07","муж.",0,null,0,500,"участник","Маклаков Алексей Сергеевич","МБОУ \"Аксубаевская СОШ №1 им В.Г.Тимирясова\""]
[145,"Аксубаевский","МБОУ \"Аксубаевская СОШ №1 им В.Г.Тимирясова\"","Маранцева","Екатерина","Сергеевна",10,"2002-08-04","муж.",0,null,0,500,"участник","Маклаков Алексей Сергеевич","МБОУ \"Аксубаевская СОШ №1 им В.Г.Тимирясова\""]
[146,"Актанышский","МБОУ «Актанышская средняя общеобразовательная школа №1\"","Насыров","Гумер","Ришатович",10,null,"м",0,null,0,500,null,"Мухаметянова Р.Д.","МБОУ «Актанышская средняя общеобразовательная школа №1\""]
[147,"Актанышский","МБОУ «Актанышская средняя общеобразовательная школа №1\"","Исламхузин","Риназ","Радифович",10,null,"м",0,null,0,500,null,"Мухаметянова Р.Д.","МБОУ «Актанышская средняя общеобразовательная школа №1\""]
[148,"Алькеевский","МАОУ \"Базарно-Матакская средняя общеобразовательная школа\"","Хайруллин","Ильназ","Ильнурович",10,"2003-09-17","м",0,null,0,500,null,"Шайхутдинова Гульназ Ильдаровна","МАОУ \"Базарно-Матакская средняя общеобразовательная школа\""]
[149,"Альметьевский","МБОУ «Средняя общеобразовательная школа №25 им. 70-летия нефти Татарстана» г. Альметьевска Республики Татарстан","Норкин","Ярослав","Андреевич",10,"2002-06-28","м",0,0,{"$f":"J151","v":0},500,null,"Шарипова Резеда Басыровна","МБОУ «Средняя общеобразовательная школа №25 им. 70-летия нефти Татарстана» г. Альметьевска Республики Татарстан"]
[150,"Альметьевский","МБОУ «Средняя общеобразовательная школа №25 им. 70-летия нефти Татарстана» г. Альметьевска Республики Татарстан","Гараева","Аделя","Иршатовна",10,"2002-03-03","ж",0,0,{"$f":"J152","v":0},500,null,"Шайдуллина Анна Талгатовна","МБОУ «Средняя общеобразовательная школа №25 им. 70-летия нефти Татарстана» г. Альметьевска Республики Татарстан"]
[151,"Альметьевский","МБОУ «Средняя общеобразовательная школа №25 им. 70-летия нефти Татарстана» г. Альметьевска Республики Татарстан","Зайнуллина","Карина","Артуровна",10,"2002-06-01","ж",0,0,{"$f":"J153","v":0},500,null,"Шайдуллина Анна Талгатовна","МБОУ «Средняя общеобразовательная школа №25 им. 70-летия нефти Татарстана» г. Альметьевска Республики Татарстан"]
[152,"Альметьевский","МАОУ \"Средняя общеобразовательная школа №16\" г. Альметьевска Республики Татарстан","Зарипов","Шамиль","Ринатович",10,"2002-01-24","м",0,0,{"$f":"J154","v":0},500,null,"Шарипзянов Дамир Илгизарович","МАОУ \"Средняя общеобразовательная школа №16\" г. Альметьевска Республики Татарстан"]
[153,"Альметьевский","МАОУ \"Средняя общеобразовательная школа №16\" г. Альметьевска Республики Татарстан","Маскин","Денис","Юрьевич",10,"2002-05-19","м",0,0,{"$f":"J155","v":0},500,null,"Шарипзянов Дамир Илгизарович","МАОУ \"Средняя общеобразовательная школа №16\" г. Альметьевска Республики Татарстан"]
[154,"Апастовский","МБОУ «Апастовская средняя общеобразовательная школа\n с углубленным изучением отдельных предметов» Апастовского муниципального района Республики Татарстан\n","Мубаракшин","Ранис","Радикович",10,"2002-07-07","муж",0,500,0,500,"участник","Шайхиев Марсель Рашитович","МБОУ «Апастовская средняя общеобразовательная школа\n с углубленным изучением отдельных предметов» Апастовского муниципального района Республики Татарстан\n"]
[155,"Атнинский","Муниципальное бюджетное общеобразовательное учреждение \"Большеатнинская средняя общеобразовательная школа\" Атнинского муниципального района Республики Татарстан","Гараев ","Ильяс","Радикович",10,"2003-01-04","муж",0,null,0,500,null,"Магсумова Эльмира Ринатовна","Муниципальное бюджетное общеобразовательное учреждение \"Большеатнинская средняя общеобразовательная школа\" Атнинского муниципального района Республики Татарстан"]
[156,"Бавлинский","МБОУ «Средняя общеобразовательная школа №3 им. Ю. А. Гагарина»\nБавлинского муниципального района РТ","Хисамов ","Руслан","Равилевич",10,"19.09.2002г.","муж.",0,null,0,500,null,"Вильданова Ольга Вячеславовна","МБОУ «Средняя общеобразовательная школа №3 им. Ю. А. Гагарина»\nБавлинского муниципального района РТ"]
[157,"Бавлинский","МБОУ \"Гимназия № 4\" Бавлинского муниципального района Республики Татарстан","Шарапов","Карим","Минзиярович",10,"21.02.2002г.","муж.",0,null,0,500,null,"Романова Диляра Мар","МБОУ \"Гимназия № 4\" Бавлинского муниципального района Республики Татарстан"]
[158,"Балтасинский","МБОУ Бурбашская СОШ","Нурмиев ","Ильшат","Ильдарович",10,"2002-08-16","м",0,null,0,500,null,"Мифтахов Фуат Раифович","МБОУ Бурбашская СОШ"]
[159,"Бугульминский","Муниципальное бюджетное общеобразовательное учреждение средняя общеобразовательная школа №9 Бугульминского муниципального района Республики Татарстан","Афзалов","Данил","Евгеньевич",10,"19.04.2002","муж",0,0,0,500,"участник","Маннанова Альбина Михайловна","МБОУ СОШ№9"]
[160,"Бугульминский","Муниципальное бюджетное общеобразовательное учреждение средняя общеобразовательная школа №9 Бугульминского муниципального района Республики Татарстан","Гилемханов","Дмитрий","Сергеевич",10,"12.09.2002","муж",0,0,0,500,"участник","Маннанова Альбина Михайловна","МБОУ СОШ№9"]
[161,"Бугульминский","МБОУ «Карабашская средняя общеобразовательная школа №2» Бугульминского муниципального района РТ","Хузина ","Аделина ","Радиковна",10,"09.02.2003","жен",0,0,0,500,"участник","Гайнутдинова Наиля Сайфутдиновна","МБОУ Карабашская СОШ №2"]
[162,"Высокогорский","МБОУ \"Высокогорская средняя общеобразовательная школа №3 Высокогорского муниципального района РТ\"","Хайруллин","Булат ","Камилевич",10,"2002-06-17","муж",0,null,0,500,null,"Шутраева Татьяна Николаевна","МБОУ \"Высокогорская средняя общеобразовательная школа №3 Высокогорского муниципального района РТ\""]
[163,"Высокогорский","МБОУ \"Высокогорская средняя общеобразовательная школа №1 Высокогорского муниципального района РТ\"","Хамидуллин","Ильшат ","Ильгамович",10,"2002-12-04","муж",0,null,0,500,null,"Фомина Татьяна Николаевна","МБОУ \"Высокогорская средняя общеобразовательная школа №1 Высокогорского муниципального района РТ\""]
[164,"Высокогорский","МБОУ \"Высокогорская средняя общеобразовательная школа №1 Высокогорского муниципального района РТ\"","Хакимова","Диана","Ринатовна",10,"2002-02-14","жен",0,null,0,500,null,"Фомина Татьяна Николаевна","МБОУ \"Высокогорская средняя общеобразовательная школа №1 Высокогорского муниципального района РТ\""]
[165,"Высокогорский","МБОУ \"Высокогорская средняя общеобразовательная школа №2 Высокогорского муниципального района РТ\"","Гафиятуллин  ","Арслан ","Айдарович",10,"2003-01-07","муж",0,null,0,500,null,"Деткин Максим Викторович","МБОУ \"Высокогорская средняя общеобразовательная школа №2 Высокогорского муниципального района РТ\""]
[166,"Высокогорский","МБОУ \"Дубъязская средняя общеобразовательная школа  Высокогорского муниципального района РТ\"","Садриева","Аделя","Радиковна",10,"2002-05-13","жен",0,null,0,500,null,"Гатауллин Алмаз Мансурович","МБОУ \"Дубъязская средняя общеобразовательная школа  Высокогорского муниципального района РТ\""]
[167,"Высокогорский","МБОУ \"Альдермышская средняя общеобразовательная школа  Высокогорского муниципального района РТ\"","Сагиев","Ильнар","Мидхатович",10,"2002-10-09","муж",0,null,0,500,null,"Сагдиев Ильнур Вазихович","МБОУ \"Альдермышская средняя общеобразовательная школа  Высокогорского муниципального района РТ\""]
[168,"Высокогорский","МБОУ \"Чернышевская средняя общеобразовательная школа Высокогорского муниципального района РТ\"","Губайдуллин","Салават","Ильшатович",10,"2002-02-03","муж",0,null,0,500,null,"Андреева Гульфия Илгизовна","МБОУ \"Чернышевская средняя общеобразовательная школа Высокогорского муниципального района РТ\""]
[169,"Дрожжановский","МБОУ\"Малоцильнинская сош имени Арсланова З.М.\" Дрожжановского муниципального района РТ","Сабитова","Гульгена","Наилевна",10,"2001-12-22","Ж",0,null,0,500,null,"Калимуллин Ильназ Радикович","МБОУ\"Малоцильнинская сош имени Арсланова З.М.\" Дрожжановского муниципального района РТ"]
[170,"Елабужский","МБОУ \"Костенеевская средняя общеобразовательная школа\" Елабужского муниципального района Республики Татарстан","Шипков  ","Александр","Владимирович",10,"2002-08-11","муж",0,null,0,500,null,"Кругленко Владимир Иванович","МБОУ \"Костенеевская средняя общеобразовательная школа\" Елабужского муниципального района Республики Татарстан"]
[171,"Елабужский","МБОУ \"Средняя общеобразовательная школа №10\" Елабужского муниципального района Республики Татарстан","Санчаев","Ильяс","Разифович",10,"2001-11-28","муж",0,null,0,500,null,"Попырина Елена Павловна","МБОУ \"Средняя общеобразовательная школа №10\" Елабужского муниципального района Республики Татарстан"]
[172,"Елабужский","МБОУ \"Средняя общеобразовательная школа № 9  с углубленным изучением отдельных предметов\"Елабужского муниципального района Республики Татарстан","Власов","Владислав","Юрьевич",10,"2002-06-07","муж",0,null,0,500,null,"Тамакова Татьяна Федоровна","МБОУ \"Средняя общеобразовательная школа № 9  с углубленным изучением отдельных предметов\"Елабужского муниципального района Республики Татарстан"]
[173,"Заинский","МБОУ \"ЗСОШ № 2 \"","Кузнецова","Арина",null,10,null,"жен.",0,null,0,500,"участник","Александрова Наталия Николаевна","МБОУ \"ЗСОШ № 2\""]
[174,"Зеленодольский","Муниципальное бюджетное общеобразовательное учреждение «Лицей №1 Зеленодольского муниципального района РТ»","Багрянский","Лев","Юрьевич",10,"2002-09-11","муж",0,0,0,500,null,"Серякова Наталья Николаевна","Муниципальное бюджетное общеобразовательное учреждение «Лицей №1 Зеленодольского муниципального района РТ»"]
[175,"Зеленодольский","Муниципальное бюджетное общеобразовательное учреждение «Лицей №1 Зеленодольского муниципального района РТ»","Багрянская","Устинья","Юрьевна",10,"2002-09-11","жен",0,0,0,500,null,"Серякова Наталья Николаевна","Муниципальное бюджетное общеобразовательное учреждение «Лицей №1 Зеленодольского муниципального района РТ»"]
[176,"Кайбицкий","МБОУ \"Большекайбицкая средняя общеобразовательная школа Кайбицкого муниципального района Республики Татарстан\"","Булатов","Ильшат","Ильдарович",10,null,"М",0,0,0,500,"участник","Смелов Максим Викторович","МБОУ \"Большекайбицкая средняя общеобразовательная школа Кайбицкого муниципального района Республики Татарстан\""]
[177,"Кукморский ","Муниципальное бюджетное общеобразовательное учреждение «Яныльская средняя школа» Кукморского муниципального района Республики Татарстан","Ястребов","Эдуард","Робертович",10,"2001-12-14","муж",0,null,0,500,"участник ","Мухарлямова Гульнара Маратовна","Муниципальное бюджетное общеобразовательное учреждение «Яныльская средняя школа» Кукморского муниципального района Республики Татарстан"]
[178,"Лениногорский","МБОУ \"СОШ №2 г.Лениногорска\" МО \"Лениногорский муниципальный район\" РТ","Мирзаханова  ","Наима","Маратовна",10,"2002-12-24","ж",0,0,0,500,"участник","Санатуллина Голнур Ильясовна","МБОУ \"СОШ №2 г.Лениногорска\" МО \"Лениногорский муниципальный район\" РТ"]
[179,"Лениногорский","МБОУ \"СОШ №5 г.Лениногорска\" МО \"Лениногорский муниципальный район\" РТ","Колесников ","Игорь ","Юрьевич",10,"2002-06-17","м",0,0,0,500,"участник","Камалова Нафиса Ахатовна","МБОУ \"СОШ №5 г.Лениногорска\" МО \"Лениногорский муниципальный район\" РТ"]
[180,"Лениногорский","МБОУ \"СОШ №6 г.Лениногорска\" МО \"Лениногорский муниципальный район\" РТ","Сахапов","Ильхам","Илшатович",10,"2002-10-18","м",0,0,0,500,"участник","Хисамутдинова Светлана Сергеевна","МБОУ \"СОШ №6 г.Лениногорска\" МО \"Лениногорский муниципальный район\" РТ"]
[181,"Лениногорский","МБОУ \"СОШ №7 г.Лениногорска\" МО \"Лениногорский муниципальный район\" РТ (школа-центр компетенции в электронном образовании)","Хафизов","Эдуард","Максимович",10,"2001-12-17","м",0,0,0,500,"участник","Осипова Ольга Владимировна","МБОУ \"СОШ №7 г.Лениногорска\" МО \"Лениногорский муниципальный район\" РТ (школа-центр компетенции в электронном образовании)"]
[182,"Лениногорский","МБОУ \"СОШ №7 г.Лениногорска\" МО \"Лениногорский муниципальный район\" РТ (школа-центр компетенции в электронном образовании)","Дибаев","Марат","Мансурович",10,"2002-03-20","м",0,0,0,500,"участник","Осипова Ольга Владимировна","МБОУ \"СОШ №7 г.Лениногорска\" МО \"Лениногорский муниципальный район\" РТ (школа-центр компетенции в электронном образовании)"]
[183,"Лениногорский","МБОУ \"Шугуровская СОШ имени В.П.Чкалова\" МО \"Лениногорский муниципальный район\" РТ","Шамсутдинов","Инсаф","Замилевич",10,"2002-04-13","м",0,0,0,500,"участник","Ханиева Алина Раифовна","МБОУ \"Шугуровская СОШ имени В.П.Чкалова\" МО \"Лениногорский муниципальный район\" РТ"]
[184,"Лениногорский","МБОУ \"Шугуровская СОШ имени В.П.Чкалова\" МО \"Лениногорский муниципальный район\" РТ","Минахметов","Айрат","Маратович",10,"2003-04-21","м",0,0,0,500,"участник","Ханиева Алина Раифовна","МБОУ \"Шугуровская СОШ имени В.П.Чкалова\" МО \"Лениногорский муниципальный район\" РТ"]
[185,"Менделеевский","МБОУ «Средняя общеобразовательная школа №1\" Менделеевского муниципального района Республики Татарстан","Зиганшин","Рустам","Ринатович",10,"2002-08-16","муж",0,0,0,500,"участник","Пузырев Станислав Владимирович","МБОУ «Средняя общеобразовательная школа №1\" Менделеевского муниципального района Республики Татарстан"]
[186,"Менделеевский","МБОУ «Средняя общеобразовательная школа №1\" Менделеевского муниципального района Республики Татарстан","Величко","Ксения","Дмитриевна",10,"2002-07-27","жен",0,0,0,500,"участник","Пузырев Станислав Владимирович","МБОУ «Средняя общеобразовательная школа №1\" Менделеевского муниципального района Республики Татарстан"]
[187,"Менделеевский","МБОУ «Средняя общеобразовательная школа №1\" Менделеевского муниципального района Республики Татарстан","Веклич","Данил","Николаевич",10,"2002-06-29","муж",0,0,0,500,"участник","Пузырев Станислав Владимирович","МБОУ «Средняя общеобразовательная школа №1\" Менделеевского муниципального района Республики Татарстан"]
[188,"Нижнекамский","МБОУ \"Средняя общеобразовательная школа № 6\"","Тюкаев ","Руслан","Ильшатович",10,"2002-06-13","муж",0,null,0,500,"Участник","Гурьянова Ольга Владимировна","МБОУ \"Средняя общеобразовательная школа № 6\""]
[189,"Нижнекамский","МБОУ \"Средняя общеобразовательная школа № 11 с углубленным изучением отдельных предметов\"","Степанов ","Серафим","Владимирович",10,"2002-01-21","муж",0,null,0,500,"Участник","Гилязеев Рамиль Фаридович","МБОУ \"Средняя общеобразовательная школа № 11 с углубленным изучением отдельных предметов\""]
[190,"Нижнекамский","МБОУ \"Средняя общеобразовательная школа № 12 с углубленным изучением отдельных предметов\"","Нафикова","Аделя","Ильдаровна",10,"2002-02-04","жен",0,null,0,500,"Участник","Багаутдинов Роберт Ильдарович","МБОУ \"Средняя общеобразовательная школа № 12 с углубленным изучением отдельных предметов\""]
[191,"Нижнекамский","МБОУ \"Гимназия № 25\"","Герасимов","Данил","Павлович",10,"2002-05-19","муж",0,null,0,500,"Участник","Синева Светлана Николаевна","МБОУ \"Гимназия № 25\""]
[192,"Нижнекамский","МБОУ \"Средняя общеобразовательная школа № 27 с углубленным изучением отдельных предметов\"","Щербаков","Роман","Сергеевич",10,"2002-11-10","муж",0,null,0,500,"Участник","Абизяева Валентина Николаевна","МБОУ \"Средняя общеобразовательная школа № 27 с углубленным изучением отдельных предметов\""]
[193,"Нижнекамский","МБОУ \"Средняя общеобразовательная школа № 31 с углубленным изучением отдельных предметов\"","Асылов","Данис","Гелюсович",10,"2002-05-04","муж",0,null,0,500,"Участник","Ямщикова Раиса Юрьевна","МБОУ \"Средняя общеобразовательная школа № 31 с углубленным изучением отдельных предметов\""]
[194,"Нижнекамский","МБОУ \"Средняя общеобразовательная школа № 31 с углубленным изучением отдельных предметов\"","Салиев","Ратмир","Алексеевич",10,"2002-04-17","муж",0,null,0,500,"Участник","Ямщикова Раиса Юрьевна","МБОУ \"Средняя общеобразовательная школа № 31 с углубленным изучением отдельных предметов\""]
[195,"Нижнекамский","МБОУ \"Средняя общеобразовательная школа № 33 с углубленным изучением английского языка\"","Зиннатуллин","Сайдаш","Фанисович",10,"2001-11-05","муж",0,null,0,500,"Участник","Илифанова Полина Егоровна","МБОУ \"Средняя общеобразовательная школа № 33 с углубленным изучением английского языка\""]
[196,"Нижнекамский","МБОУ \"Гимназия-интернат № 34\"","Александров","Денис","Владиславович",10,"2002-01-16","муж",0,null,0,500,"Участник","Латыпов Миляуша Саяфовна","МБОУ \"Гимназия-интернат № 34\""]
[197,"Нижнекамский","МБОУ \"Лицей № 35\"","Козлова","Дарья","Андреевна",10,"2002-03-06","жен",0,null,0,500,"Участник","Яхина Алсу Фазыловна","МБОУ \"Лицей № 35\""]
[198,"Нурлатский","Муниципальное автономное общеобразовательное учреждение \"Нурлатская гимназия имени Героя Советского Союза  Михаила Егоровича Сергеева\" г.Нурлат","Гатин","Инсаф","Ильшатович",10,"2002-12-22","муж",0,null,0,500,null,"Фадькин Алексей Владимирович","Муниципальное автономное общеобразовательное учреждение \"Нурлатская гимназия имени Героя Советского Союза  Михаила Егоровича Сергеева\" г.Нурлат"]
[199,"Нурлатский","Муниципальное автономное общеобразовательное учреждение \"Средняя общеобразовательная школа №2\" г.Нурлат Республики Татарстан","Колотухин","Александр","Сергеевич",10,"2002-06-23","муж",0,null,0,500,null,"Нургатина Гульнара Ильдусовна","Муниципальное автономное общеобразовательное учреждение \"Средняя общеобразовательная школа №2\" г.Нурлат Республики Татарстан"]
[200,"Пестречинский","МБОУ \"Ленино-Кокушкинская средняя общеобразовательная школа\" ","Алексеева","Ангелина","Алексеевна",10,null,"Ж",0,0,0,500,"участник","Сафиуллина Ландыш Шакуровна","МБОУ \"Ленино-Кокушкинская средняя общеобразовательная школа\" "]
[201,"Рыбно-Слободский","Муниципальное бюджетное общеобразовательное учреждение \"Верхне-Тимерлековская средняя общеобразовательная школа\" Рыбно-Слободского муниципального района Республики Татарстан","Ханов","Азат","Ильдарханович",10,null,"муж",0,null,0,500,null,"Хатимова Раушания Габделвакифовна","Муниципальное бюджетное общеобразовательное учреждение \"Верхне-Тимерлековская средняя общеобразовательная школа\" Рыбно-Слободского муниципального района Республики Татарстан"]
[202,"Сабинский","Муниципальное бюджетное общеобразовательное учреждение \"Средняя общеобразовательная школа-интернат с углубленным изучением отдельных предметов для одаренных детей\" Сабинского муниципального района Республики Татарстан ","Вахитова","Сирина","Илдаровна",10,"2002-09-18","жен.",0,null,0,500,"Участник","Гаптерахимов Расим Таснимович","Муниципальное бюджетное общеобразовательное учреждение \"Средняя общеобразовательная школа-интернат с углубленным изучением отдельных предметов для одаренных детей\" Сабинского муниципального района Республики Татарстан "]
[203,"Сабинский","Муниципальное бюджетное общеобразовательное учреждение \"Средняя общеобразовательная школа-интернат с углубленным изучением отдельных предметов для одаренных детей\" Сабинского муниципального района Республики Татарстан ","Имамиева","Ильвина","Искандеровна",10,"2002-08-06","жен.",0,null,0,500,"Участник","Гаптерахимов Расим Таснимович","Муниципальное бюджетное общеобразовательное учреждение \"Средняя общеобразовательная школа-интернат с углубленным изучением отдельных предметов для одаренных детей\" Сабинского муниципального района Республики Татарстан "]
[204,"Тукаевский","Муниципальное бюджетное общеобразовательное учреждение «Бетькинская средняя общеобразовательная школа» ","Сидоров","Эмиль","Ильич",10,"2005-12-17","муж",0,null,0,500,"участник","Лысенков Андрей Васильевич","Муниципальное бюджетное общеобразовательное учреждение «Бетькинская средняя общеобразовательная школа»"]
[205,"Тукаевский","Муниципальное бюджетное общеобразовательное учреждение «Биклянская средняя общеобразовательная школа» ","Ахметзянов","Азат","Айдарович",10,"2003-02-02","муж",0,null,0,500,"участник","Якупов Ренат Накипович","Муниципальное бюджетное общеобразовательное учреждение«Биклянская средняя общеобразовательная школа»  "]
[206,"Тюлячинский","Муниципальное бюджетное общеобразовательное учреждение - Тюлячинская средняя общеобразовательная школа Тюлячинского муниципального района Республики Татарстан","Сунгатуллин ","Булат ","Римович",10,"2002-02-03","муж",0,0,0,500,"участник","Гаптрахманов Фанис Фанилевич","Муниципальное бюджетное общеобразовательное учреждение - Тюлячинская средняя общеобразовательная школа Тюлячинского муниципального района Республики Татарстан"]
[207,"Черемшанский","ГБОУ \"Кадетская школа-интернат имени Героя Советского Союза И. Н. Конева\" Черемшанского муниципального района Республики Татарстан","Тазиев ","Илшат","Ришатович",10,"2002-11-04","муж",0,null,0,500,"участник","Асадуллина Фарида Анисовна","ГБОУ \"Кадетская школа-интернат имени Героя Советского Союза И. Н. Конева\" Черемшанского муниципального района Республики Татарстан"]
[208,"Набрежные Челны","МБОУ \"Средняя  школа №33\" г.Набережные Челны","Ахатова  ","Алина","Наилевна",10,"03.12.2002","жен",0,null,0,500,"участник","Калинина Наталья Юрьевна","МБОУ \"Средняя  школа №33\" г.Набережные Челны"]
[209,"Набрежные Челны","МАОУ \"Средняя общеобразовательная школа №1\" г.Набережные Челны","Барсуков","Иван","Владимирович",10,"2002-01-11","муж",0,null,0,500,"участник","Гиматдинова Ольга Викторовна","МАОУ \"Средняя общеобразовательная школа №1\" г.Набережные Челны"]
[210,"Набрежные Челны","МБОУ \"Гимназия № 2 имени Мулланура Вахитова\" г.Набережные Челны","Гумеров  ","Рустем","Айратович",10,"2001-10-20","муж",0,null,0,500,"участник","Хазиева Альбина Мударисовна","МБОУ \"Гимназия № 2 имени Мулланура Вахитова\" г.Набережные Челны"]
[211,"Набрежные Челны","Муниципальное бюджетное образовательное учреждение\n«Средняя общеобразовательная школа № 5»\n","Дементьев"," Иван","Владимирович",10,"2002-10-12","муж",0,null,0,500,"участник","Каримова Наиля Ахнафовна","Муниципальное бюджетное образовательное учреждение\n«Средняя общеобразовательная школа № 3»\n"]
[212,"Набрежные Челны","МБОУ \"Средняя общеобразовательная школа №9\" г.Набережные Челны","Исламов  ","Дамир","Ирекович",10,"2002-02-17","муж",0,null,0,500,"участник","Галимова Ильсияр Раисовна","МБОУ \"Средняя общеобразовательная школа №9\" г.Набережные Челны"]
[213,"Набрежные Челны","МБОУ \"Гимназия № 54\" г.Набережные Челны","Нигматуллина","Азалия","Радиковна",10,"2002-08-18","жен",0,null,0,500,"участник","Саетгараева Венера Раисовна","МБОУ \"Гимназия № 54\" г.Набережные Челны"]
[214,"Набрежные Челны","МБОУ \"Средняя общеобразовательная школа №28\" г. Набережные Челны","Огородников","Сергей","Александрович",10,"2002-11-18","муж",0,null,0,500,"участник","Кривоносова Светлана Илгизаровна","МБОУ \"Средняя общеобразовательная школа №28\" г. Набережные Челны"]
[215,"Набрежные Челны","МБОУ \"Средняя общеобразовательная школа № 7\" г.Набережные Челны","Пайзиева ","Валерия","Александровна",10,"2001-12-30","жен",0,null,0,500,"участник","Давлетшина Татьяна Геннадьевна","МБОУ \"Средняя общеобразовательная школа № 7\" г.Набережные Челны"]
[216,"Набрежные Челны","МБОУ \"Средняя общеобразовательная школа №24 с углублённым изучением отдельных предметов\" г.Набережные Челны","Рязанов","Илья","Сергеевич",10,"2002-02-12","муж",0,null,0,500,"участник","Александрова Юлия Ивановна","МБОУ \"Средняя общеобразовательная школа №24 с углублённым изучением отдельных предметов\" г.Набережные Челны"]
[217,"Набрежные Челны","Муниципальное бюджетное образовательное учреждение\n«Средняя общеобразовательная школа № 3»\n","Салахутдинов","Данил","Ильшатович",10,"2002-12-06","муж",0,null,0,500,"участник","Каримова Наиля Ахнафовна","Муниципальное бюджетное образовательное учреждение\n«Средняя общеобразовательная школа № 3»\n"]
[218,"Набрежные Челны","МАОУ \"Средняя общеобразовательная школа №51\" г.Набережные Челны","Созина","Валерия","Михайловна",10,"2002-11-01","жен",0,null,0,500,"участник","Аввакумова Ольга Николаевна","МАОУ \"Средняя общеобразовательная школа №51\" г.Набережные Челны"]
[219,"Набрежные Челны","МАОУ \"Лицей инновационных технологий №36\" г.Набережные Челны","Хобта","Владислав","Владиславович",10,"2003-09-29","муж",0,null,0,500,"участник","Трофимова Нина Владимировна","МАОУ \"Лицей инновационных технологий №36\" г.Набережные Челны"]
[220,"Набрежные Челны","МБОУ \"Средняя общеобразовательная школа №10\" г.Набережные Челны","Шафиков","Ильмир","Ильдарович",10,"2002-08-06","муж",0,null,0,500,"участник","МБОУ \"Средняя общеобразовательная школа №10\" г.Набережные Челны","Хакимова Эльмира Дамировна"]
[221,"Альметьевский","МАОУ \"Средняя общеобразовательная школа №16\" г. Альметьевска Республики Татарстан","Шакиров","Родион ","Ильгизович",10,"2002-11-07","м",0,0,0,500,null,"Шарипзянов Дамир Илгизарович","МАОУ \"Средняя общеобразовательная школа №16\" г. Альметьевска Республики Татарстан"]

{"sheet":"11","index":3,"n_rows":250,"n_cols":16,"rows_kept":250,"merged":[[0,1,0,14]]}
[null,"Итоговый протокол по итогам муниципального этапа ВсОШ/РОШ  по предмету ИНФОРМАТИКА  в 2018-2019 учебном году"]
["№ п/п","Муниципалитет","Полное наименование образовательного учреждения (по уставу)","Фамилия","Имя","Отчество","Класс","Дата рождения","Пол","Балл","Апеляционный балл","Итоговый балл","Максимальный балл","Статус","Фамилия педагога, подготовившего участника олимпиады","Полное наименование образовательного учреждения (по уставу)"]
[1,"Вахитовский","МАОУ «Лицей №131»","Вахитов","Эмиль","Рамылович",11,"2001-04-27","M",500,null,500,500,"победитель","Бамбуркина Людмила Викторовна","  МАОУ «Лицей №131» "]
[2,"Приволжский","Лицей-интернат «IТ-лицей К(П)ФУ»","Максимов","Алексей","Николаевич",11,"2000-11-29","M",500,null,500,500,"победитель","Хасанов Марат Гумярович","Лицей-интернат «IТ-лицей К(П)ФУ» "]
[3,"Московский","МБОУ «Гимназия №122 имени Ж.А Зайцевой»","Староверов ","Арсений","Глебович",11,"2001-09-25","M",500,null,500,500,"победитель","Миннигулова Раиса Мухаметовна"," МБОУ «Гимназия №122 имени Ж.А Зайцевой» "]
[4,"Вахитовский","МАОУ «Лицей №131»","Суслов","Алексей","Витальевич",11,"2001-09-26","M",500,null,500,500,"победитель","Шубинкин Владимир Николаевич"," МАОУ «Лицей №131» "]
[5,"Набрежные Челны","МАОУ \"Лицей № 78 им. А.С.Пушкина\" г.Набережные Челны","Амосов   ","Святослав  ","Александрович",11,"2001-06-06","муж",500,null,500,500,"победитель","Ханнанова Сакина Талхиевна","МАОУ \"Лицей № 78 им. А.С.Пушкина\" г.Набережные Челны"]
[6,"Московский","МБОУ «Гимназия №122 имени Ж.А Зайцевой»","Загитов ","Артур ","Александрович",11,"2001-02-07","M",420,null,420,500,"призер","Миннигулова Раиса Мухаметовна","МБОУ «Гимназия №122 имени Ж.А Зайцевой» "]
[7,"Приволжский","Лицей-интернат «IТ-лицей К(П)ФУ»","Султанбеков","Анвар","Ахатович",11,"2001-05-30","M",420,null,420,500,"призер","Хасанов Марат Гумярович","Лицей-интернат «IТ-лицей К(П)ФУ» "]
[8,"Нижнекамский","МБОУ \"Лицей-интернат № 24\"","Зеленков","Данила","Евгеньевич",11,"2001-01-05","муж",420,null,420,500,"Победитель","Гайнутдинов Радмир Рашитович","МБОУ \"Лицей-интернат № 24\""]
[9,"Вахитовский","МАОУ «Лицей №131»","Гарипов","Эмиль","Исмагилович",11,"2001-06-20","M",400,null,400,500,"призер","Бамбуркина Людмила Викторовна","МАОУ «Лицей №131» "]
[10,"Вахитовский","Общеобразовательная школа-интернат «Лицей имени Н. И. Лобачевского» К(П)ФУ","Нугаев","Тимур","Аладдинович",11,"2000-10-05","M",400,null,400,500,"призер","Михайлин Сергей Иванович"," Общеобразовательная школа-интернат «Лицей имени Н. И. Лобачевского» К(П)ФУ "]
[11,"Приволжский","Лицей-интернат «IТ-лицей К(П)ФУ»","Седова","Анна","Александровна",11,"2001-10-05","Ж",400,null,400,500,"призер","Хасанов Марат Гумярович","Лицей-интернат «IТ-лицей К(П)ФУ» "]
[12,"Московский","МАОУ «Лицей-интернат №2» Московского района","Хакимов","Ислам","Ильфатович",11,"2002-04-12","M",400,null,400,500,"призер","Сафиулин Ильшат Ирикович","    МАОУ Лицей-интернат №2"]
[13,"Вахитовский","МАОУ «Лицей №131»","Хаялеев","Тагир","Радикович",11,"2001-07-25","M",400,null,400,500,"призер","Шубинкин Владимир Николаевич","      МАОУ «Лицей №131» "]
[14,"Вахитовский","Общеобразовательная школа-интернат «Лицей имени Н. И. Лобачевского» К(П)ФУ","Шарандак","Яна","Андреевна",11,"2002-03-13","Ж",400,null,400,500,"призер","Михайлин Сергей Иванович"," Общеобразовательная школа-интернат «Лицей имени Н. И. Лобачевского» К(П)ФУ "]
[15,"Ново-Савиновский","МАОУ «Лицей-интернат №7»","Ясавиев","Юсуф","Рустамович",11,"2001-06-17","M",400,null,400,500,"призер","Азимуратов Шухрат Батырович","МАОУ «Лицей-интернат №7» "]
[16,"Альметьевский","МАОУ \"Лицей №2\" г. Альметьевска Республики Татарстан","Хамурзин","Искандер","Ильгамович",11,"2001-02-01","м",400,0,{"$f":"J18","v":400},500,"Победитель","Солдатова Светлана Егоровна","МАОУ \"Лицей №2\" г. Альметьевска Республики Татарстан"]
[17,"Верхнеуслонский","Государственное автономное общеобразовательное учреждение \"Лицей Иннополис\"","Галиев","Тимур","Александрович",11,"2001-06-19","м",400,null,400,500,"победитель","Митясова Елена Анатольевна","Государственное автономное общеобразовательное учреждение \"Лицей Иннополис\""]
[18,"Нижнекамский","МБОУ \"Лицей-интернат № 24\"","Сметанин","Глеб","Олегович",11,"2001-05-10","муж",400,null,400,500,"Призер","Гайнутдинов Радмир Рашитович","МБОУ \"Лицей-интернат № 24\""]
[19,"Ново-Савиновский","МБОУ «Средняя общеобразовательная школа № 9 с углубленным изучением английского языка»","Гарипов","Расим","Ильнурович",11,"2000-04-25","M",380,null,380,500,"призер","Воробьева Марина Александровна","   МБОУ «Средняя общеобразовательная школа № 9 с углубленным изучением английского языка» "]
[20,"Нижнекамский","МБОУ \"Лицей-интернат № 24\"","Тухватуллин","Булат ","Ринатович",11,"2000-10-18","муж",380,null,380,500,"Призер","Гайнутдинов Радмир Рашитович","МБОУ \"Лицей-интернат № 24\""]
[21,"Приволжский","Лицей-интернат «IТ-лицей К(П)ФУ»","Закиев","Данияр","Ильгизарович",11,"2001-01-11","M",360,null,360,500,"призер","Хасанов Марат Гумярович","Лицей-интернат «IТ-лицей К(П)ФУ» "]
[22,"Верхнеуслонский","Государственное автономное общеобразовательное учреждение \"Лицей Иннополис\"","Белов","Тимур","Леонидович",11,"2001-09-10","м",360,null,360,500,"призер","Митясова Елена Анатольевна","Государственное автономное общеобразовательное учреждение \"Лицей Иннополис\""]
[23,"Набрежные Челны","МАОУ «Гимназия № 57» г.Набережные Челны","Набиуллин"," Роман ","Ринатович",11,"2001-07-13","муж",320,null,320,500,"призер","Салахиева Евгения Михайловна","МАОУ «Гимназия № 57» г.Набережные Челны"]
[24,"Московский","МАОУ «Лицей-интернат №2» Московского района","Гарафутдинов","Булат","Маратович",11,"2001-09-19","M",300,null,300,500,"призер","Сафиулин Ильшат Ирикович"," МАОУ Лицей-интернат №2"]
[25,"Приволжский","Лицей-интернат «IТ-лицей К(П)ФУ»","Кайданов","Кирилл","Юрьевич",11,"2002-01-06","M",300,null,300,500,"призер","Хасанов Марат Гумярович","Лицей-интернат «IТ-лицей К(П)ФУ» "]
[26,"Вахитовский","Общеобразовательная школа-интернат «Лицей имени Н. И. Лобачевского» К(П)ФУ","Камалова","Полина","Тимуровна",11,"2000-10-18","Ж",300,null,300,500,"призер","Бергер Полина Григорьевна","Общеобразовательная школа-интернат «Лицей имени Н. И. Лобачевского» К(П)ФУ "]
[27,"Вахитовский","МАОУ «Лицей №131»","Ковлер ","Алиса","Денисовна",11,"2001-04-01","Ж",300,null,300,500,"призер","Бамбуркина Людмила Викторовна","МАОУ «Лицей №131» "]
[28,"Приволжский","Лицей-интернат «IТ-лицей К(П)ФУ»","Милославский","Егор","Денисович",11,"2001-05-15","M",300,null,300,500,"призер","Хасанов Марат Гумярович","Лицей-интернат «IТ-лицей К(П)ФУ» "]
[29,"Приволжский","Лицей-интернат «IТ-лицей К(П)ФУ»","Нургалеев","Ильдар","Айратович",11,"2001-08-03","M",300,null,300,500,"призер","Хасанов Марат Гумярович","Лицей-интернат «IТ-лицей К(П)ФУ» "]
[30,"Приволжский","Лицей-интернат «IТ-лицей К(П)ФУ»","Самерханов","Раян","Рустемович",11,"2001-07-30","M",300,null,300,500,"призер","Хасанов Марат Гумярович","Лицей-интернат «IТ-лицей К(П)ФУ» "]
[31,"Московский","МАОУ «Лицей-интернат №2» Московского района","Тимканов","Имран","Алимович",11,"2001-04-22","M",300,null,300,500,"призер","Сафиулин Ильшат Ирикович","    МАОУ Лицей-интернат №2"]
[32,"Московский","МАОУ «Лицей-интернат №2» Московского района","Шайхлисламов","Шакир","Шамильевич",11,"2001-05-28","M",300,null,300,500,"призер","Сафиулин Ильшат Ирикович"," МАОУ Лицей-интернат №2"]
[33,"Приволжский","Лицей-интернат «IТ-лицей К(П)ФУ»","Шестаков","Арсений","Сергеевич",11,"2001-11-28","M",300,null,300,500,"призер","Хасанов Марат Гумярович","Лицей-интернат «IТ-лицей К(П)ФУ» "]
[34,"Верхнеуслонский","Государственное автономное общеобразовательное учреждение \"Лицей Иннополис\"","Кауров","Ричард","Олегович",11,"2001-04-18","м",300,null,300,500,"призер","Митясова Елена Анатольевна","Государственное автономное общеобразовательное учреждение \"Лицей Иннополис\""]
[35,"Верхнеуслонский","Государственное автономное общеобразовательное учреждение \"Лицей Иннополис\"","Антоненко","Михаил","Юрьевич",11,"2001-02-24","м",300,null,300,500,"призер","Митясова Елена Анатольевна","Государственное автономное общеобразовательное учреждение \"Лицей Иннополис\""]
[36,"Верхнеуслонский","Государственное автономное общеобразовательное учреждение \"Лицей Иннополис\"","Илаев","Никита","Михайлович",11,"2001-07-08","м",300,null,300,500,"призер","Митясова Елена Анатольевна","Государственное автономное общеобразовательное учреждение \"Лицей Иннополис\""]
[37,"Нижнекамский","МБОУ \"Лицей-интернат № 24\"","Багманов","Ильдар","Даниярович",11,"2001-07-06","муж",300,null,300,500,"Призер","Гайнутдинов Радмир Рашитович","МБОУ \"Лицей-интернат № 24\""]
[38,"Нижнекамский","МБОУ \"Лицей-интернат № 24\"","Раков","Алексей","Николаевич",11,"2001-04-04","муж",300,null,300,500,"Призер","Гайнутдинов Радмир Рашитович","МБОУ \"Лицей-интернат № 24\""]
[39,"Набрежные Челны","МАОУ \"Гимназия №61\" г.Набережные Челны","Бариев","Азат","Радикович",11,"2001-06-29","муж",300,null,300,500,"призер","Альмухаметов Мансур Ибрагимович","МАОУ \"Гимназия №61\" г.Набережные Челны"]
[40,"Набрежные Челны","МАОУ \"Лицей № 78 им. А.С.Пушкина\" г.Набережные Челны","Гизатуллин  ","Амир  ","Русланович",11,"2001-05-10","муж",300,null,300,500,"призер","Ханнанова Сакина Талхиевна","МАОУ \"Лицей № 78 им. А.С.Пушкина\" г.Набережные Челны"]
[41,"Лениногорский","МБОУ \"СОШ №7 г.Лениногорска\" МО \"Лениногорский муниципальный район\" РТ (школа-центр компетенции в электронном образовании)","Криворотов","Данила","Александрович",11,"2001-03-09","м",270,0,270,500,"победитель","Осипова Ольга Владимировна","МБОУ \"СОШ №7 г.Лениногорска\" МО \"Лениногорский муниципальный район\" РТ (школа-центр компетенции в электронном образовании)"]
[42,"Набрежные Челны","муниципальное бюджетное общеобразовательное учреждение «Средняя общеобразовательная школа №60»","Чибирев","Григорий","Сергеевич",11,"2000-12-08","муж",270,null,270,500,"призер","Андревкина Ираида Николаевна","муниципальное бюджетное общеобразовательное учреждение «Средняя общеобразовательная школа №60»"]
[43,"Лениногорский","МБОУ \"СОШ №2 г.Лениногорска\" МО \"Лениногорский муниципальный район\" РТ","Мавлютов ","Дамир","Русланович",11,"2001-08-31","м",250,0,250,500,"призер","Санатуллина Голнур Ильясовна","МБОУ \"СОШ №2 г.Лениногорска\" МО \"Лениногорский муниципальный район\" РТ"]
[44,"Лениногорский","МБОУ \"СОШ №5 г.Лениногорска\" МО \"Лениногорский муниципальный район\" РТ","Муртазин ","Рифат ","Фаритович",11,"2001-05-31","м",250,0,250,500,"призер","Камалова Нафиса Ахатовна","МБОУ \"СОШ №5 г.Лениногорска\" МО \"Лениногорский муниципальный район\" РТ"]
[45,"Лениногорский","МБОУ \"Тимяшевская СОШ\" МО \"Лениногорский муниципальный район\" РТ","Султанов","Булат","Ришатович",11,"2001-03-20","м",240,0,240,500,"призер","Снурницин Юрий Алексеевич","МБОУ \"Тимяшевская СОШ\" МО \"Лениногорский муниципальный район\" РТ"]
[46,"Московский","ГБМБУ «КФУ каршындагы 2 нче татар гимназиясе» МБОУ «Татарская гимназия №2 при КФУ»","Багавиев ","Рамиль ","Радифович",11,"2002-01-31","M",230,null,230,500,null,"Исмагилова Гузель Дамировна","    ГБМБУ «КФУ каршындагы 2 нче татар гимназиясе» МБОУ «Татарская гимназия №2 при КФУ» "]
[47,"Нижнекамский","МБОУ \"Гимназия № 22\"","Галиев","Ильшат","Радикович",11,"2000-12-25","муж",230,null,230,500,"Участник","Костин Александр Владимирович","МБОУ \"Гимназия № 22\""]
[48,"Набрежные Челны","МАОУ \"Лицей инновационных технологий №36\" г.Набережные Челны","Дубель ","Александр ","Андреевич",11,"2001-02-22","муж",230,null,230,500,"участник","Трофимова Нина Владимировна","МАОУ \"Лицей инновационных технологий №36\" г.Набережные Челны"]
[49,"Вахитовский","МАОУ «Лицей №131»","Фазылов","Рамазан","Рамилевич",11,"2000-12-06","M",220,null,220,500,null,"Корчагин Геннадий Евгеньевич"," МАОУ «Лицей №131» "]
[50,"Авиастроительный","МБОУ «Лицей №145»","Царева","Екатерина","Романовна",11,"2001-02-25","Ж",220,null,220,500,null,"Садриев Вячеслав Эдуардович","МБОУ «Лицей №145» "]
[51,"Альметьевский","МАОУ \"Лицей №2\" г. Альметьевска Республики Татарстан","Нигматьянов","Рифдар","Ильфирович",11,"2001-07-16","м",220,0,{"$f":"J53","v":220},500,"Призер","Дятлова Юлия Михайловна","МАОУ \"Лицей №2\" г. Альметьевска Республики Татарстан"]
[52,"Приволжский","Лицей-интернат «IТ-лицей К(П)ФУ»","Ахметханов","Ринат","Равилевич",11,"2001-01-22","M",200,null,200,500,null,"Хасанов Марат Гумярович","Лицей-интернат «IТ-лицей К(П)ФУ» "]
[53,"Вахитовский","МАОУ «Лицей №131»","Булкина","Милена","Анатольевна",11,"2001-11-12","Ж",200,null,200,500,null,"Шубинкин Владимир Николаевич","      МАОУ «Лицей №131» "]
[54,"Вахитовский","МАОУ «Лицей №131»","Вахитов","Булат","Дамирович",11,"2001-02-28","M",500,null,200,500,null,"Бамбуркина Людмила Викторовна","   МАОУ «Лицей №131» "]
[55,"Вахитовский","Общеобразовательная школа-интернат «Лицей имени Н. И. Лобачевского» К(П)ФУ","Дружков","Никита","Сергеевич",11,"2001-08-20","M",200,null,200,500,null,"Бергер Полина Григорьевна","Общеобразовательная школа-интернат «Лицей имени Н. И. Лобачевского» К(П)ФУ "]
[56,"Советский","МБОУ «Лицей №159»","Калимуллин","Искандер","Ринатович",11,"2001-05-19","M",200,null,200,500,null,"Халяпова Наиля Миргарифановна","             МБОУ «Лицей №159» "]
[57,"Приволжский","Лицей-интернат «IТ-лицей К(П)ФУ»","Меркурьев","Арсений","Олегович",11,"2001-04-13","M",200,null,200,500,null,"Хасанов Марат Гумярович","Лицей-интернат «IТ-лицей К(П)ФУ» "]
[58,"Ново-Савиновский","МБОУ «Гимназия №7» Ново-Савиновского района г.Казани. Школа-центр компетенции в электронном образовании","Мухаметзянова","Ралина","Марселевна",11,"2000-11-01","Ж",200,null,200,500,null,"Соложенцева Рамзия Салиховна","  МБОУ «Гимназия №7» Ново-Савиновского района г.Казани. Школа-центр компетенции в электронном образовании "]
[59,"Приволжский","Лицей-интернат «IТ-лицей К(П)ФУ»","Никитин","Максим","Михайлович",11,"2001-09-16","M",200,null,200,500,null,"Хасанов Марат Гумярович","Лицей-интернат «IТ-лицей К(П)ФУ» "]
[60,"Бугульминский","Муниципальное бюджетное общеобразовательное учреждение лицей №2 Бугульминского муниципального района РТ, \"Школа - центр компетенции в электронном образовании\"","Мухаметов","Ильнур","Фаваризович",11,"26.01.2002","муж",200,0,200,500,"участник","Муртазина Ирина Федоровна","МБОУ лицей №2"]
[61,"Буинский","Муниципальная бюджетная общеобразовательная организация \"Лицей №2 города Буинска РТ\"","Юсупов","Эльмир","Амирович",11,"2001-06-29","муж",200,null,200,500,"победитель","Мулеева Анастасия Юрьевна","Муниципальная бюджетная общеобразовательная организация \"Лицей №2 города Буинска РТ\""]
[62,"Верхнеуслонский","Государственное автономное общеобразовательное учреждение \"Лицей Иннополис\"","Галиуллин","Рашид","Рустамович",11,"2001-10-23","м",200,null,200,500,"участник","Митясова Елена Анатольевна","Государственное автономное общеобразовательное учреждение \"Лицей Иннополис\""]
[63,"Верхнеуслонский","Государственное автономное общеобразовательное учреждение \"Лицей Иннополис\"","Игудесман","Даниил","Константинович",11,"2001-01-28","м",200,null,200,500,"участник","Митясова Елена Анатольевна","Государственное автономное общеобразовательное учреждение \"Лицей Иннополис\""]
[64,"Зеленодольский","МБОУ «Гимназия №3» ЗМР РТ","Фадеев","Клим","Алексеевич",11,"2001-02-14","муж",200,0,200,500,"Победитель","Антогова Диляра Анисовна","МБОУ «Гимназия №3» Зеленодольского мцниципального района Республики Татарстан\""]
[65,"Зеленодольский","МБОУ «Лицей №9 имени А. С. Пушкина ЗМР РТ»","Альмиева","Ралина","Раисовна",11,"2001-03-19","жен",200,0,200,500,"Победитель","Филиппов Иван Николаевич","МБОУ «Лицей №9 имени А. С. Пушкина Зеленодольского мцниципального района Республики Татарстан»"]
[66,"Зеленодольский","Лицей-интернат для одаренных детей с углубленным изучением химии - филиал ФГБОУ ВО «КНИТУ» ЗМР РТ","Полушин","Дмитрий","Александрович",11,"2001-10-27","муж",200,0,200,500,"Победитель","Тевелева Елена Львовна","Лицей-интернат для одаренных детей с углубленным изучением химии - филиал ФГБОУ ВО «КНИТУ» ЗМР РТ"]
[67,"Авиастроительный","МБОУ «Лицей №145»","Хакимуллин","Рустем","Рафаилевич",11,"2001-06-23","M",190,null,190,500,null,"Садриев Вячеслав Эдуардович","МБОУ «Лицей №145» "]
[68,"Ново-Савиновский","Инженерный лицей КНИТУ-КАИ","Алексеев","Роман","Сергеевич",11,"2001-10-22","M",170,null,170,500,null,"Исмаилова Наталья Владимировна"," Инженерный лицей КНИТУ-КАИ "]
[69,"Приволжский","МБОУ «Лицей №83»","Ибрагимов","Адель","Илсурович",11,"2001-02-15","M",170,null,170,500,null,"Сулейманова Айгуль Рамисовна"," МБОУ «Лицей №83 -Центр образования» "]
[70,"Приволжский","МБОУ «Лицей №83»","Касакин","Максим","Эдуардовичч",11,"2001-04-24","M",170,null,170,500,null,"Сулейманова Айгуль Рамисовна","МБОУ «Лицей №83-Центр образования» "]
[71,"Вахитовский","МАОУ «Лицей №131»","Рахимов","Эмиль","Русланович",11,"2001-08-08","M",170,null,170,500,null,"Шубинкин Владимир Николаевич","  МАОУ «Лицей №131» "]
[72,"Приволжский","Лицей-интернат «IТ-лицей К(П)ФУ»","Фархутдинов","Булат","Загфярович",11,"2001-09-04","M",170,null,170,500,null,"Хасанов Марат Гумярович","Лицей-интернат «IТ-лицей К(П)ФУ» "]
[73,"Вахитовский","Общеобразовательная школа-интернат «Лицей имени Н. И. Лобачевского» К(П)ФУ","Фахрутдинов","Искандер","Эдуардович",11,"2000-02-19","M",170,null,170,500,null,"Михайлин Сергей Иванович","Общеобразовательная школа-интернат «Лицей имени Н. И. Лобачевского» К(П)ФУ "]
[74,"Авиастроительный","МБОУ «Лицей №145»","Якимов","Даниил","Павлович",11,"2001-07-11","M",170,null,170,500,null,"Садриев Вячеслав Эдуардович","МБОУ «Лицей №145» "]
[75,"Актанышский","ГАОУ \"Гуманитарная гимназия-интернат для одаренных детей\"","Нуруллин","Нияз","Алмазович",11,null,"м",170,null,170,500,null,"Шамсетдинов Р.М.","ГАОУ \"Гуманитарная гимназия-интернат для одаренных детей\""]
[76,"Набрежные Челны","МБОУ \"Гимназия №26\"","Моор  ","Артём","Станиславович",11,"2001-04-25","муж",170,null,170,500,"участник","Бадагиева Елена Зайнутдиновна","МБОУ \"Гимназия №26\""]
[77,"Набрежные Челны","Муниципальное бюджетное общеобразовательное учреждение \"Лицей-интернат №79\"","Хабибуллин","Эмиль","Рафилевич",11,"2001-05-11","муж",170,null,170,500,"участник","Галлямов Динар Мунавирович","Муниципальное бюджетное общеобразовательное учреждение \"Лицей-интернат №79\""]
[78,"Вахитовский","Общеобразовательная школа-интернат «Лицей имени Н. И. Лобачевского» К(П)ФУ","Билалова","Наль","Фанилевна",11,"2001-07-21","Ж",165,null,165,500,null,"Михайлин Сергей Иванович","Общеобразовательная школа-интернат «Лицей имени Н. И. Лобачевского» К(П)ФУ "]
[79,"Московский","МБОУ «Гимназия №94»","Шарунов","Алексей","Сергеевич",11,"2001-01-29","M",140,null,140,500,null,"Зиннатова    Ильмира    Рифовна    "," МБОУ «Гимназия №94» "]
[80,"Нижнекамский","МБОУ \"Лицей № 35\"","Бочков","Руслан","Юрьевич",11,"2001-06-15","муж",140,null,140,500,"Участник","Бликина Татьяна Анатольевна","МБОУ \"Лицей № 35\""]
[81,"Вахитовский","Общеобразовательная школа-интернат «Лицей имени Н. И. Лобачевского» К(П)ФУ","Идиатуллов","Ильнур","Заурович",11,"2001-11-06","M",120,null,120,500,null,"Михайлин Сергей Иванович","Общеобразовательная школа-интернат «Лицей имени Н. И. Лобачевского» К(П)ФУ "]
[82,"Московский","НОУ «Школа «Елена-Сервис»","Ксенофонтов","Максим","Сергеевич",11,"2001-09-19","M",120,null,120,500,null,"Биглов Юрий Раульевич"," НОУ «Школа «Елена-Сервис» "]
[83,"Бугульминский","Муниципальное бюджетное общеобразовательное учреждение лицей-интернат имени Мустафы Онджеля Бугульминского муниципального района Республики Татарстан","Гинатуллин","Айгиз","Ильгизович",11,"2001-07-03","муж",120,0,120,500,"участник","Чиглаков Ильдар Андреевич","МБОУ лицей-интернат имени Мустафы Онджеля"]
[84,"Бугульминский","Муниципальное бюджетное общеобразовательное учреждение лицей-интернат имени Мустафы Онджеля Бугульминского муниципального района Республики Татарстан","Кононов","Руслан","Родионович",11,"2001-12-09","муж",120,0,120,500,"участник","Чиглаков Ильдар Андреевич","МБОУ лицей-интернат имени Мустафы Онджеля"]
[85,"Буинский","Муниципальная бюджетная общеобразовательная организация \"Лицей №2 города Буинска РТ\"","Шагалиев","Динар","Робертович",11,"2002-01-30","муж",120,null,120,500,"призёр","Мулеева Анастасия Юрьевна","Муниципальная бюджетная общеобразовательная организация \"Лицей №2 города Буинска РТ\""]
[86,"Чистопольский","Муниципальное бюджетное общеобразовательное учреждение \"Лицей №1\" Чистопольского муниципального района РТ","Тесаков  ","Сергей","Вадимович","11 ","25.08.2001","м",120,null,120,500,null,"Шамилова Асия Узбековна","Муниципальное бюджетное общеобразовательное учреждение \"Лицей №1\" Чистопольского муниципального района Республики Татарстан"]
[87,"Вахитовский","МАОУ «Лицей №131»","Гурьянов","Артем","Игоревич",11,"2001-06-26","M",115,null,115,500,null,"Шубинкин Владимир Николаевич","МАОУ «Лицей №131» "]
[88,"Актанышский","ГАОУ \"Гуманитарная гимназия-интернат для одаренных детей\"","Латыпов","Аймир","Айзатович",11,null,"м",100,null,100,500,null,"Шамсетдинов Р.М.","ГАОУ \"Гуманитарная гимназия-интернат для одаренных детей\""]
[89,"Бугульминский","Муниципальное бюджетное общеобразовательное учреждение средняя общеобразовательная школа №16 Бугульминского муниципального района РТ","Макаров","Олег","Борисович",11,"2001-11-10","муж",100,0,100,500,"участник","Акимова Татьяна Ефимовна","МБОУ СОШ №16"]
[90,"Буинский","Муниципальное бюджетное общеобразовательное учреждение \"Гимназия им.М. Вахитова г. Буинска РТ","Юсупов","Алмаз","Маратович",11,"2001-12-18","муж",100,null,100,500,"призёр","Бадертдинова Айсылу Тальгатовна","Муниципальное бюджетное общеобразовательное учреждение \"Гимназия им.М. Вахитова г. Буинска РТ"]
[91,"Московский","НОУ «Школа «Елена-Сервис»","Тютько","Илья","Константинович",11,"2001-08-02","M",85,null,85,500,null,"Биглов Юрий Раульевич"," НОУ «Школа «Елена-Сервис» "]
[92,"Приволжский","Лицей №35 - образовательный центр «Галактика»","Шайбаков","Ильгиз","Ильдарович",11,"2001-04-19","M",85,null,85,500,null,"Аншукова Венера Маратовна","Лицей №35 - образовательный центр «Галактика» "]
[93,"Альметьевский","МАОУ \"Лицей-интернат №1\" г.Альметьевска Республики Татарстан","Гилязов","Марат","Марсович",11,"2001-05-25","м",85,0,{"$f":"J95","v":85},500,null,"Нафиков Данил Рашидович","МАОУ \"Лицей-интернат №1\" г.Альметьевска Республики Татарстан"]
[94,"Приволжский","Лицей-интернат «IТ-лицей К(П)ФУ»","Давлетшин","Дамир","Айратович",11,"2001-05-18","M",80,null,80,500,null,"Хасанов Марат Гумярович","Лицей-интернат «IТ-лицей К(П)ФУ» "]
[95,"Кировский","МБОУ «Средняя общеобразовательная школа № 135 с углубленным изучением отдельных предметов»","Разов","Дамир","Алмазович",11,"2001-02-28","M",80,null,80,500,null,"Хадиева Альбина Виленовна","МБОУ «Средняя общеобразовательная школа № 135 с углубленным изучением отдельных предметов» "]
[96,"Агрызский","МБОУ гимназия №1 города Агрыз Агрызского муниципального района Республики Татарстан                ","Рамазанов","Булат","Ринатович",11,"2001-10-31","M",70,0,70,500,"участник","Ягьфаров Алмаз Анварович","Муниципальное бюджетное общеобразовательное учреждение гимназия №1 города Агрыз Агрызского муниципального района Республики Татарстан                "]
[97,"Бугульминский","Муниципальное бюджетное общеобразовательное учреждение лицей №2 Бугульминского муниципального района РТ, \"Школа - центр компетенции в электронном образовании\"","Степанищева","Анастасия","Андреевна",11,"13.10.2001","жен",70,0,70,500,"участник","Муртазина Ирина Федоровна","МБОУ лицей №2"]
[98,"Набрежные Челны","МБОУ \"Средняя общеобразовательная школа №11\" г. Набережные Челны","Мунтян","Артём","Владимирович",11,"2001-10-02","муж",70,null,70,500,"участник","Иванова Татьяна Николаевна","МБОУ \"Средняя общеобразовательная школа №11\" г. Набережные Челны"]
[99,"Нижнекамский","МБОУ \"Средняя общеобразовательная школа № 11 с углубленным изучением отдельных предметов\"","Власова ","Екатерина","Игоревна",11,"2001-01-11","жен",65,null,65,500,"Участник","Гилязеев Рамиль Фаридович","МБОУ \"Средняя общеобразовательная школа № 11 с углубленным изучением отдельных предметов\""]
[100,"Ново-Савиновский","МБОУ «Гимназия №155 с татарским языком обучения»","Богапов","Павел","Андреевич",11,"2001-11-20","M",50,null,50,500,null,"Ахметзянова Гулиня Фаргатовна","          МБОУ «Гимназия №155 с татарским языком обучения» "]
[101,"Приволжский","МБОУ «Гимназия №52»","Воронин","Илья "," Александрович",11,"2001-08-07","M",50,null,50,500,null,"Сырямина Ирина Вячеславовна","  МБОУ «Гимназия №52» "]
[102,"Авиастроительный","МАОУ «Гимназия №37 А - Школа-центр компетенции в электронном образовании","Зарипов ","Артур "," Рамилевич",11,"2001-09-24","M",50,null,50,500,null,"Хуснутдинова Резида Рашитовна","  МАОУ «Гимназия №37 А - Школа-центр компетенции в электронном образовании "]
[103,"Кировский","МБОУ «Средняя общеобразовательная школа № 135 с углубленным изучением отдельных предметов»","Зудов ","Кирилл","Вадимович ",11,"2000-12-22","M",50,null,50,500,null,"Хадиева Альбина Виленовна","МБОУ «Средняя общеобразовательная школа № 135 с углубленным изучением отдельных предметов» "]
[104,"Ново-Савиновский","МАОУ «Средняя общеобразовательная школа №146 с углубленным изучением отдельных предметов»","Курбанов","Радиф","Рифатович",11,"2002-12-13","M",50,null,50,500,null,"Биглова Ирина Ивановна","МАОУ «Средняя общеобразовательная школа №146 с углубленным изучением отдельных предметов» "]
[105,"Советский","МБОУ «Гимназия №125»","Мухамедьяров","Ильшат","Ильдарович",11,"2001-01-04","M",50,null,50,500,null,"Мельникова Валентина Федоровна"," МБОУ «Гимназия №125» "]
[106,"Вахитовский","МАОУ «Средняя общеобразовательная школа №18 с углубленным изучением английского языка»","Спиридонов","Марат","Альбертович",11,"2001-01-09","M",50,null,50,500,null,"Бондарцев Дмитрий Сергеевич","МАОУ «Средняя общеобразовательная школа №18 с углубленным изучением английского языка» "]
[107,"Московский","МБОУ «Гимназия №122 имени Ж.А Зайцевой»","Трушин ","Никита ","Михайлович",11,"2001-12-11","M",50,null,50,500,null,"Миннигулова Раиса Мухаметовна","МБОУ «Гимназия №122 имени Ж.А Зайцевой» "]
[108,"Советский","МБОУ «Лицей №159»","Хуснутдинов","Алмаз","Амирович",11,"2001-06-09","M",50,null,50,500,null,"Халяпова Наиля Миргарифановна","              МБОУ «Лицей №159» "]
[109,"Бугульминский","Муниципальное бюджетное общеобразовательное учреждение гимназия №7 Бугульминского муниципального района РТ","Гасанов","Кирилл","Теймурович",11,"04.10.2001","муж",50,0,50,500,"участник","Белоусова Наталья Сергеевна","МБОУ гимназия №7"]
[110,"Бугульминский","Муниципальное бюджетное общеобразовательное учреждение средняя общеобразовательная школа №6 с углубленным изучением отдельных предметов Бугульминского муниципального района РТ","Киреев","Андрей","Андреевич",11,"2001-09-09","муж",50,0,50,500,"участник","Фархутдинова Резеда Загитовна","МБОУ СОШ №6"]
[111,"Елабужский","МБОУ \"Средняя общеобразовательная школа №10\" Елабужского муниципального района Республики Татарстан","Аглямов","Руслан","Рустамович",11,"2000-12-01","муж",50,null,50,500,null,"Попырина Елена Павловна","МБОУ \"Средняя общеобразовательная школа №10\" Елабужского муниципального района Республики Татарстан"]
[112,"Елабужский","МБОУ \"Средняя общеобразовательная школа №8\" Елабужского муниципального района Республики Татарстан","Уткин","Илья","Николаевич",11,"2001-08-07","муж",50,null,50,500,null,"Салахова АльбинаМарсилевна ","МБОУ \"Средняя общеобразовательная школа №8\" Елабужского муниципального района Республики Татарстан"]
[113,"Заинский","МБОУ \"ЗСОШ №6\"","Гильманов","Рафаэль",null,11,null,"м",50,null,50,500,"участник","Вафина Гульнара Хазировна","МБОУ \"ЗСОШ №6\""]
[114,"Зеленодольский","Лицей-интернат для одаренных детей с углубленным изучением химии - филиал ФГБОУ ВО «КНИТУ» ЗМР РТ","Свиридов","Алексей","Павлович",11,"2001-09-13","муж",50,0,50,500,"Призер","Тевелева Елена Львовна","Лицей-интернат для одаренных детей с углубленным изучением химии - филиал ФГБОУ ВО «КНИТУ» ЗМР РТ"]
[115,"Кукморский ","Муниципальное бюджетное общеобразовательное учреждение «Кукморская средняя школа №3» Кукморского муниципального района Республики Татарстан","Хайдаров","Айрат","Маратович",11,"2001-09-11","муж",50,null,50,500,"участник ","Закирова Роза Викторовна","Муниципальное бюджетное общеобразовательное учреждение «Кукморская средняя школа №3» Кукморского муниципального района Республики Татарстан"]
[116,"Сабинский","Государственное бюджетное общеобразовательное учреждение \"Икшурминская кадетская школа-интернат имени Байкиева К.С.","Мустафин","Руслан","Ильнурович",11,"2001-05-10","муж",50,null,50,500,"Участник","Хидиятуллин Айрат Нурфаязович","Государственное бюджетное общеобразовательное учреждение \"Икшурминская кадетская школа-интернат имени Байкиева К.С."]
[117,"Сабинский","Муниципальное бюджетное общеобразовательное учреждение  \"Изминская средняя общеобразовательная школа Сабинского муниципального района Республики Татарстан \"","Сафиуллин","Касим","Мунирович",11,"2001-09-09","муж",50,null,50,500,"Участник","Шаймарданов Айнур Нургалиевич","Муниципальное бюджетное общеобразовательное учреждение  \"Изминская средняя общеобразовательная школа Сабинского муниципального района Республики Татарстан \""]
[118,"Тюлячинский","Муниципальное бюджетное общеобразовательное учреждение - Тюлячинская средняя общеобразовательная школа Тюлячинского муниципального района Республики Татарстан","Исхаков","Данияр","Ильшатович",11,"2001-05-04","муж",50,0,50,500,"участник","Гаптрахманов Фанис Фанилевич","Муниципальное бюджетное общеобразовательное учреждение - Тюлячинская средняя общеобразовательная школа Тюлячинского муниципального района Республики Татарстан"]
[119,"Тюлячинский","Муниципальное бюджетное общеобразовательное учреждение - Тюлячинская средняя общеобразовательная школа Тюлячинского муниципального района Республики Татарстан","Миннулина","Гульназ","Рамилевна",11,"2001-06-20","муж",50,0,50,500,"участник","Гаптрахманов Фанис Фанилевич","Муниципальное бюджетное общеобразовательное учреждение - Тюлячинская средняя общеобразовательная школа Тюлячинского муниципального района Республики Татарстан"]
[120,"Тюлячинский","Муниципальное бюджетное общеобразовательное учреждение - Тюлячинская средняя общеобразовательная школа Тюлячинского муниципального района Республики Татарстан","Зиннатов","Азат","Ильдарович",11,"2001-10-10","муж",50,0,50,500,"участник","Гаптрахманов Фанис Фанилевич","Муниципальное бюджетное общеобразовательное учреждение - Тюлячинская средняя общеобразовательная школа Тюлячинского муниципального района Республики Татарстан"]
[121,"Тюлячинский","Муниципальное бюджетное общеобразовательное учреждение - Старозюринская средняя общеобразовательная школа Тюлячинского муниципального района Республики Татарстан","Ибрагимова","Дина","Рамилевна",11,"2001-09-19","жен",50,0,50,500,"участник","Назклычев Салават Сатлыкович","Муниципальное бюджетное общеобразовательное учреждение - Старозюринская средняя общеобразовательная школа Тюлячинского муниципального района Республики Татарстан"]
[122,"Набрежные Челны","МБОУ \"Гимназия № 29\"","Имамов ","Алмаз ","Абугалиевич",11,"2000-12-26","муж",50,null,50,500,"участник","Шакирова Лилия Дамировна","МБОУ \"Гимназия № 29\""]
[123,"Приволжский","Лицей №35 - образовательный центр «Галактика»","Трофимов","Дмитрий","Романович",11,"2001-08-17","M",40,null,40,500,null,"Ашрафзянова Елена Павловна","Лицей №35 - образовательный центр «Галактика» "]
[124,"Вахитовский","МАОУ «Лицей №131»","Гарипов","Роман","Исмагилович",11,"2001-06-20","M",30,null,30,500,null,"Бамбуркина Людмила Викторовна","МАОУ «Лицей №131» "]
[125,"Ново-Савиновский","МБОУ «Средняя общеобразовательная татарско-русская школа №23 с углубленным изучением отдельных предметов»","Кононов ","Владимир","Васильевич",11,"2001-03-14","M",30,null,30,500,null,"Салихова Лилия Завдятовна","    МБОУ «Средняя общеобразовательная татарско-русская школа №23 с углубленным изучением отдельных предметов» "]
[126,"Актанышский","МБОУ «Актанышская средняя общеобразовательная школа №2 с углубленным изучением отдельных предметов» ","Исламов","Зиннур","Альбертович",11,null,"м",30,null,30,500,null,"Бакиров Р.Ф.","МБОУ «Актанышская средняя общеобразовательная школа №2 с углубленным изучением отдельных предметов» "]
[127,"Альметьевский","МБОУ «Гимназия №1 им.Р. Фахретдина» г.Альметьевска Республики Татарстан","Рахимгараев","Алмаз","Рахимович",11,"2002-01-03","м",30,0,{"$f":"J129","v":30},500,null,"Мингалимова Гульназ Изиловна","МБОУ «Гимназия №1 им.Р. Фахретдина» г.Альметьевска Республики Татарстан"]
[128,"Апастовский","МБОУ «Апастовская средняя общеобразовательная школа\n с углубленным изучением отдельных предметов» Апастовского муниципального района Республики Татарстан\n","Латыпов","Булат","Маратович",11,"2001-02-28","муж",30,500,30,500,"участник","Шайхиев Марсель Рашитович","МБОУ «Апастовская средняя общеобразовательная школа\n с углубленным изучением отдельных предметов» Апастовского муниципального района Республики Татарстан\n"]
[129,"Зеленодольский","МБОУ «Гимназия №3» ЗМР РТ","Коротков","Михаил","Андреевич",11,"2001-12-07","муж",30,0,30,500,"Призер","Маликов Владимир Евгеньевич","МБОУ «Гимназия №3» Зеленодольского мцниципального района Республики Татарстан\""]
[130,"Зеленодольский","МБОУ «СОШ №7 ЗМР РТ»","Магницкий","Владимер","Викторович",11,"2001-07-30","муж",30,0,30,500,"Призер","Лебедева Анна Александровна","МБОУ «СОШ №7 Зеленодольского мцниципального района Республики Татарстан»"]
[131,"Мензелинский","МБОУ «Средняя общеобразовательная школа №3\" города Мензелинска Республики Татарстан","Галиев","Ильшат","Ильясович",11,"2000-04-30","муж",30,0,30,500,null,"Муринова Вера Михайловна","МБОУ «Средняя общеобразовательная школа №3\" города Мензелинска Республики Татарстан"]
[132,"Нижнекамский","МБОУ \"Средняя общеобразовательная школа № 3\" ","Фахрутдинов","Руслан","Вадимович",11,"2000-08-28","муж",30,null,30,500,"Участник","Рахова Дарья Александровна","МБОУ \"Средняя общеобразовательная школа № 3\" "]
[133,"Нижнекамский","МБОУ \"Лицей № 14\"","Богатюк","Кирилл","Александрович",11,"2001-09-19","муж",30,null,30,500,"Участник","Шипкова Светлана Николаевна","МБОУ \"Лицей № 14\""]
[134,"Нижнекамский","МБОУ \"Средняя общеобразовательная школа № 15 с углубленным изучением отдельных предметов\"","Тарасов","Вадим","Евгеньевич",11,"2001-06-24","муж",30,null,30,500,"Участник","Грахова Гульфия Рифгатовна","МБОУ \"Средняя общеобразовательная школа № 15 с углубленным изучением отдельных предметов\""]
[135,"Нижнекамский","МБОУ \"Гимназия № 2 имени Баки Урманче\"","Емдиканов","Руслан","Айратович",11,"2001-11-01","муж",30,null,30,500,"Участник","Федулаева Гульназ Расимовна","МБОУ \"Гимназия № 2 имени Баки Урманче\""]
[136,"Нурлатский","МАОУ «Средняя общеобразовательная школа №3 \" города Нурлата Республики Татарстан","Генералов","Вадим","Викторович",11,"2000-11-28","муж",30,null,30,500,null,"Хаметзянова Алина Маратовна","МАОУ «Средняя общеобразовательная школа № 3       \" города Нурлата Республики Татарстан"]
[137,"Тетюшский ","Муниципальное бюджетное общеобразовательное учреждение \"Урюмская средняя общеобразовательная школа\" Тетюшского муниципального района Республики Татарстан","Малькин","Денис","Юрьевич",11,"2001-11-18","м",30,null,30,500,"участник","Волков Сергей Аркадьевич ","Муниципальное бюджетное общеобразовательное учреждение \"Урюмская средняя общеобразовательная школа\" Тетюшского муниципального района Республики Татарстан"]
[138,"Набрежные Челны","МАОУ \"Гимназия №76\" г.Набережные Челны","Галиев","Инсаф","Радикович",11,"2001-07-15","муж",30,null,30,500,"участник","Шиварова Наталья Александровна","МАОУ \"Гимназия №76\" г.Набережные Челны"]
[139,"Набрежные Челны","МБОУ \"Средняя общеобразовательная школа №58\" г.Набережные Челны","Калимуллин ","Алан","Анасович",11,"2001-08-23","муж",30,null,30,500,"участник","Валиуллина Татьяна Юрьевна","МБОУ \"Средняя общеобразовательная школа №58\" г.Набережные Челны"]
[140,"Мамадышский ","МБОУ \"Лицей №2 им. ак. К. А. Валиева г. Мамадыш\"","Камалов","Ильяс","Фирдинандович",11,"2000-12-16","муж",21,0,21,500,"участник","Сафин Айрат Миннегалиевич","МБОУ \"Лицей №2 им. ак. К. А. Валиева г. Мамадыш\""]
[141,"Кировский","МБОУ «Средняя общеобразовательная школа № 135 с углубленным изучением отдельных предметов»","Афанасьев","Максим","Дмитриевич ",11,"2001-02-15","M",20,null,20,500,null,"Хадиева Альбина Виленовна ","МБОУ «Средняя общеобразовательная школа № 135 с углубленным изучением отдельных предметов» "]
[142,"Приволжский","МБОУ «Гимназия №6»","Гимазов","Азамат","Рамилевич",11,"2001-03-29","M",20,null,20,500,null,"Пискарева Галия Назильевна","МБОУ «Гимназия №6» "]
[143,"Вахитовский","ФГКОУ «Казанское суворовское военное училище  МО РФ»","Лебедев","Алан","Витальевич",11,"2002-01-10","M",20,null,20,500,null,"Акберов Ильдар Галимзянович","ФГКОУ «Казанское суворовское военное училище  МО РФ» "]
[144,"Бугульминский","муниципальное бюджетное общеобразовательное учреждение cредняя общеобразовательная школа №3 с углубленным изучением отдельных предметов Бугульминского муниципального района Республики Татарстан","Иванов","Михаил ","Александрович",11,"2001-04-15","муж",20,0,20,500,"участник","Вильданов Ришат Рашитович","МБОУ  СОШ №3"]
[145,"Заинский","МБОУ \"ЗСОШ №6\"","Полка  ","Эрик",null,11,null,"м",20,null,20,500,"участник","Вафина Гульнара Хазировна","МБОУ \"ЗСОШ №6\""]
[146,"Зеленодольский","МБОУ «СОШ №7 ЗМР РТ»","Князев","Сергей","Витальевич",11,"2001-01-07","муж",20,0,20,500,null,"Лебедева Анна Александровна","МБОУ «СОШ №7 Зеленодольского мцниципального района Республики Татарстан»"]
[147,"Кайбицкий","МБОУ \"Большекайбицкая средняя общеобразовательная школа Кайбицкого муниципального района Республики Татарстан\"","Зиннурова","Динара","Маратовна",11,null,"М",20,0,20,500,"участник","Смелов Максим Викторович","МБОУ \"Большекайбицкая средняя общеобразовательная школа Кайбицкого муниципального района Республики Татарстан\""]
[148,"Кайбицкий","МБОУ \"Большекайбицкая средняя общеобразовательная школа Кайбицкого муниципального района Республики Татарстан\"","Бикчантаева","Кадрия","Равильевна",11,null,"Ж",20,0,20,500,"участник","Смелов Максим Викторович","МБОУ \"Большекайбицкая средняя общеобразовательная школа Кайбицкого муниципального района Республики Татарстан\""]
[149,"Тетюшский ","Муниципальное бюджетное общеобразовательное учреждение \"Тетюшская средняя общеобразовательная школа №1 им. П.С.Ханжина\"","Мустаев ","Сергей ","Николаевич",11,"2001-01-03","м",20,null,20,500,"участник","Владимирова Ольга Викторовна","Муниципальное бюджетное общеобразовательное учреждение \"Тетюшская средняя общеобразовательная школа №1 им. П.С.Ханжина\""]
[150,"Набрежные Челны","МБОУ \"Средняя общеобразовательная школа №53\" г.Набережные Челны","Файзрахманов","Артур","Рафаэлевич",11,"2000-12-04","муж",20,null,20,500,"участник","Ермакова Марина Валентиновна","МБОУ \"Средняя общеобразовательная школа №53\" г.Набережные Челны"]
[151,"Ново-Савиновский","МАОУ «Средняя общеобразовательная школа №146 с углубленным изучением отдельных предметов»","Вазинов","Илья","Евгеньевич",11,"2001-03-01","M",0,null,0,500,null,"Биглова Ирниа Ивановна","МАОУ «Средняя общеобразовательная школа №146 с углубленным изучением отдельных предметов» "]
[152,"Кировский","МБОУ «Средняя общеобразовательная школа №70 с углубленным изучением отдельных предметов»","Герасимов","Дмитрий","Евгеньевич",11,"2000-11-06","M",0,null,0,500,null,"Халаманова Татьяна Юрьевна"," МБОУ «Средняя общеобразовательная школа №70 с углубленным изучением отдельных предметов» "]
[153,"Советский","МБОУ «Гимназия №90»","Литвиненко","Юрий","Игоревич",11,"2001-08-20","M",0,null,0,500,null,"Гусева Анна Сергеевна","МБОУ «Гимназия №90» "]
[154,"Приволжский","МБОУ «Гимназия №6»","Новикова","Анастасия","Вадимовна",11,"2001-05-23","M",0,null,0,500,null,"Пискарева Галия Назильевна","  МБОУ «Гимназия №6» "]
[155,"Вахитовский","МАОУ «Лицей №131»","Пензин","Никина","Сергеевич",11,"2000-12-05","M",0,null,0,500,null,"Шубинкин Владимир Николаевич","    МАОУ «Лицей №131» "]
[156,"Ново-Савиновский","МБОУ «Средняя общеобразовательная школа № 9 с углубленным изучением английского языка»","Петрашко","Евгений","Владимирович",11,"2000-10-06","M",0,null,0,500,null,"Воробьева Марина Александровна","МБОУ «Средняя общеобразовательная школа № 9 с углубленным изучением английского языка» "]
[157,"Советский","МБОУ «Гимназия №90»","Самирханова","Камиля","Раисовна",11,"2001-05-13","Ж",0,null,0,500,null,"Гусева Анна Сергеевна","  МБОУ «Гимназия №90» "]
[158,"Советский","МБОУ «Гимназия №93 »","Хамидуллин","Тимур","Денисович",11,"2001-04-28","M",0,null,0,500,null,"Хазишина Динара Нафисовна","МБОУ «Гимназия №93 » "]
[159,"Аксубаевский","МБОУ \"Староильдеряковская СОШ\"","Волков","Алексей ","Андреевич",11,"2001-11-16","муж.",0,null,0,500,"участник","Маклаков Алексей Сергеевич","МБОУ \"Староильдеряковская СОШ\""]
[160,"Аксубаевский","МБОУ \"Аксубаевская СОШ №3\" ","Еграшин ","Вадим ","Александрович ",11,"2001-06-11","муж.",0,null,0,500,"участник","Хузахметова Лилия Фаритовна","МБОУ \"Аксубаевская СОШ №3\" "]
[161,"Актанышский","ГБОУ \"Актанышская кадетская школа-интернат имени Героя Советского Союза Хасана Заманова\"","Нармуратов","Ирек","Джамилевич",11,null,"м",0,null,0,500,null,"Маликов И.Ф.","ГБОУ \"Актанышская кадетская школа-интернат имени Героя Советского Союза Хасана Заманова\""]
[162,"Актанышский","МБОУ «Актанышская средняя общеобразовательная школа №1\"","Ахметдинова","Ильзира","Ленаровна",11,null,"ж",0,null,0,500,null,"Ялалова Г.Д.","МБОУ «Актанышская средняя общеобразовательная школа №1\""]
[163,"Актанышский","МБОУ «Актанышская средняя общеобразовательная школа №1\"","Камалова","Эльвина","Азгаровна",11,null,"ж",0,null,0,500,null,"Мухаметянова Р.Д.","МБОУ «Актанышская средняя общеобразовательная школа №1\""]
[164,"Актанышский","МБОУ «Актанышская средняя общеобразовательная школа №1\"","Насирова","Лейля","Флюровна",11,null,"ж",0,null,0,500,null,"Мухаметянова Р.Д.","МБОУ «Актанышская средняя общеобразовательная школа №1\""]
[165,"Альметьевский","МАОУ \"Средняя общеобразовательная школа №16\" г. Альметьевска Республики Татарстан","Бодрягин","Андрей ","Валерьевич",11,"2001-09-16","м",0,0,{"$f":"J167","v":0},500,null,"Шарипзянов Дамир Илгизарович","МАОУ \"Средняя общеобразовательная школа №16\" г. Альметьевска Республики Татарстан"]
[166,"Альметьевский","МАОУ \"Средняя общеобразовательная школа №16\" г. Альметьевска Республики Татарстан","Ярыжко ","Михаил ","Дмитриевич",11,"2001-06-06","м",0,0,{"$f":"J168","v":0},500,null,"Шарипзянов Дамир Илгизарович","МАОУ \"Средняя общеобразовательная школа №16\" г. Альметьевска Республики Татарстан"]
[167,"Апастовский","МБОУ\"Каратунская средняя общеобразовательная школа с углубленным изучением отдельных предетов \" Апастовского района РТ","Шайдуллин","Зульфат","Фирдусович",11,".2001","муж",0,500,0,500,"участник","Яруллина Земфира Шавкатовна","МБОУ\"Каратунская средняя общеобразовательная школа с углубленным изучением отдельных предетов \" Апастовского района РТ"]
[168,"Апастовский","МБОУ\"Каратунская средняя общеобразовательная школа с углубленным изучением отдельных предетов \" Апастовского района РТ","Фатыхова","Алзиля","Азатовна",11,".2001","жен",0,500,0,500,"участник","Яруллина Земфира Шавкатовна","МБОУ\"Каратунская средняя общеобразовательная школа с углубленным изучением отдельных предетов \" Апастовского района РТ"]
[169," Арский","МБОУ \"НовокырлайскаяМБОУ «Ново-Кырлайская СОШ имени Г.Тукая» \"","Фазулзянов","Айтуган","Айдарович",11,"2001-11-28","м",0,0,0,500,"участник","Ганеев Ильнар Тауерисович","МБОУ \"НовокырлайскаяМБОУ «Ново-Кырлайская СОШ имени Г.Тукая» \""]
[170,"Арский","МБОУ -Арская гимназия №5","Гайнетдинов","Рим","Рамилевич",11,"2001-07-24","м",0,0,0,500,"участник","Алеева Раиля Рифкатовна","МБОУ -Арская гимназия №5"]
[171,"Арский","МБОУ -Арская гимназия №5","Назипов","Нияз","Наилович",11,"2001-06-20","м",0,0,0,500,"участник","Алеева Раиля Рифкатовна","МБОУ -Арская гимназия №5"]
[172,"Бавлинский","МБОУ «Средняя общеобразовательная школа №3 им. Ю. А. Гагарина»\nБавлинского муниципального района Республики Татарстан","Мавлиханов ","Руслан ","Ринатович",11,"27.07.2001г.","муж.",0,null,0,500,null,"Вильданова Ольга Вячеславовна","МБОУ «Средняя общеобразовательная школа №3 им. Ю. А. Гагарина»\nБавлинского муниципального района Республики Татарстан"]
[173,"Бавлинский","МБОУ \"Гимназия № 4\" Бавлинского муниципального района Республики Татарстан","Сабитов ","Самат","Вазихович",11,"17.02.2001г.","муж.",0,null,0,500,null,"Романова Диляра Мар","МБОУ \"Гимназия № 4\" Бавлинского муниципального района Республики Татарстан"]
[174,"Бавлинский","МБОУ \"Средняя общеобразовательная школа №6\" Бавлинского муниципального района Республики Татарстан","Гимаева","Руфина","Ленаровна",11,"10.08.2001г.","жен.",0,null,0,500,null,"Шишкова Екатерина Сергеевна","МБОУ \"Средняя общеобразовательная школа №6\" Бавлинского муниципального района Республики Татарстан"]
[175,"Балтасинский","Муниципальное бюджетное общеобразовательное учреждение \"Балтасинская гимназия\"","Набиев","Азат","Ильшатович",11,"2001-02-06","м",0,null,0,500,null,"Мукминов Марат Наилевич","МБОУ\"Балтасинская гимназия\""]
[176,"Бугульминский","Муниципальное бюджетное общеобразовательное учреждение гимназия №7 Бугульминского муниципального района РТ","Гаджиев","Агил","Магеррамович",11,"18.06.2001","муж",0,0,0,500,"участник","Белоусова Наталья Сергеевна","МБОУ гимназия №7"]
[177,"Бугульминский","Муниципальное бюджетное общеобразовательное учреждение средняя общеобразовательная школа №9 Бугульминского муниципального района Республики Татарстан","Мингазов","Тимур","Рафкатович",11,"12.12.2004","муж",0,0,0,500,"участник","Маннанова Альбина Михайловна","МБОУ СОШ№9"]
[178,"Бугульминский","Муниципальное бюджетное общеобразовательное учреждение гимназия №7 Бугульминского муниципального района РТ","Федоров","Илья","Андреевич",11,"09.12.2000","муж",0,0,0,500,"участник","Белоусова Наталья Сергеевна","МБОУ гимназия №7"]
[179,"Буинский","Муниципальная бюджетная общеобразовательная организация \"Лицей №2 города Буинска РТ\"","Хайбуллова","Эндже","Фазыловна",11,"2001-05-05","жен",0,null,0,500,"участник","Мулеева Анастасия Юрьевна","Муниципальная бюджетная общеобразовательная организация \"Лицей №2 города Буинска РТ\""]
[180,"Буинский","Муниципальная бюджетная общеобразовательная организация \"Лицей №2 города Буинска РТ\"","Гималиев","Алмаз","Айдарович",11,"2001-11-07","муж",0,null,0,500,"участник","Мулеева Анастасия Юрьевна","Муниципальная бюджетная общеобразовательная организация \"Лицей №2 города Буинска РТ\""]
[181,"Буинский","Муниципальная бюджетная общеобразовательная организация \"Лицей №2 города Буинска РТ\"","Салихов","Мансур","Зуфарович",11,"2000-12-19","муж",0,null,0,500,"участник","Мулеева Анастасия Юрьевна","Муниципальная бюджетная общеобразовательная организация \"Лицей №2 города Буинска РТ\""]
[182,"Буинский","Муниципальное бюджетное общеобразовательное учреждение \"Лицей-интернат г. Буинска РТ\"","Шакиров","Алмаз","Амирович",11,"2001-03-26","муж",0,null,0,500,"участник","Мулеева Анастасия Юрьевна","Муниципальное бюджетное общеобразовательное учреждение \"Лицей-интернат г. Буинска РТ\""]
[183,"Высокогорский","МБОУ \"Высокогорская средняя общеобразовательная школа №3 Высокогорского муниципального района РТ\"","Курбанов","Семён","Игоревич",11,"2001-02-26","муж",0,null,0,500,null,"Шеваловский Александр Васильевич","МБОУ \"Высокогорская средняя общеобразовательная школа №3 Высокогорского муниципального района РТ\""]
[184,"Высокогорский","МБОУ \"Высокогорская средняя общеобразовательная школа №3 Высокогорского муниципального района РТ\"","Галимзянов","Инсаф","Зуфарович",11,"2001-10-04","муж",0,null,0,500,null,"Шеваловский Александр Васильевич","МБОУ \"Высокогорская средняя общеобразовательная школа №3 Высокогорского муниципального района РТ\""]
[185,"Высокогорский","МБОУ \"Высокогорская средняя общеобразовательная школа №2 Высокогорского муниципального района РТ\"","Саитов ","Данил ","Рафисович",11,"2001-11-29","муж",0,null,0,500,null,"Деткин Максим Викторович","МБОУ \"Высокогорская средняя общеобразовательная школа №2 Высокогорского муниципального района РТ\""]
[186,"Высокогорский","МБОУ \"Мульминская средняя общеобразовательная школа Высокогорского муниципального района РТ\"","Ахмитянова","Алина","Мударисовна",11,"2001-08-04","жен",0,null,0,500,null,"Ахмитянова Флюра Рафгатовна","МБОУ \"Мульминская средняя общеобразовательная школа Высокогорского муниципального района  РТ \""]
[187,"Высокогорский","МБОУ \"Ямашурминская средняя общеобразовательная школа Высокогорского муниципального района РТ\"","Гарипов","Адель","Фанисович",11,"2002-01-09","муж",0,null,0,500,null,"Сафиуллин Рузаль Габдулкаюмович","МБОУ \"Ямашурминская средняя общеобразовательная школа Высокогорского муниципального района РТ\""]
[188,"Елабужский","МБОУ \"Средняя общеобразовательная школа № 5\" Елабужского муниципального района Республики Татарстан","Рожин ","Роман","Михайлович",11,"2000-10-28","муж",0,null,0,500,null,"Власова Ольга Александровна","МБОУ \"Средняя общеобразовательная школа № 5\" Елабужского муниципального района Республики Татарстан"]
[189,"Заинский","МБОУ \"ЗСОШ №7 с УИОП\"","Абрамов  ","Данила",null,11,null,"м",0,null,0,500,"участник","Советникова Ольга Викторовна","МБОУ \"ЗСОШ №7 С УИОП\""]
[190,"Зеленодольский","МБОУ «Гимназия №10» ЗМР РТ","Сивков","Савелий","Сергеевич",11,"2002-03-15","муж",0,0,0,500,null,"Никифорова Лидия Геннадьевна","МБОУ «Гимназия №10» Зеленодольского мцниципального района Республики Татарстан"]
[191,"Зеленодольский","МБОУ  «Васильевская СОШ №2 им. Н. Соболева ЗМР РТ»","Наумова","Анастасия","Николаевна",11,"2002-07-29","жен",0,0,0,500,null,"Шакирова Светлана Викторовна","МБОУ  «Васильевская СОШ №2 им. Н. Соболева ЗМР РТ»"]
[192,"Зеленодольский","Лицей-интернат для одаренных детей с углубленным изучением химии - филиал ФГБОУ ВО «КНИТУ» ЗМР РТ","Айрапетьянц","Евгений","Юрьевич",11,"2001-06-16","муж",0,0,0,500,null,"Тевелева Елена Львовна","Лицей-интернат для одаренных детей с углубленным изучением химии - филиал ФГБОУ ВО «КНИТУ» ЗМР РТ"]
[193,"Камско-Устьинский","МБОУ «Затонская средняя общеобразовательная школа имени В.П. Муравьёва\" Камско-Устьинского муниципального района Республики Татарстан","Григорьева","Екатерина","Витальевна",11,"2001-02-28","жен",0,0,0,500,"участник","Гарифуллина Гульнара Зуфаровна","МБОУ «Затонская средняя общеобразовательная школа имени В.П. Муравьёва\" Камско-Устьинского муниципального района Республики Татарстан"]
[194,"Кукморский ","МБОУ «Гимназия №1 им. Ч.Т. Айтматова п.г.т. Кукмор \" Кукморского муниципального района  Республики Татарстан","Миннегалиев","Ильназ","Ильсурович",11,"2001-12-10","муж",0,null,0,500,"участник ","Шакирова Гульназ Гаптельнуровна","МБОУ «Гимназия №1 им. Ч.Т. Айтматова п.г.т. Кукмор \" Кукморского муниципального района  Республики Татарстан"]
[195,"Кукморский ","МБОУ «СОШ им. С.А. Ахтямова с. Манзарас\" Кукморского муниципального района  Республики Татарстан","Гиматдинов","Азат","Расимович",11,"2001-03-03","муж",0,null,0,500,"участник ","Гарипова Гульназ Равилевна","МБОУ «СОШ им. С.А. Ахтямова с. Манзарас\" Кукморского муниципального района  Республики Татарстан"]
[196,"Лаишевский","МБОУ \"Столбищенская СОШ имени Героя Советского Союза А.П. Малышева\" Лаишевского муниципального района РТ","Семин","Роман","Вадимович",11,"2001-01-22","муж",0,null,0,500,"участник","Ризванов Равиль Гамирович","МБОУ \"Столбищенская СОШ имени Героя Советского Союза А.П. Малышева\" Лаишевского муниципального района РТ"]
[197,"Лаишевский","Муниципальное бюджетное образовательное учреждение \"Нармонская средняя общеобразовательная школа\" Лаишевского муниципального района Республики Татарстан","Варин","Данил","Юрьевич",11,"2001-05-31","муж",0,null,0,500,"участник","Ожмекова Юлия Геннадьевна","Муниципальное бюджетное образовательное учреждение \"Нармонская средняя общеобразовательная школа\" Лаишевского муниципального района Республики Татарстан"]
[198,"Лениногорский","МБОУ \"СОШ №2 г.Лениногорска\" МО \"Лениногорский муниципальный район\" РТ","Хайрутдинов  ","Ильнар","Ильнурович",11,"2001-11-14","м",0,0,0,500,"участник","Санатуллина Голнур Ильясовна","МБОУ \"СОШ №2 г.Лениногорска\" МО \"Лениногорский муниципальный район\" РТ"]
[199,"Лениногорский","МБОУ \"СОШ №5 г.Лениногорска\" МО \"Лениногорский муниципальный район\" РТ","Ситдиков ","Айзат ","Рустамович",11,"2001-04-13","м",0,0,0,500,"участник","Камалова Нафиса Ахатовна","МБОУ \"СОШ №5 г.Лениногорска\" МО \"Лениногорский муниципальный район\" РТ"]
[200,"Лениногорский","МБОУ \"СОШ №7 г.Лениногорска\" МО \"Лениногорский муниципальный район\" РТ (школа-центр компетенции в электронном образовании)","Загиров","Айдар","Ильнурович",11,"2001-07-31","м",0,0,0,500,"участник","Осипова Ольга Владимировна","МБОУ \"СОШ №7 г.Лениногорска\" МО \"Лениногорский муниципальный район\" РТ (школа-центр компетенции в электронном образовании)"]
[201,"Менделеевский","МБОУ «Средняя общеобразовательная школа №1\" Менделеевского муниципального района Республики Татарстан","Зайцев","Павел","Сергеевич",11,"2001-07-29","муж",0,0,0,500,"участник","Пашкова Ольга Владимировна","МБОУ «Средняя общеобразовательная школа №1\" Менделеевского муниципального района Республики Татарстан"]
[202,"Менделеевский","МБОУ «Средняя общеобразовательная школа №1\" Менделеевского муниципального района Республики Татарстан","Муслимов","Артур","Ришатович",11,"2001-07-24","муж",0,0,0,500,"участник","Пашкова Ольга Владимировна","МБОУ «Средняя общеобразовательная школа №1\" Менделеевского муниципального района Республики Татарстан"]
[203,"Мензелинский","МБОУ «Гимназия\" города Мензелинска Республики Татарстан","Бадриева","Альфия","Флюсовна",11,"2001-04-09","жен",0,0,0,500,null,"Маннаева Диляра Азатовна","МБОУ «Гимназия\" города Мензелинска Республики Татарстан"]
[204,"Нижнекамский","МБОУ \"Средняя общеобразовательная школа № 2\"","Багдасарян","Артур ","Варданович",11,"2002-03-20","муж",0,null,0,500,"Участник","Валиуллина Диляра Артуровна","МБОУ \"Средняя общеобразовательная школа № 2\""]
[205,"Нижнекамский","МБОУ \"Средняя общеобразовательная школа № 8\" ","Зинченко","Вадим","Эдуардович",11,"2001-03-11","муж",0,null,0,500,"Участник","Фомина Татьяна Владимировна","МБОУ \"Средняя общеобразовательная школа № 8\" "]
[206,"Нижнекамский","МБОУ \"Средняя общеобразовательная школа № 9 с углубленным изучением отдельных предметов\"","Краснов ","Кирилл","Вячеславович",11,"2001-09-19","муж",0,null,0,500,"Участник","Марданова Гульсина Насиховна","МБОУ \"Средняя общеобразовательная школа № 9 с углубленным изучением отдельных предметов\""]
[207,"Нижнекамский","МБОУ \"Средняя общеобразовательная школа № 10 с углубленным изучением отдельных предметов\"","Кузьмина","Ксения","Дмитриевна",11,"2001-10-18","жен",0,null,0,500,"Участник","Бликин Андрей Иванович","МБОУ \"Средняя общеобразовательная школа № 10 с углубленным изучением отдельных предметов\""]
[208,"Нижнекамский","МБОУ \"Средняя общеобразовательная школа № 11 с углубленным изучением отдельных предметов\"","Поварницын","Данил","Валерьевич",11,"2000-12-09","муж",0,null,0,500,"Участник","Гилязеев Рамиль Фаридович","МБОУ \"Средняя общеобразовательная школа № 11 с углубленным изучением отдельных предметов\""]
[209,"Нижнекамский","МБОУ \"Средняя общеобразовательная школа № 26 с углубленным изучением отдельных предметов\"","Смирнов","Рим","Романович",11,"2001-07-22","муж",0,null,0,500,"Участник","Хабибуллина Алсу Анваровна","МБОУ \"Средняя общеобразовательная школа № 26 с углубленным изучением отдельных предметов\""]
[210,"Нижнекамский","МБОУ \"Средняя общеобразовательная школа № 27 с углубленным изучением отдельных предметов\"","Афонов","Илья","Сергеевич",11,"2001-01-12","муж",0,null,0,500,"Участник","Пантелеева Ольга Анатольевна","МБОУ \"Средняя общеобразовательная школа № 27 с углубленным изучением отдельных предметов\""]
[211,"Нижнекамский","МБОУ \"Средняя общеобразовательная школа № 31 с углубленным изучением отдельных предметов\"","Латипов","Айнур","Айгизович",11,"2001-07-07","муж",0,null,0,500,"Участник","Ямщикова Раиса Юрьевна","МБОУ \"Средняя общеобразовательная школа № 31 с углубленным изучением отдельных предметов\""]
[212,"Нижнекамский","МБОУ \"Гимназия-интернат № 34\"","Шидловский","Савелий","Александрович",11,"2001-07-11","муж",0,null,0,500,"Участник","Латыпов Миляуша Саяфовна","МБОУ \"Гимназия-интернат № 34\""]
[213,"Нижнекамский","МБОУ \"Гимназия № 1 имени Мусы Джалиля\"","Бикмухаметов","Булат ","Рафаэлевич",11,"2001-11-08","муж",0,null,0,500,"Участник","Хайруллина Гульнара Илсуровна","МБОУ \"Гимназия № 1 имени Мусы Джалиля\""]
[214,"Нурлатский","Муниципальное автономное общеобразовательное учреждение \" Средняя общеобразовательная школа №9\" г.Нурлат Республики Татарстан","Михайлов","Иван","Ильич",11,"2001-09-05","муж",0,null,0,500,null,"Светкина Любовь Геннадьевна","Муниципальное автономное общеобразовательное учреждение \" Средняя общеобразовательная школа №9\" г.Нурлат Республики Татарстан"]
[215,"Нурлатский","МАОУ «Средняя общеобразовательная школа №3       \" города Нурлата Республики Татарстан","Намаев","Альберт","Эдуардович",11,"2001-10-06","муж",0,null,0,500,null,"Хаметзянова Алина Маратовна","МАОУ «Средняя общеобразовательная школа № 3       \" города Нурлата Республики Татарстан"]
[216,"Нурлатский","Муниципальное автономное общеобразовательное учреждение \"Средняя общеобразовательная школа №2\" г.Нурлат Республики Татарстан","Сайфуллин ","Рустем","Ильшатович",11,"2002-08-26","муж",0,null,0,500,null,"Нургатина Гульнара Ильдусовна","Муниципальное автономное общеобразовательное учреждение \"Средняя общеобразовательная школа №2\" г.Нурлат Республики Татарстан"]
[217,"Пестречинский","МБОУ \"Старо-Шигалеевская средняя общеобразовательная школа\"","Анискович","Евгений","Максимович ",11,null,"муж",0,0,0,500,"участник","Борисова Вера Ивановна","МБОУ \"Старо-Шигалеевская средняя общеобразовательная школа\""]
[218,"Пестречинский","МБУ \"Пестречинская средняя общеобразовательная школа№1\"","Ерофеев","Дмитрий","Русланович",11,null,"муж",0,0,0,500,"участник","Цыганова Руфина Рафаэлевна","МБУ \"Пестречинская средняя общеобразовательная школа№1\""]
[219,"Рыбно-Слободский","Муниципальное бюджетное общеобразовательное учреждение \"Рыбно-Слободская гимназия №1\" Рыбно-Слободского муниципального района Республики Татарстан","Мингарипов ","Инсаф","Ильфатович",11,"2001-05-30","муж",0,null,0,500,null,"Замалиев Ильгиз Ильясович","Муниципальное бюджетное общеобразовательное учреждение \"Рыбно-Слободская гимназия №1\" Рыбно-Слободского муниципального района Республики Татарстан"]
[220,"Рыбно-Слободский","Муниципальное бюджетное общеобразовательное учреждение \"Рыбно-Слободская гимназия №1\" Рыбно-Слободского муниципального района Республики Татарстан","Вахитов ","Ринат","Рустамович",11,"2001-02-15","муж",0,null,0,500,null,"Замалиев Ильгиз Ильясович","Муниципальное бюджетное общеобразовательное учреждение \"Рыбно-Слободская гимназия №1\" Рыбно-Слободского муниципального района Республики Татарстан"]
[221,"Рыбно-Слободский","Муниципальное бюджетное общеобразовательное учреждение \"Больше-Машляковская средняя общеобразовательная школа\" Рыбно-Слободского муниципального района Республики Татарстан","Давлеев ","Зиннур","Зиннатович",11,"2001-11-19","муж",0,null,0,500,null,"Мухутдинова Дина Фаритовна","Муниципальное бюджетное общеобразовательное учреждение \"Больше-Машляковская средняя общеобразовательная школа\" Рыбно-Слободского муниципального района Республики Татарстан"]
[222,"Сабинский","МБОУ \"Гимназия п.г.т. Богатые Сабы Сабинского муниципального района Республики Татарстан","Каримов","Алмаз","Хасанович",11,"2001-08-01","муж.",0,null,0,500,"Участник","Сайфеева Ильсина Фанилевна","МБОУ \"Гимназия п.г.т. Богатые Сабы Сабинского муниципального района Республики Татарстан"]
[223,"Тетюшский ","Государственное бюджетное общеобразовательное учреждение \"Тетюшская кадетская школа-интернат  им.генерал-майора Хапаева В.А.\" Тетюшского муниципального района Республики Татарстан","Кострина","София","Валентиновна",11,"2001-07-25","ж",0,null,0,500,"участник","Кострина Елена Николаевна","Государственное бюджетное общеобразовательное учреждение \"Тетюшская кадетская школа-интернат  им.генерал-майора Хапаева В.А.\" Тетюшского муниципального района Республики Татарстан"]
[224,"Тетюшский ","Государственное бюджетное общеобразовательное учреждение \"Тетюшская кадетская школа-интернат  им.генерал-майора Хапаева В.А.\" Тетюшского муниципального района Республики Татарстан","Долгов","Александр","Сергеевич",11,"2001-05-01","м",0,null,0,500,"участник","Кострина Елена Николаевна","Государственное бюджетное общеобразовательное учреждение \"Тетюшская кадетская школа-интернат  им.генерал-майора Хапаева В.А.\" Тетюшского муниципального района Республики Татарстан"]
[225,"Тукаевский","Муниципальное бюджетное общеобразовательное учреждение «Бетькинская средняя общеобразовательная школа»","Валеев","Булат","Ильгизярович",11,"2001-09-12","муж",0,null,0,500,"участник","Лысенков Андрей Васильевич","Муниципальное бюджетное общеобразовательное учреждение «Бетькинская средняя общеобразовательная школа»"]
[226,"Тюлячинский","Муниципальное бюджетное общеобразовательное учреждение - Шадкинская средняя общеобразовательная школа Тюлячинского муниципального района Республики Татарстан","Габдерахимов","Азат","Ростемович",11,"2001-12-29","муж",0,0,0,500,"участник","Музафаров Ильнар Гилфанович","Муниципальное бюджетное общеобразовательное учреждение - Шадкинская средняя общеобразовательная школа Тюлячинского муниципального района Республики Татарстан"]
[227,"Черемшанский","МБОУ «Черемшанская средняя общеобразовательная школа №2 имени Cемёна Архиповича Ларионова\" Черемшанского муниципального  района Республики Татарстан","Шайдуллин","Ильназ","Ильфатович",11,"2001-07-15","муж",0,null,0,500,"участник","Миргалимов Ильдар Гайсович","МБОУ «Черемшанская средняя общеобразовательная школа №2 имени Cемёна Архиповича Ларионова\" Черемшанского муниципального  района Республики Татарстан"]
[228,"Черемшанский","ГБОУ \"Кадетская школа-интернат имени Героя Советского Союза И. Н. Конева\" Черемшанского муниципального района Республики Татарстан","Севастьянов","Сергей ","Игоревич",11,"2001-10-15","муж",0,null,0,500,"участник","Асадуллина Фарида Анисовна","ГБОУ \"Кадетская школа-интернат имени Героя Советского Союза И. Н. Конева\" Черемшанского муниципального района Республики Татарстан"]
[229,"Чистопольский","Муниципальное бюджетное общеобразовательное учреждение \"Гимназия №3\" Чистопольского муниципального района Республики Татарстан","Юртаев","Евгений","Александрович",11,"2001-03-18","м",0,null,0,500,null,"Шамсутдинова Эльмира Раифовна","Муниципальное бюджетное общеобразовательное учреждение \"Гимназия №3\" Чистопольского муниципального района Республики Татарстан"]
[230,"Набрежные Челны","МБОУ \"Средняя общеобразовательная школа №31 с углублённым изучением отдельных предметов\" г.Набережные Челны","Асулгараев ","Данил","Васимович",11,"2001-08-19","муж",0,null,0,500,"участник","Журавлева Наталья Александровна","МБОУ \"Средняя общеобразовательная школа №31 с углублённым изучением отдельных предметов\" г.Набережные Челны"]
[231,"Набрежные Челны","МБОУ \"Средняя общеобразовательная школа №45 с углубленным изучением отдельных предметов\" г. Набережные Челны","Глуховской","Александр","Сергеевич",11,"2001-03-09","муж",0,null,0,500,"участник","Бахтиярова Светлана Ахметдияровна","МБОУ \"Средняя общеобразовательная школа №45 с углубленным изучением отдельных предметов\" г. Набережные Челны"]
[232,"Набрежные Челны","МБОУ \"Средняя общеобразовательная школа №46\" г.Набережные Челны","Казека","Виктория"," Руслановна",11,"2001-05-02","жен",0,null,0,500,"участник","Костенко Вадим Алексеевич","МБОУ \"Средняя общеобразовательная школа №46\" г.Набережные Челны"]
[233,"Набрежные Челны","МБОУ \"Средняя общеобразовательная школа №6\" г.Набережные Челны","Лысенко","Андрей","Владимирович",11,"2001-01-12","муж",0,null,0,500,"участник","Шурманова Гулюза Талгатовна","МБОУ \"Средняя общеобразовательная школа №6\" г.Набережные Челны"]
[234,"Набрежные Челны","МБОУ \"Средняя общеобразовательная школа №22\" г.Набережные Челны","Мифтахов","Марат","Рамильевич",11,"2000-12-29","муж",0,null,0,500,"участник","Муллагалиева Лейсан Шаукатовна","МБОУ \"Средняя общеобразовательная школа №22\" г.Набережные Челны"]
[235,"Набрежные Челны","МБОУ \"Средняя общеобразовательная школа №18 с углублённым изучением отдельных предметов\" г.Набережные Челны","Нуриахметов ","Алмаз ","Маратович",11,"2001-03-20","муж",0,null,0,500,"участник","Гаянова Назиля Накиповна","МБОУ \"Средняя общеобразовательная школа №18 с углублённым изучением отдельных предметов\" г.Набережные Челны"]
[236,"Набрежные Челны","МБОУ \"Средняя общеобразовательная школа № 25\" г.Набережные Челны","Порфилов","Кирилл","Витальевич",11,"2001-06-20","муж",0,null,0,500,"участник","Кашапова Зухра Тагировна","МБОУ \"Средняя общеобразовательная школа № 25\" г.Набережные Челны"]
[237,"Набрежные Челны","МБОУ \"Средняя общеобразовательная школа №43 углублённым изучением отдельных предметов\" г.Набережные Челны","Рейхман","Михаил ","Эдуардович ",11,"2001-06-21","муж",0,null,0,500,"участник","Абдуллина Галия Оспановна","МБОУ \"Средняя общеобразовательная школа №43 углублённым изучением отдельных предметов\" г.Набережные Челны"]
[238,"Набрежные Челны","Муниципальное бюджетное общеобразовательное учреждение «Средняя общеобразовательная школа №52» города Набережные Челны Республики Татарстан ","Сабиров","Ильдар","Динарович",11,"2001-06-05","муж",0,null,0,500,"участник","Пучинина Гузель Ирековна","Муниципальное бюджетное общеобразовательное учреждение «Средняя общеобразовательная школа №52» города Набережные Челны Республики Татарстан"]
[239,"Набрежные Челны","МАОУ \"Средняя общеобразовательная школа №56\" г.Набережные Челны","Савенков ","Дмитрий ","Валерьевич",11,"2001-08-26","муж",0,null,0,500,"участник","Стеганцева Резеда Рафаэлевна","МАОУ \"Средняя общеобразовательная школа №56\" г.Набережные Челны"]
[240,"Набрежные Челны","МБОУ \"Средняя общеобразовательная школа №50 с углублённым изучением отдельных предметов\" г.Набережные Челны","Сагдиев","Азат","Раифович",11,"2001-02-05","муж",0,null,0,500,"участник","Касимова Гузель Рафиловна","МБОУ \"Средняя общеобразовательная школа №50 с углублённым изучением отдельных предметов\" г.Набережные Челны"]
[241,"Набрежные Челны","МАОУ \"Средняя общеобразовательная школа №17\" г.Набережные Челны","Семенов","Максим","Денисович",11,"2001-05-22","муж",0,null,0,500,"участник","Скочкова Надия Рафиковна","МАОУ \"Средняя общеобразовательная школа №17\" г.Набережные Челны"]
[242,"Набрежные Челны","МБОУ \"Средняя общеобразовательная школа №27\" г.Набережные Челны","Сердюков  ","Георгий","Валерьевич",11,null,"муж",0,null,0,500,"участник","Филатова Зульфия Мирсайжановна","МБОУ \"Средняя общеобразовательная школа №27\" г.Набережные Челны"]
[243,"Набрежные Челны","МБОУ \"Средняя общеобразовательная школа №23\" г.Набережные Челны","Сикорский","Данил","Артемович",11,"2001-10-11","муж",0,null,0,500,"участник","Кузнецова Ольга Александровна","МБОУ \"Средняя общеобразовательная школа №23\" г.Набережные Челны"]
[244,"Набрежные Челны","ГБОУ \"Кадетскя школа № 82 имени Героя Советского Союза Ильдара Маннанова\"","Сморординов","Глеб","Алексеевич",11,"2001-03-25","муж",0,null,0,500,"участник","Галиаскарова Альфинур Махмутовна","ГБОУ \"Кадетскя школа № 82 имени Героя Советского Союза Ильдара Маннанова\""]
[245,"Набрежные Челны","ГБОУ \"Кадетская школа им. Н.Кайманова\" г.Набережные Челны","Теселкин","Андрей","Сергеевич",11,"2001-05-08","муж",0,null,0,500,"участник","Осипов Михаил Игоревич","ГБОУ \"Кадетская школа им. Н.Кайманова\" г.Набережные Челны"]
[246,"Набрежные Челны","МБОУ \"Средняя общеобразовательная школа №44 с углублённым изучением отдельных предметов\" г.Набережные Челны","Хакимов","Валентин","Маратович",11,"2001-02-02","муж",0,null,0,500,"участник","Абдульминов Радис Раилович","МБОУ \"Средняя общеобразовательная школа №44 с углублённым изучением отдельных предметов\" г.Набережные Челны"]
[247,"Набрежные Челны","МАОУ \"Средняя общеобразовательная школа №40 с углублённым изучением отдельных предметов\" г.Набережные Челны","Шарафиев","Линар","Ринатович",11," 31.05.2001","муж",0,null,0,500,"участник","Закиева Ирина Григорьевна","МАОУ \"Средняя общеобразовательная школа №40 с углублённым изучением отдельных предметов\" г.Набережные Челны"]
[248,"Набрежные Челны","ГБОУ \"Набережночелнинская школа №87 для детей с ограниченными возможностями\" г.Набережные Челны","Субботин","Леонид","Алексеевич",12,"2000-03-08","муж",0,null,0,500,"участник","Даулетова Ольга Федоровна","ГБОУ \"Набережночелнинская школа №87 для детей с ограниченными возможностями\" г.Набережные Челны"]